Workbook

Sheet Import data
A1: CV_EC Simulator v_24: Import experimental cyclic voltammetry data. Control the gain and offset.
A2: For a description of the CV spreadsheet, see Brown, J. H.; J. Chem. Educ., 2016, 93 (7), 1326–1329.
A4: Instructions
A5: 1. Paste your potential ramp, background current , and sample current below.
A6: 2. Adjust the gain and offset to remove the background current from your sample.
A7: 3. Click on the Species 1 tab below to begin entering your electrochemical parameters.
A9: Sample information: | C9: Benzophenone (1.1 x 10-4 M) in DMF with 0.1 M tetrabutylammonium
C10: hexafluorophosphate. 10/08/15. Scan rate 100 mV/s. Temperature 20 oC.
A12: Background parameters | E12: Detrmine the total number of data points and spacing needed to select 600 points
A13: Gain = | B13: 0.54 | C13: x | E13: Total = | F13: =COUNT($A$18:$A$10018) -> 1000 | G13: points
A14: Offset = | B14: 5e-09 | C14: A | E14: Spacing = | F14: =$F$13/600 -> 1.666666667 | G14: rows
A16: Experimental data | E16: Select 600 experimental data points and then apply background correction and offset
A17: Potl (V) | B17: Bkgrd (A) | C17: Sample (A) | E17: Point | F17: Row | G17: Potl (V) | H17: Bkgrd (A) | I17: Current (A) | J17: BkgrdScaled | K17: Subtract (A)
A18: -1.501 | B18: 1.37331e-06 | C18: 1.17494e-06 | E18: 600 | F18: =ROUND(18+((E18-1)*$F$14),0) -> 1016 | G18: =INDIRECT("A"&F18) -> -1.501 | H18: =INDIRECT("B"&F18) -> 9.33852e-07 | I18: =INDIRECT("C"&F18) -> 6.775e-07 | J18: =(H18*$B$13) -> 5.0428008e-07 | K18: =(I18-J18)-($I$617-$J$617)+$B$14 -> -2.5513268e-07
A19: -1.502 | B19: 1.37026e-06 | C19: 1.17494e-06 | E19: 599 | F19: 1015 | G19: =INDIRECT("A"&F19) -> -1.502 | H19: =INDIRECT("B"&F19) -> 9.308e-07 | I19: =INDIRECT("C"&F19) -> 6.83604e-07 | J19: =(H19*$B$13) -> 5.02632e-07 | K19: =(I19-J19)-($I$617-$J$617)+$B$14 -> -2.473806e-07
A20: -1.503 | B20: 1.3672e-06 | C20: 1.17494e-06 | E20: 598 | F20: 1013 | G20: -1.504 | H20: 9.308e-07 | I20: 6.80552e-07 | J20: 5.02632e-07 | K20: -2.504326e-07
A21: -1.504 | B21: 1.37331e-06 | C21: 1.17799e-06 | E21: 597 | F21: 1011 | G21: -1.506 | H21: 9.33852e-07 | I21: 6.74448e-07 | J21: 5.0428008e-07 | K21: -2.5818468e-07
A22: -1.505 | B22: 1.37026e-06 | C22: 1.17799e-06 | E22: 596 | F22: 1010 | G22: -1.507 | H22: 9.24696e-07 | I22: 6.775e-07 | J22: 4.9933584e-07 | K22: -2.5018844e-07
A23: -1.506 | B23: 1.37026e-06 | C23: 1.17494e-06 | E23: 595 | F23: 1008 | G23: -1.509 | H23: 9.21644e-07 | I23: 6.74448e-07 | J23: 4.9768776e-07 | K23: -2.5159236e-07
A24: -1.507 | B24: 1.3672e-06 | C24: 1.17189e-06 | E24: 594 | F24: 1006 | G24: -1.511 | H24: 9.39955e-07 | I24: 6.74448e-07 | J24: 5.075757e-07 | K24: -2.614803e-07
A25: -1.508 | B25: 1.37331e-06 | C25: 1.16578e-06 | E25: 593 | F25: 1005 | G25: -1.512 | H25: 9.33852e-07 | I25: 6.775e-07 | J25: 5.0428008e-07 | K25: -2.5513268e-07
A26: -1.509 | B26: 1.37331e-06 | C26: 1.17799e-06 | E26: 592 | F26: 1003 | G26: -1.514 | H26: 9.33852e-07 | I26: 6.74448e-07 | J26: 5.0428008e-07 | K26: -2.5818468e-07
A27: -1.51 | B27: 1.37026e-06 | C27: 1.17494e-06 | E27: 591 | F27: 1001 | G27: -1.516 | H27: 9.33852e-07 | I27: 6.74448e-07 | J27: 5.0428008e-07 | K27: -2.5818468e-07
A28: -1.511 | B28: 1.3672e-06 | C28: 1.17189e-06 | E28: 590 | F28: 1000 | G28: -1.517 | H28: 9.24696e-07 | I28: 6.71396e-07 | J28: 4.9933584e-07 | K28: -2.5629244e-07
A29: -1.512 | B29: 1.3672e-06 | C29: 1.17494e-06 | E29: 589 | F29: 998 | G29: -1.519 | H29: 9.33852e-07 | I29: 6.74448e-07 | J29: 5.0428008e-07 | K29: -2.5818468e-07
A30: -1.513 | B30: 1.3672e-06 | C30: 1.16578e-06 | E30: 588 | F30: 996 | G30: -1.521 | H30: 9.39955e-07 | I30: 6.74448e-07 | J30: 5.075757e-07 | K30: -2.614803e-07
A31: -1.514 | B31: 1.3672e-06 | C31: 1.16578e-06 | E31: 587 | F31: 995 | G31: -1.522 | H31: 9.39955e-07 | I31: 6.80552e-07 | J31: 5.075757e-07 | K31: -2.553763e-07
A32: -1.515 | B32: 1.3672e-06 | C32: 1.17189e-06 | E32: 586 | F32: 993 | G32: -1.524 | H32: 9.39955e-07 | I32: 6.74448e-07 | J32: 5.075757e-07 | K32: -2.614803e-07
A33: -1.516 | B33: 1.37026e-06 | C33: 1.17494e-06 | E33: 585 | F33: 991 | G33: -1.526 | H33: 9.33852e-07 | I33: 6.74448e-07 | J33: 5.0428008e-07 | K33: -2.5818468e-07
A34: -1.517 | B34: 1.3672e-06 | C34: 1.17189e-06 | E34: 584 | F34: 990 | G34: -1.527 | H34: 9.39955e-07 | I34: 6.775e-07 | J34: 5.075757e-07 | K34: -2.584283e-07
A35: -1.518 | B35: 1.37331e-06 | C35: 1.16884e-06 | E35: 583 | F35: 988 | G35: -1.529 | H35: 9.33852e-07 | I35: 6.71396e-07 | J35: 5.0428008e-07 | K35: -2.6123668e-07
A36: -1.519 | B36: 1.34889e-06 | C36: 1.17189e-06 | E36: 582 | F36: 986 | G36: -1.531 | H36: 9.33852e-07 | I36: 6.65293e-07 | J36: 5.0428008e-07 | K36: -2.6733968e-07
A37: -1.52 | B37: 1.35805e-06 | C37: 1.17189e-06 | E37: 581 | F37: 985 | G37: -1.532 | H37: 9.33852e-07 | I37: 6.74448e-07 | J37: 5.0428008e-07 | K37: -2.5818468e-07
A38: -1.521 | B38: 1.3611e-06 | C38: 1.17189e-06 | E38: 580 | F38: 983 | G38: -1.534 | H38: 9.39955e-07 | I38: 6.65293e-07 | J38: 5.075757e-07 | K38: -2.706353e-07
A39: -1.522 | B39: 1.35805e-06 | C39: 1.17189e-06 | E39: 579 | F39: 981 | G39: -1.536 | H39: 9.39955e-07 | I39: 6.74448e-07 | J39: 5.075757e-07 | K39: -2.614803e-07
A40: -1.523 | B40: 1.35805e-06 | C40: 1.16578e-06 | E40: 578 | F40: 980 | G40: -1.537 | H40: 9.39955e-07 | I40: 6.65293e-07 | J40: 5.075757e-07 | K40: -2.706353e-07
A41: -1.524 | B41: 1.35805e-06 | C41: 1.17799e-06 | E41: 577 | F41: 978 | G41: -1.539 | H41: 9.33852e-07 | I41: 6.65293e-07 | J41: 5.0428008e-07 | K41: -2.6733968e-07
A42: -1.525 | B42: 1.35805e-06 | C42: 1.16884e-06 | E42: 576 | F42: 976 | G42: -1.541 | H42: 9.33852e-07 | I42: 6.71396e-07 | J42: 5.0428008e-07 | K42: -2.6123668e-07
A43: -1.526 | B43: 1.3611e-06 | C43: 1.16273e-06 | E43: 575 | F43: 975 | G43: -1.542 | H43: 9.43007e-07 | I43: 6.74448e-07 | J43: 5.0922378e-07 | K43: -2.6312838e-07
A44: -1.527 | B44: 1.35805e-06 | C44: 1.16884e-06 | E44: 574 | F44: 973 | G44: -1.544 | H44: 9.39955e-07 | I44: 6.74448e-07 | J44: 5.075757e-07 | K44: -2.614803e-07
A45: -1.528 | B45: 1.35805e-06 | C45: 1.17189e-06 | E45: 573 | F45: 971 | G45: -1.546 | H45: 9.39955e-07 | I45: 6.65293e-07 | J45: 5.075757e-07 | K45: -2.706353e-07
A46: -1.529 | B46: 1.36415e-06 | C46: 1.16578e-06 | E46: 572 | F46: 970 | G46: -1.547 | H46: 9.43007e-07 | I46: 6.68345e-07 | J46: 5.0922378e-07 | K46: -2.6923138e-07
A47: -1.53 | B47: 1.35805e-06 | C47: 1.16273e-06 | E47: 571 | F47: 968 | G47: -1.549 | H47: 9.43007e-07 | I47: 6.68345e-07 | J47: 5.0922378e-07 | K47: -2.6923138e-07
A48: -1.531 | B48: 1.36415e-06 | C48: 1.16273e-06 | E48: 570 | F48: 966 | G48: -1.551 | H48: 9.39955e-07 | I48: 6.59189e-07 | J48: 5.075757e-07 | K48: -2.767393e-07
A49: -1.532 | B49: 1.3611e-06 | C49: 1.16578e-06 | E49: 569 | F49: 965 | G49: -1.552 | H49: 9.43007e-07 | I49: 6.62241e-07 | J49: 5.0922378e-07 | K49: -2.7533538e-07
A50: -1.533 | B50: 1.3672e-06 | C50: 1.16578e-06 | E50: 568 | F50: 963 | G50: -1.554 | H50: 9.39955e-07 | I50: 6.68345e-07 | J50: 5.075757e-07 | K50: -2.675833e-07
A51: -1.534 | B51: 1.35805e-06 | C51: 1.16578e-06 | E51: 567 | F51: 961 | G51: -1.556 | H51: 9.43007e-07 | I51: 6.65293e-07 | J51: 5.0922378e-07 | K51: -2.7228338e-07
A52: -1.535 | B52: 1.35805e-06 | C52: 1.15968e-06 | E52: 566 | F52: 960 | G52: -1.557 | H52: 9.43007e-07 | I52: 6.65293e-07 | J52: 5.0922378e-07 | K52: -2.7228338e-07
A53: -1.536 | B53: 1.3611e-06 | C53: 1.15663e-06 | E53: 565 | F53: 958 | G53: -1.559 | H53: 9.46059e-07 | I53: 6.59189e-07 | J53: 5.1087186e-07 | K53: -2.8003546e-07
A54: -1.537 | B54: 1.3611e-06 | C54: 1.16578e-06 | E54: 564 | F54: 956 | G54: -1.561 | H54: 9.46059e-07 | I54: 6.65293e-07 | J54: 5.1087186e-07 | K54: -2.7393146e-07
A55: -1.538 | B55: 1.35805e-06 | C55: 1.16273e-06 | E55: 563 | F55: 955 | G55: -1.562 | H55: 9.43007e-07 | I55: 6.65293e-07 | J55: 5.0922378e-07 | K55: -2.7228338e-07
A56: -1.539 | B56: 1.355e-06 | C56: 1.16273e-06 | E56: 562 | F56: 953 | G56: -1.564 | H56: 9.49111e-07 | I56: 6.65293e-07 | J56: 5.1251994e-07 | K56: -2.7557954e-07
A57: -1.54 | B57: 1.35805e-06 | C57: 1.15663e-06 | E57: 561 | F57: 951 | G57: -1.566 | H57: 9.49111e-07 | I57: 6.65293e-07 | J57: 5.1251994e-07 | K57: -2.7557954e-07
A58: -1.541 | B58: 1.35805e-06 | C58: 1.16578e-06 | E58: 560 | F58: 950 | G58: -1.567 | H58: 9.43007e-07 | I58: 6.62241e-07 | J58: 5.0922378e-07 | K58: -2.7533538e-07
A59: -1.542 | B59: 1.35194e-06 | C59: 1.16273e-06 | E59: 559 | F59: 948 | G59: -1.569 | H59: 9.43007e-07 | I59: 6.59189e-07 | J59: 5.0922378e-07 | K59: -2.7838738e-07
A60: -1.543 | B60: 1.35805e-06 | C60: 1.16578e-06 | E60: 558 | F60: 946 | G60: -1.571 | H60: 9.43007e-07 | I60: 6.59189e-07 | J60: 5.0922378e-07 | K60: -2.7838738e-07
A61: -1.544 | B61: 1.36415e-06 | C61: 1.16273e-06 | E61: 557 | F61: 945 | G61: -1.572 | H61: 9.55214e-07 | I61: 6.53086e-07 | J61: 5.1581556e-07 | K61: -2.9108216e-07
A62: -1.545 | B62: 1.35194e-06 | C62: 1.16578e-06 | E62: 556 | F62: 943 | G62: -1.574 | H62: 9.55214e-07 | I62: 6.53086e-07 | J62: 5.1581556e-07 | K62: -2.9108216e-07
A63: -1.546 | B63: 1.355e-06 | C63: 1.17494e-06 | E63: 555 | F63: 941 | G63: -1.576 | H63: 9.49111e-07 | I63: 6.56137e-07 | J63: 5.1251994e-07 | K63: -2.8473554e-07
A64: -1.547 | B64: 1.3611e-06 | C64: 1.16273e-06 | E64: 554 | F64: 940 | G64: -1.577 | H64: 9.55214e-07 | I64: 6.53086e-07 | J64: 5.1581556e-07 | K64: -2.9108216e-07
A65: -1.548 | B65: 1.35805e-06 | C65: 1.16273e-06 | E65: 553 | F65: 938 | G65: -1.579 | H65: 9.46059e-07 | I65: 6.50034e-07 | J65: 5.1087186e-07 | K65: -2.8919046e-07
A66: -1.549 | B66: 1.355e-06 | C66: 1.16273e-06 | E66: 552 | F66: 936 | G66: -1.581 | H66: 9.55214e-07 | I66: 6.59189e-07 | J66: 5.1581556e-07 | K66: -2.8497916e-07
A67: -1.55 | B67: 1.34889e-06 | C67: 1.16578e-06 | E67: 551 | F67: 935 | G67: -1.582 | H67: 9.43007e-07 | I67: 6.59189e-07 | J67: 5.0922378e-07 | K67: -2.7838738e-07
A68: -1.551 | B68: 1.35805e-06 | C68: 1.16273e-06 | E68: 550 | F68: 933 | G68: -1.584 | H68: 9.43007e-07 | I68: 6.50034e-07 | J68: 5.0922378e-07 | K68: -2.8754238e-07
A69: -1.552 | B69: 1.35194e-06 | C69: 1.16578e-06 | E69: 549 | F69: 931 | G69: -1.586 | H69: 9.49111e-07 | I69: 6.46982e-07 | J69: 5.1251994e-07 | K69: -2.9389054e-07
A70: -1.553 | B70: 1.34889e-06 | C70: 1.16273e-06 | E70: 548 | F70: 930 | G70: -1.587 | H70: 9.52162e-07 | I70: 6.50034e-07 | J70: 5.1416748e-07 | K70: -2.9248608e-07
A71: -1.554 | B71: 1.34889e-06 | C71: 1.16578e-06 | E71: 547 | F71: 928 | G71: -1.589 | H71: 9.58266e-07 | I71: 6.46982e-07 | J71: 5.1746364e-07 | K71: -2.9883424e-07
A72: -1.555 | B72: 1.34889e-06 | C72: 1.16273e-06 | E72: 546 | F72: 926 | G72: -1.591 | H72: 9.49111e-07 | I72: 6.46982e-07 | J72: 5.1251994e-07 | K72: -2.9389054e-07
A73: -1.556 | B73: 1.34889e-06 | C73: 1.16578e-06 | E73: 545 | F73: 925 | G73: -1.592 | H73: 9.58266e-07 | I73: 6.46982e-07 | J73: 5.1746364e-07 | K73: -2.9883424e-07
A74: -1.557 | B74: 1.355e-06 | C74: 1.16273e-06 | E74: 544 | F74: 923 | G74: -1.594 | H74: 9.52162e-07 | I74: 6.50034e-07 | J74: 5.1416748e-07 | K74: -2.9248608e-07
A75: -1.558 | B75: 1.355e-06 | C75: 1.16273e-06 | E75: 543 | F75: 921 | G75: -1.596 | H75: 9.49111e-07 | I75: 6.46982e-07 | J75: 5.1251994e-07 | K75: -2.9389054e-07
A76: -1.559 | B76: 1.35194e-06 | C76: 1.16578e-06 | E76: 542 | F76: 920 | G76: -1.597 | H76: 9.58266e-07 | I76: 6.46982e-07 | J76: 5.1746364e-07 | K76: -2.9883424e-07
A77: -1.56 | B77: 1.35805e-06 | C77: 1.16273e-06 | E77: 541 | F77: 918 | G77: -1.599 | H77: 9.55214e-07 | I77: 6.40878e-07 | J77: 5.1581556e-07 | K77: -3.0329016e-07
A78: -1.561 | B78: 1.35194e-06 | C78: 1.16273e-06 | E78: 540 | F78: 916 | G78: -1.601 | H78: 9.58266e-07 | I78: 6.40878e-07 | J78: 5.1746364e-07 | K78: -3.0493824e-07
A79: -1.562 | B79: 1.33058e-06 | C79: 1.15663e-06 | E79: 539 | F79: 915 | G79: -1.602 | H79: 9.58266e-07 | I79: 6.40878e-07 | J79: 5.1746364e-07 | K79: -3.0493824e-07
A80: -1.563 | B80: 1.35805e-06 | C80: 1.16273e-06 | E80: 538 | F80: 913 | G80: -1.604 | H80: 9.58266e-07 | I80: 6.40878e-07 | J80: 5.1746364e-07 | K80: -3.0493824e-07
A81: -1.564 | B81: 1.34889e-06 | C81: 1.16578e-06 | E81: 537 | F81: 911 | G81: -1.606 | H81: 9.58266e-07 | I81: 6.34775e-07 | J81: 5.1746364e-07 | K81: -3.1104124e-07
A82: -1.565 | B82: 1.35194e-06 | C82: 1.16273e-06 | E82: 536 | F82: =ROUND(18+((E82-1)*$F$14),0) -> 910 | G82: -1.607 | H82: 9.52162e-07 | I82: 6.40878e-07 | J82: 5.1416748e-07 | K82: -3.0164208e-07
A83: -1.566 | B83: 1.34889e-06 | C83: 1.16273e-06 | E83: 535 | F83: 908 | G83: =INDIRECT("A"&F83) -> -1.609 | H83: =INDIRECT("B"&F83) -> 9.58266e-07 | I83: =INDIRECT("C"&F83) -> 6.28671e-07 | J83: =(H83*$B$13) -> 5.1746364e-07 | K83: =(I83-J83)-($I$617-$J$617)+$B$14 -> -3.1714524e-07
A84: -1.567 | B84: 1.34889e-06 | C84: 1.16884e-06 | E84: 534 | F84: 906 | G84: -1.611 | H84: 9.58266e-07 | I84: 6.34775e-07 | J84: 5.1746364e-07 | K84: -3.1104124e-07
A85: -1.568 | B85: 1.35194e-06 | C85: 1.17494e-06 | E85: 533 | F85: 905 | G85: -1.612 | H85: 9.58266e-07 | I85: 6.25619e-07 | J85: 5.1746364e-07 | K85: -3.2019724e-07
A86: -1.569 | B86: 1.34889e-06 | C86: 1.16578e-06 | E86: 532 | F86: 903 | G86: -1.614 | H86: 9.58266e-07 | I86: 6.25619e-07 | J86: 5.1746364e-07 | K86: -3.2019724e-07
A87: -1.57 | B87: 1.34584e-06 | C87: 1.16578e-06 | E87: 531 | F87: 901 | G87: -1.616 | H87: 9.58266e-07 | I87: 6.22568e-07 | J87: 5.1746364e-07 | K87: -3.2324824e-07
A88: -1.571 | B88: 1.34889e-06 | C88: 1.16884e-06 | E88: 530 | F88: 900 | G88: -1.617 | H88: 9.61318e-07 | I88: 6.19516e-07 | J88: 5.1911172e-07 | K88: -3.2794832e-07
A89: -1.572 | B89: 1.35194e-06 | C89: 1.16884e-06 | E89: 529 | F89: 898 | G89: -1.619 | H89: 9.61318e-07 | I89: 6.22568e-07 | J89: 5.1911172e-07 | K89: -3.2489632e-07
A90: -1.573 | B90: 1.34889e-06 | C90: 1.16273e-06 | E90: 528 | F90: 896 | G90: -1.621 | H90: 9.61318e-07 | I90: 6.25619e-07 | J90: 5.1911172e-07 | K90: -3.2184532e-07
A91: -1.574 | B91: 1.34889e-06 | C91: 1.16578e-06 | E91: 527 | F91: 895 | G91: -1.622 | H91: 9.58266e-07 | I91: 6.22568e-07 | J91: 5.1746364e-07 | K91: -3.2324824e-07
A92: -1.575 | B92: 1.34889e-06 | C92: 1.16884e-06 | E92: 526 | F92: 893 | G92: -1.624 | H92: 9.61318e-07 | I92: 6.22568e-07 | J92: 5.1911172e-07 | K92: -3.2489632e-07
A93: -1.576 | B93: 1.35194e-06 | C93: 1.16578e-06 | E93: 525 | F93: 891 | G93: -1.626 | H93: 9.61318e-07 | I93: 6.16464e-07 | J93: 5.1911172e-07 | K93: -3.3100032e-07
A94: -1.577 | B94: 1.355e-06 | C94: 1.16578e-06 | E94: 524 | F94: 890 | G94: -1.627 | H94: 9.6437e-07 | I94: 6.16464e-07 | J94: 5.207598e-07 | K94: -3.326484e-07
A95: -1.578 | B95: 1.34889e-06 | C95: 1.16884e-06 | E95: 523 | F95: 888 | G95: -1.629 | H95: 9.61318e-07 | I95: 6.16464e-07 | J95: 5.1911172e-07 | K95: -3.3100032e-07
A96: -1.579 | B96: 1.34889e-06 | C96: 1.16884e-06 | E96: 522 | F96: 886 | G96: -1.631 | H96: 9.6437e-07 | I96: 6.19516e-07 | J96: 5.207598e-07 | K96: -3.295964e-07
A97: -1.58 | B97: 1.34889e-06 | C97: 1.16578e-06 | E97: 521 | F97: 885 | G97: -1.632 | H97: 9.61318e-07 | I97: 6.16464e-07 | J97: 5.1911172e-07 | K97: -3.3100032e-07
A98: -1.581 | B98: 1.35805e-06 | C98: 1.16578e-06 | E98: 520 | F98: 883 | G98: -1.634 | H98: 9.61318e-07 | I98: 6.13412e-07 | J98: 5.1911172e-07 | K98: -3.3405232e-07
A99: -1.582 | B99: 1.34889e-06 | C99: 1.17189e-06 | E99: 519 | F99: 881 | G99: -1.636 | H99: 9.67421e-07 | I99: 6.13412e-07 | J99: 5.2240734e-07 | K99: -3.3734794e-07
A100: -1.583 | B100: 1.34889e-06 | C100: 1.16884e-06 | E100: 518 | F100: 880 | G100: -1.637 | H100: 9.61318e-07 | I100: 6.1036e-07 | J100: 5.1911172e-07 | K100: -3.3710432e-07
A101: -1.584 | B101: 1.34889e-06 | C101: 1.17189e-06 | E101: 517 | F101: 878 | G101: -1.639 | H101: 9.76577e-07 | I101: 6.04257e-07 | J101: 5.2735158e-07 | K101: -3.5144718e-07
A102: -1.585 | B102: 1.34889e-06 | C102: 1.17799e-06 | E102: 516 | F102: 876 | G102: -1.641 | H102: 9.61318e-07 | I102: 6.13412e-07 | J102: 5.1911172e-07 | K102: -3.3405232e-07
A103: -1.586 | B103: 1.34889e-06 | C103: 1.17189e-06 | E103: 515 | F103: 875 | G103: -1.642 | H103: 9.67421e-07 | I103: 6.1036e-07 | J103: 5.2240734e-07 | K103: -3.4039994e-07
A104: -1.587 | B104: 1.34889e-06 | C104: 1.17799e-06 | E104: 514 | F104: 873 | G104: -1.644 | H104: 9.76577e-07 | I104: 6.16464e-07 | J104: 5.2735158e-07 | K104: -3.3924018e-07
A105: -1.588 | B105: 1.35194e-06 | C105: 1.17494e-06 | E105: 513 | F105: 871 | G105: -1.646 | H105: 9.67421e-07 | I105: 6.13412e-07 | J105: 5.2240734e-07 | K105: -3.3734794e-07
A106: -1.589 | B106: 1.34889e-06 | C106: 1.17494e-06 | E106: 512 | F106: 870 | G106: -1.647 | H106: 9.70473e-07 | I106: 6.16464e-07 | J106: 5.2405542e-07 | K106: -3.3594402e-07
A107: -1.59 | B107: 1.33974e-06 | C107: 1.17799e-06 | E107: 511 | F107: 868 | G107: -1.649 | H107: 9.70473e-07 | I107: 6.16464e-07 | J107: 5.2405542e-07 | K107: -3.3594402e-07
A108: -1.591 | B108: 1.34889e-06 | C108: 1.17799e-06 | E108: 510 | F108: 866 | G108: -1.651 | H108: 9.67421e-07 | I108: 6.16464e-07 | J108: 5.2240734e-07 | K108: -3.3429594e-07
A109: -1.592 | B109: 1.34889e-06 | C109: 1.17799e-06 | E109: 509 | F109: 865 | G109: -1.652 | H109: 9.67421e-07 | I109: 6.19516e-07 | J109: 5.2240734e-07 | K109: -3.3124394e-07
A110: -1.593 | B110: 1.34889e-06 | C110: 1.17799e-06 | E110: 508 | F110: 863 | G110: -1.654 | H110: 9.67421e-07 | I110: 6.22568e-07 | J110: 5.2240734e-07 | K110: -3.2819194e-07
A111: -1.594 | B111: 1.34889e-06 | C111: 1.18715e-06 | E111: 507 | F111: 861 | G111: -1.656 | H111: 9.70473e-07 | I111: 6.25619e-07 | J111: 5.2405542e-07 | K111: -3.2678902e-07
A112: -1.595 | B112: 1.34889e-06 | C112: 1.18104e-06 | E112: 506 | F112: 860 | G112: -1.657 | H112: 9.76577e-07 | I112: 6.25619e-07 | J112: 5.2735158e-07 | K112: -3.3008518e-07
A113: -1.596 | B113: 1.34889e-06 | C113: 1.1841e-06 | E113: 505 | F113: 858 | G113: -1.659 | H113: 9.70473e-07 | I113: 6.34775e-07 | J113: 5.2405542e-07 | K113: -3.1763302e-07
A114: -1.597 | B114: 1.34889e-06 | C114: 1.1841e-06 | E114: 504 | F114: 856 | G114: -1.661 | H114: 9.79629e-07 | I114: 6.34775e-07 | J114: 5.2899966e-07 | K114: -3.2257726e-07
A115: -1.598 | B115: 1.34889e-06 | C115: 1.18104e-06 | E115: 503 | F115: 855 | G115: -1.662 | H115: 9.79629e-07 | I115: 6.40878e-07 | J115: 5.2899966e-07 | K115: -3.1647426e-07
A116: -1.599 | B116: 1.34889e-06 | C116: 1.18104e-06 | E116: 502 | F116: 853 | G116: -1.664 | H116: 9.79629e-07 | I116: 6.50034e-07 | J116: 5.2899966e-07 | K116: -3.0731826e-07
A117: -1.6 | B117: 1.34889e-06 | C117: 1.1841e-06 | E117: 501 | F117: 851 | G117: -1.666 | H117: 9.82681e-07 | I117: 6.53086e-07 | J117: 5.3064774e-07 | K117: -3.0591434e-07
A118: -1.601 | B118: 1.35194e-06 | C118: 1.18715e-06 | E118: 500 | F118: 850 | G118: -1.667 | H118: 9.76577e-07 | I118: 6.59189e-07 | J118: 5.2735158e-07 | K118: -2.9651518e-07
A119: -1.602 | B119: 1.34889e-06 | C119: 1.1963e-06 | E119: 499 | F119: 848 | G119: -1.669 | H119: 9.82681e-07 | I119: 6.68345e-07 | J119: 5.3064774e-07 | K119: -2.9065534e-07
A120: -1.603 | B120: 1.35194e-06 | C120: 1.19935e-06 | E120: 498 | F120: 846 | G120: -1.671 | H120: 9.79629e-07 | I120: 6.775e-07 | J120: 5.2899966e-07 | K120: -2.7985226e-07
A121: -1.604 | B121: 1.34889e-06 | C121: 1.20241e-06 | E121: 497 | F121: 845 | G121: -1.672 | H121: 9.82681e-07 | I121: 6.89707e-07 | J121: 5.3064774e-07 | K121: -2.6929334e-07
A122: -1.605 | B122: 1.34889e-06 | C122: 1.20241e-06 | E122: 496 | F122: 843 | G122: -1.674 | H122: 9.79629e-07 | I122: 6.98863e-07 | J122: 5.2899966e-07 | K122: -2.5848926e-07
A123: -1.606 | B123: 1.34889e-06 | C123: 1.20241e-06 | E123: 495 | F123: 841 | G123: -1.676 | H123: 9.76577e-07 | I123: 7.1107e-07 | J123: 5.2735158e-07 | K123: -2.4463418e-07
A124: -1.607 | B124: 1.34889e-06 | C124: 1.1963e-06 | E124: 494 | F124: 840 | G124: -1.677 | H124: 9.82681e-07 | I124: 7.14122e-07 | J124: 5.3064774e-07 | K124: -2.4487834e-07
A125: -1.608 | B125: 1.35194e-06 | C125: 1.20546e-06 | E125: 493 | F125: 838 | G125: -1.679 | H125: 9.79629e-07 | I125: 7.29381e-07 | J125: 5.2899966e-07 | K125: -2.2797126e-07
A126: -1.609 | B126: 1.34889e-06 | C126: 1.20241e-06 | E126: 492 | F126: 836 | G126: -1.681 | H126: 9.82681e-07 | I126: 7.38536e-07 | J126: 5.3064774e-07 | K126: -2.2046434e-07
A127: -1.61 | B127: 1.34889e-06 | C127: 1.20241e-06 | E127: 491 | F127: 835 | G127: -1.682 | H127: 9.85732e-07 | I127: 7.50743e-07 | J127: 5.3229528e-07 | K127: -2.0990488e-07
A128: -1.611 | B128: 1.34889e-06 | C128: 1.20241e-06 | E128: 490 | F128: 833 | G128: -1.684 | H128: 9.88784e-07 | I128: 7.62951e-07 | J128: 5.3394336e-07 | K128: -1.9934496e-07
A129: -1.612 | B129: 1.35194e-06 | C129: 1.20241e-06 | E129: 489 | F129: 831 | G129: -1.686 | H129: 9.88784e-07 | I129: 7.72106e-07 | J129: 5.3394336e-07 | K129: -1.9018996e-07
A130: -1.613 | B130: 1.34584e-06 | C130: 1.21461e-06 | E130: 488 | F130: 830 | G130: -1.687 | H130: 9.91836e-07 | I130: 7.84313e-07 | J130: 5.3559144e-07 | K130: -1.7963104e-07
A131: -1.614 | B131: 1.34889e-06 | C131: 1.21461e-06 | E131: 487 | F131: 828 | G131: -1.689 | H131: 9.82681e-07 | I131: 8.05676e-07 | J131: 5.3064774e-07 | K131: -1.5332434e-07
A132: -1.615 | B132: 1.33974e-06 | C132: 1.21461e-06 | E132: 486 | F132: 826 | G132: -1.691 | H132: 9.88784e-07 | I132: 8.17883e-07 | J132: 5.3394336e-07 | K132: -1.4441296e-07
A133: -1.616 | B133: 1.34889e-06 | C133: 1.21766e-06 | E133: 485 | F133: 825 | G133: -1.692 | H133: 9.94888e-07 | I133: 8.3009e-07 | J133: 5.3723952e-07 | K133: -1.3550212e-07
A134: -1.617 | B134: 1.34889e-06 | C134: 1.22072e-06 | E134: 484 | F134: 823 | G134: -1.694 | H134: 9.94888e-07 | I134: 8.45349e-07 | J134: 5.3723952e-07 | K134: -1.2024312e-07
A135: -1.618 | B135: 1.34889e-06 | C135: 1.22072e-06 | E135: 483 | F135: 821 | G135: -1.696 | H135: 9.94888e-07 | I135: 8.60608e-07 | J135: 5.3723952e-07 | K135: -1.0498412e-07
A136: -1.619 | B136: 1.34889e-06 | C136: 1.22377e-06 | E136: 482 | F136: 820 | G136: -1.697 | H136: 9.94888e-07 | I136: 8.72816e-07 | J136: 5.3723952e-07 | K136: -9.277612e-08
A137: -1.62 | B137: 1.34889e-06 | C137: 1.22682e-06 | E137: 481 | F137: 818 | G137: -1.699 | H137: 9.94888e-07 | I137: 8.85023e-07 | J137: 5.3723952e-07 | K137: -8.056912e-08
A138: -1.621 | B138: 1.34889e-06 | C138: 1.23292e-06 | E138: 480 | F138: 816 | G138: -1.701 | H138: 9.94888e-07 | I138: 8.94178e-07 | J138: 5.3723952e-07 | K138: -7.141412e-08
A139: -1.622 | B139: 1.34889e-06 | C139: 1.23598e-06 | E139: 479 | F139: 815 | G139: -1.702 | H139: 9.91836e-07 | I139: 9.09437e-07 | J139: 5.3559144e-07 | K139: -5.450704e-08
A140: -1.623 | B140: 1.355e-06 | C140: 1.23598e-06 | E140: 478 | F140: 813 | G140: -1.704 | H140: 9.88784e-07 | I140: 9.27748e-07 | J140: 5.3394336e-07 | K140: -3.454796e-08
A141: -1.624 | B141: 1.34889e-06 | C141: 1.24513e-06 | E141: 477 | F141: 811 | G141: -1.706 | H141: 1.00099e-06 | I141: 9.39955e-07 | J141: 5.405346e-07 | K141: -2.89322e-08
A142: -1.625 | B142: 1.34889e-06 | C142: 1.24818e-06 | E142: 476 | F142: 810 | G142: -1.707 | H142: 9.94888e-07 | I142: 9.55214e-07 | J142: 5.3723952e-07 | K142: -1.037812e-08
A143: -1.626 | B143: 1.34889e-06 | C143: 1.25429e-06 | E143: 475 | F143: 808 | G143: -1.709 | H143: 1.00099e-06 | I143: 9.67421e-07 | J143: 5.405346e-07 | K143: -1.4662e-09
A144: -1.627 | B144: 1.35194e-06 | C144: 1.26039e-06 | E144: 474 | F144: 806 | G144: -1.711 | H144: 1.00099e-06 | I144: 9.82681e-07 | J144: 5.405346e-07 | K144: 1.37938e-08
A145: -1.628 | B145: 1.35194e-06 | C145: 1.26039e-06 | E145: 473 | F145: 805 | G145: -1.712 | H145: 9.9794e-07 | I145: 9.88784e-07 | J145: 5.388876e-07 | K145: 2.15438e-08
A146: -1.629 | B146: 1.35194e-06 | C146: 1.26649e-06 | E146: 472 | F146: =ROUND(18+((E146-1)*$F$14),0) -> 803 | G146: -1.714 | H146: 1.00404e-06 | I146: 1.00099e-06 | J146: 5.421816e-07 | K146: 3.04558e-08
A147: -1.63 | B147: 1.34889e-06 | C147: 1.26955e-06 | E147: 471 | F147: 801 | G147: =INDIRECT("A"&F147) -> -1.716 | H147: =INDIRECT("B"&F147) -> 1.00404e-06 | I147: =INDIRECT("C"&F147) -> 1.02235e-06 | J147: =(H147*$B$13) -> 5.421816e-07 | K147: =(I147-J147)-($I$617-$J$617)+$B$14 -> 5.18158e-08
A148: -1.631 | B148: 1.34889e-06 | C148: 1.28175e-06 | E148: 470 | F148: 800 | G148: -1.717 | H148: 1.00404e-06 | I148: 1.03456e-06 | J148: 5.421816e-07 | K148: 6.40258e-08
A149: -1.632 | B149: 1.34889e-06 | C149: 1.28175e-06 | E149: 469 | F149: 798 | G149: -1.719 | H149: 1.00709e-06 | I149: 1.03761e-06 | J149: 5.438286e-07 | K149: 6.54288e-08
A150: -1.633 | B150: 1.34584e-06 | C150: 1.2848e-06 | E150: 468 | F150: 796 | G150: -1.721 | H150: 1.00404e-06 | I150: 1.05592e-06 | J150: 5.421816e-07 | K150: 8.53858e-08
A151: -1.634 | B151: 1.34889e-06 | C151: 1.29396e-06 | E151: 467 | F151: 795 | G151: -1.722 | H151: 1.00709e-06 | I151: 1.06507e-06 | J151: 5.438286e-07 | K151: 9.28888e-08
A152: -1.635 | B152: 1.34889e-06 | C152: 1.29396e-06 | E152: 466 | F152: 793 | G152: -1.724 | H152: 1.01014e-06 | I152: 1.07118e-06 | J152: 5.454756e-07 | K152: 9.73518e-08
A153: -1.636 | B153: 1.34889e-06 | C153: 1.30617e-06 | E153: 465 | F153: 791 | G153: -1.726 | H153: 1.01625e-06 | I153: 1.08644e-06 | J153: 5.48775e-07 | K153: 1.093124e-07
A154: -1.637 | B154: 1.34889e-06 | C154: 1.30922e-06 | E154: 464 | F154: 790 | G154: -1.727 | H154: 1.01625e-06 | I154: 1.09254e-06 | J154: 5.48775e-07 | K154: 1.154124e-07
A155: -1.638 | B155: 1.34889e-06 | C155: 1.31837e-06 | E155: 463 | F155: 788 | G155: -1.729 | H155: 1.01014e-06 | I155: 1.10475e-06 | J155: 5.454756e-07 | K155: 1.309218e-07
A156: -1.639 | B156: 1.34889e-06 | C156: 1.32448e-06 | E156: 462 | F156: 786 | G156: -1.731 | H156: 1.01319e-06 | I156: 1.11696e-06 | J156: 5.471226e-07 | K156: 1.414848e-07
A157: -1.64 | B157: 1.35194e-06 | C157: 1.33363e-06 | E157: 461 | F157: 785 | G157: -1.732 | H157: 1.00709e-06 | I157: 1.12916e-06 | J157: 5.438286e-07 | K157: 1.569788e-07
A158: -1.641 | B158: 1.34889e-06 | C158: 1.33669e-06 | E158: 460 | F158: 783 | G158: -1.734 | H158: 1.01319e-06 | I158: 1.12916e-06 | J158: 5.471226e-07 | K158: 1.536848e-07
A159: -1.642 | B159: 1.34889e-06 | C159: 1.35194e-06 | E159: 459 | F159: 781 | G159: -1.736 | H159: 1.0193e-06 | I159: 1.13832e-06 | J159: 5.50422e-07 | K159: 1.595454e-07
A160: -1.643 | B160: 1.35194e-06 | C160: 1.35194e-06 | E160: 458 | F160: 780 | G160: -1.737 | H160: 1.0193e-06 | I160: 1.14747e-06 | J160: 5.50422e-07 | K160: 1.686954e-07
A161: -1.644 | B161: 1.34889e-06 | C161: 1.37026e-06 | E161: 457 | F161: 778 | G161: -1.739 | H161: 1.0254e-06 | I161: 1.15968e-06 | J161: 5.53716e-07 | K161: 1.776114e-07
A162: -1.645 | B162: 1.33974e-06 | C162: 1.37636e-06 | E162: 456 | F162: 776 | G162: -1.741 | H162: 1.02845e-06 | I162: 1.16273e-06 | J162: 5.55363e-07 | K162: 1.790144e-07
A163: -1.646 | B163: 1.34889e-06 | C163: 1.38246e-06 | E163: 455 | F163: 775 | G163: -1.742 | H163: 1.0254e-06 | I163: 1.16578e-06 | J163: 5.53716e-07 | K163: 1.837114e-07
A164: -1.647 | B164: 1.34584e-06 | C164: 1.39162e-06 | E164: 454 | F164: 773 | G164: -1.744 | H164: 1.0315e-06 | I164: 1.17799e-06 | J164: 5.5701e-07 | K164: 1.926274e-07
A165: -1.648 | B165: 1.34889e-06 | C165: 1.39772e-06 | E165: 453 | F165: 771 | G165: -1.746 | H165: 1.0254e-06 | I165: 1.18104e-06 | J165: 5.53716e-07 | K165: 1.989714e-07
A166: -1.649 | B166: 1.34889e-06 | C166: 1.40688e-06 | E166: 452 | F166: 770 | G166: -1.747 | H166: 1.01625e-06 | I166: 1.18715e-06 | J166: 5.48775e-07 | K166: 2.100224e-07
A167: -1.65 | B167: 1.34889e-06 | C167: 1.41603e-06 | E167: 451 | F167: 768 | G167: -1.749 | H167: 1.02235e-06 | I167: 1.1902e-06 | J167: 5.52069e-07 | K167: 2.097784e-07
A168: -1.651 | B168: 1.34889e-06 | C168: 1.42824e-06 | E168: 450 | F168: 766 | G168: -1.751 | H168: 1.0254e-06 | I168: 1.19935e-06 | J168: 5.53716e-07 | K168: 2.172814e-07
A169: -1.652 | B169: 1.34889e-06 | C169: 1.44045e-06 | E169: 449 | F169: 765 | G169: -1.752 | H169: 1.02845e-06 | I169: 1.20241e-06 | J169: 5.55363e-07 | K169: 2.186944e-07
A170: -1.653 | B170: 1.34889e-06 | C170: 1.45265e-06 | E170: 448 | F170: 763 | G170: -1.754 | H170: 1.01014e-06 | I170: 1.20851e-06 | J170: 5.454756e-07 | K170: 2.346818e-07
A171: -1.654 | B171: 1.34889e-06 | C171: 1.44655e-06 | E171: 447 | F171: 761 | G171: -1.756 | H171: 1.0315e-06 | I171: 1.21461e-06 | J171: 5.5701e-07 | K171: 2.292474e-07
A172: -1.655 | B172: 1.34279e-06 | C172: 1.46486e-06 | E172: 446 | F172: 760 | G172: -1.757 | H172: 1.02845e-06 | I172: 1.22682e-06 | J172: 5.55363e-07 | K172: 2.431044e-07
A173: -1.656 | B173: 1.34279e-06 | C173: 1.48012e-06 | E173: 445 | F173: 758 | G173: -1.759 | H173: 1.03456e-06 | I173: 1.22377e-06 | J173: 5.586624e-07 | K173: 2.36755e-07
A174: -1.657 | B174: 1.34584e-06 | C174: 1.48012e-06 | E174: 444 | F174: 756 | G174: -1.761 | H174: 1.03761e-06 | I174: 1.23598e-06 | J174: 5.603094e-07 | K174: 2.47318e-07
A175: -1.658 | B175: 1.35194e-06 | C175: 1.48928e-06 | E175: 443 | F175: 755 | G175: -1.762 | H175: 1.0315e-06 | I175: 1.23292e-06 | J175: 5.5701e-07 | K175: 2.475574e-07
A176: -1.659 | B176: 1.34889e-06 | C176: 1.50453e-06 | E176: 442 | F176: 753 | G176: -1.764 | H176: 1.03761e-06 | I176: 1.24208e-06 | J176: 5.603094e-07 | K176: 2.53418e-07
A177: -1.66 | B177: 1.35194e-06 | C177: 1.51369e-06 | E177: 441 | F177: 751 | G177: -1.766 | H177: 1.04066e-06 | I177: 1.23903e-06 | J177: 5.619564e-07 | K177: 2.48721e-07
A178: -1.661 | B178: 1.355e-06 | C178: 1.52895e-06 | E178: 440 | F178: 750 | G178: -1.767 | H178: 1.04066e-06 | I178: 1.23903e-06 | J178: 5.619564e-07 | K178: 2.48721e-07
A179: -1.662 | B179: 1.34889e-06 | C179: 1.53505e-06 | E179: 439 | F179: 748 | G179: -1.769 | H179: 1.04371e-06 | I179: 1.24818e-06 | J179: 5.636034e-07 | K179: 2.56224e-07
A180: -1.663 | B180: 1.34889e-06 | C180: 1.54726e-06 | E180: 438 | F180: 746 | G180: -1.771 | H180: 1.04371e-06 | I180: 1.24818e-06 | J180: 5.636034e-07 | K180: 2.56224e-07
A181: -1.664 | B181: 1.34584e-06 | C181: 1.56557e-06 | E181: 437 | F181: 745 | G181: -1.772 | H181: 1.04066e-06 | I181: 1.24818e-06 | J181: 5.619564e-07 | K181: 2.57871e-07
A182: -1.665 | B182: 1.34584e-06 | C182: 1.56862e-06 | E182: 436 | F182: 743 | G182: -1.774 | H182: 1.04371e-06 | I182: 1.26039e-06 | J182: 5.636034e-07 | K182: 2.68434e-07
A183: -1.666 | B183: 1.34889e-06 | C183: 1.58693e-06 | E183: 435 | F183: 741 | G183: -1.776 | H183: 1.04982e-06 | I183: 1.26039e-06 | J183: 5.669028e-07 | K183: 2.651346e-07
A184: -1.667 | B184: 1.35805e-06 | C184: 1.59304e-06 | E184: 434 | F184: 740 | G184: -1.777 | H184: 1.05287e-06 | I184: 1.26344e-06 | J184: 5.685498e-07 | K184: 2.665376e-07
A185: -1.668 | B185: 1.35194e-06 | C185: 1.6083e-06 | E185: 433 | F185: 738 | G185: -1.779 | H185: 1.05287e-06 | I185: 1.27565e-06 | J185: 5.685498e-07 | K185: 2.787476e-07
A186: -1.669 | B186: 1.35194e-06 | C186: 1.62355e-06 | E186: 432 | F186: 736 | G186: -1.781 | H186: 1.05287e-06 | I186: 1.26344e-06 | J186: 5.685498e-07 | K186: 2.665376e-07
A187: -1.67 | B187: 1.34584e-06 | C187: 1.63576e-06 | E187: 431 | F187: 735 | G187: -1.782 | H187: 1.04982e-06 | I187: 1.27565e-06 | J187: 5.669028e-07 | K187: 2.803946e-07
A188: -1.671 | B188: 1.34889e-06 | C188: 1.63881e-06 | E188: 430 | F188: 733 | G188: -1.784 | H188: 1.05897e-06 | I188: 1.27565e-06 | J188: 5.718438e-07 | K188: 2.754536e-07
A189: -1.672 | B189: 1.34584e-06 | C189: 1.65102e-06 | E189: 429 | F189: 731 | G189: -1.786 | H189: 1.05287e-06 | I189: 1.28175e-06 | J189: 5.685498e-07 | K189: 2.848476e-07
A190: -1.673 | B190: 1.34889e-06 | C190: 1.66323e-06 | E190: 428 | F190: 730 | G190: -1.787 | H190: 1.05592e-06 | I190: 1.27565e-06 | J190: 5.701968e-07 | K190: 2.771006e-07
A191: -1.674 | B191: 1.35194e-06 | C191: 1.67544e-06 | E191: 427 | F191: 728 | G191: -1.789 | H191: 1.05592e-06 | I191: 1.2848e-06 | J191: 5.701968e-07 | K191: 2.862506e-07
A192: -1.675 | B192: 1.34279e-06 | C192: 1.68154e-06 | E192: 426 | F192: 726 | G192: -1.791 | H192: 1.05897e-06 | I192: 1.29396e-06 | J192: 5.718438e-07 | K192: 2.937636e-07
A193: -1.676 | B193: 1.35194e-06 | C193: 1.69069e-06 | E193: 425 | F193: 725 | G193: -1.792 | H193: 1.06202e-06 | I193: 1.29396e-06 | J193: 5.734908e-07 | K193: 2.921166e-07
A194: -1.677 | B194: 1.34889e-06 | C194: 1.69985e-06 | E194: 424 | F194: 723 | G194: -1.794 | H194: 1.05592e-06 | I194: 1.29701e-06 | J194: 5.701968e-07 | K194: 2.984606e-07
A195: -1.678 | B195: 1.34889e-06 | C195: 1.71206e-06 | E195: 423 | F195: 721 | G195: -1.796 | H195: 1.06507e-06 | I195: 1.29396e-06 | J195: 5.751378e-07 | K195: 2.904696e-07
A196: -1.679 | B196: 1.34584e-06 | C196: 1.72121e-06 | E196: 422 | F196: 720 | G196: -1.797 | H196: 1.07423e-06 | I196: 1.29396e-06 | J196: 5.800842e-07 | K196: 2.855232e-07
A197: -1.68 | B197: 1.34584e-06 | C197: 1.72732e-06 | E197: 421 | F197: 718 | G197: -1.799 | H197: 1.06507e-06 | I197: 1.29701e-06 | J197: 5.751378e-07 | K197: 2.935196e-07
A198: -1.681 | B198: 1.34889e-06 | C198: 1.74258e-06 | E198: 420 | F198: 716 | G198: -1.801 | H198: 1.07423e-06 | I198: 1.30006e-06 | J198: 5.800842e-07 | K198: 2.916232e-07
A199: -1.682 | B199: 1.34889e-06 | C199: 1.74868e-06 | E199: 419 | F199: 715 | G199: -1.802 | H199: 1.06813e-06 | I199: 1.30006e-06 | J199: 5.767902e-07 | K199: 2.949172e-07
A200: -1.683 | B200: 1.35805e-06 | C200: 1.76089e-06 | E200: 418 | F200: 713 | G200: -1.804 | H200: 1.07423e-06 | I200: 1.30312e-06 | J200: 5.800842e-07 | K200: 2.946832e-07
A201: -1.684 | B201: 1.34889e-06 | C201: 1.77004e-06 | E201: 417 | F201: 711 | G201: -1.806 | H201: 1.07423e-06 | I201: 1.30922e-06 | J201: 5.800842e-07 | K201: 3.007832e-07
A202: -1.685 | B202: 1.35194e-06 | C202: 1.77309e-06 | E202: 416 | F202: 710 | G202: -1.807 | H202: 1.08033e-06 | I202: 1.30922e-06 | J202: 5.833782e-07 | K202: 2.974892e-07
A203: -1.686 | B203: 1.34889e-06 | C203: 1.7853e-06 | E203: 415 | F203: 708 | G203: -1.809 | H203: 1.08033e-06 | I203: 1.30617e-06 | J203: 5.833782e-07 | K203: 2.944392e-07
A204: -1.687 | B204: 1.35194e-06 | C204: 1.78835e-06 | E204: 414 | F204: 706 | G204: -1.811 | H204: 1.07728e-06 | I204: 1.30922e-06 | J204: 5.817312e-07 | K204: 2.991362e-07
... 813 more rows

Sheet Species 1
A1: Species 1 instructions
A3: 1. Enter your concentration, electrochemical, and simulation parameters below.
A4: 2. Mark Eoˊ values as N/A (shorthand for not applicable) to exclude them from the model.
A5: 3. Click on a parameter and adjust manually or press [Ctrl] o for least-squares optimization.
A7: Species concentration: | C7: CBulk = | D7: 1.082e-07 | E7: mol/cm3
A9: Redox 1 (subspecies 1 and 2) | D9: Redox 2 (subspecies 3 and 4) | G9: Redox 3 (subspecies 5 and 6) | J9: Redox 4 (subspecies 7 and 8)
A10: Eoˊ(1,2) = | B10: -1.688 | C10: V | D10: Eoˊ(3,4) = | E10: N/A | F10: V | G10: Eoˊ(5,6) = | H10: N/A | I10: V | J10: Eoˊ(7,8) = | K10: N/A | L10: V
A11: n (1,2) = | B11: 1 | C11: e- | D11: n (3,4) = | E11: 1 | F11: e- | G11: n (5,6) = | H11: 1 | I11: e- | J11: n (7,8) = | K11: 1 | L11: e-
A12: na (1,2) = | B12: 1 | C12: e- | D12: na (3,4) = | E12: 1 | F12: e- | G12: na (5,6) = | H12: 1 | I12: e- | J12: na (7,8) = | K12: 1 | L12: e-
A13: ko(1,2) = | B13: 0.0112 | C13: cm/s | D13: ko(3,4) = | E13: 0.01 | F13: cm/s | G13: ko(5,6) = | H13: 0.01 | I13: cm/s | J13: ko(7,8) = | K13: 0.01 | L13: cm/s
A14: a (1,2) = | B14: 0.3 | D14: a (3,4) = | E14: 0.5 | G14: a (5,6) = | H14: 0.5 | J14: a (7,8) = | K14: 0.5
A15: D (1) = | B15: 1e-05 | C15: cm2/s | D15: D (3) = | E15: 1e-05 | F15: cm2/s | G15: D (5) = | H15: 1e-05 | I15: cm2/s | J15: D (7) = | K15: 1e-05 | L15: cm2/s
A16: D (2) = | B16: 1e-05 | C16: cm2/s | D16: D (4) = | E16: 1e-05 | F16: cm2/s | G16: D (6) = | H16: 1e-05 | I16: cm2/s | J16: D (8) = | K16: 1e-05 | L16: cm2/s
A18: Simulation parameters | D18: Subspecies | E18: kR1 | F18: kA1 | G18: kR2 | H18: kA2 | J18: Simulation constants
A19: E1 = | B19: -1.5 | C19: V | D19: 2 | E19: 0 | F19: 0 | G19: 1600000 | H19: 0 | J19: F = | K19: 96485 | L19: C/mol
A20: E2 = | B20: -2 | C20: V | D20: 3 | E20: 0 | F20: 0 | G20: 0 | H20: 0 | J20: R = | K20: 8.31451 | L20: J/K∙mol
A21: v = | B21: 0.1 | C21: V/s | D21: 4 | E21: 0 | F21: 0 | G21: 0 | H21: 0 | J21: ttotal = | K21: =ABS((($B$20-$B$19)*2)/$B$21) -> 10 | L21: s
A22: A = | B22: 0.0357 | C22: cm2 | D22: 5 | E22: 0 | F22: 0 | G22: 0 | H22: 0 | J22: Dt = | K22: =$K$21/600 -> 0.01666666667 | L22: s
A23: T = | B23: 293.15 | C23: K | D23: 6 | E23: 0 | F23: 0 | G23: 0 | H23: 0 | J23: xtotal = | K23: =($B$24/100)*6*SQRT($B$15*$K$21) -> 0.06 | L23: cm
A24: xScale = | B24: 100 | C24: % | D24: 7 | E24: 0 | F24: 0 | G24: 0 | H24: 0 | J24: Dx = | K24: =$K$23/49 -> 0.001224489796 | L24: cm
A25: g = | B25: 1 | C25: unitless | D25: 8 | E25: 0 | F25: 0 | G25: 0 | H25: 0
A26: CC = | B26: P | C26: (I or P) | D26: units | E26: s-1 | F26: s-1 | G26: cm3/mol∙s | H26: cm3/mol∙s | J26: Red are boundary conditions
A28: Simulated potential ramp | D28: Simulated currents from the redox processes and total (A) | J28: Simulated CV for species
A29: Time (s) | B29: Potl (V) | D29: Redox 1 | E29: Redox 2 | F29: Redox 3 | G29: Redox 4 | H29: Total | J29: Potl (V) | K29: Total (A)
A30: =A31+$K$22 -> 10 | B30: =B31-(($B$20-$B$19)/300) -> -1.5 | D30: =IF($B$26="I",$B$11*$K$19*$B$22*C1238,-$B$11*$K$19*$B$22*C1238) -> -1.358651487e-07 | E30: =IF($B$26="I",$E$11*$K$19*$B$22*J1238,-$E$11*$K$19*$B$22*J1238) -> 0 | F30: =IF($B$26="I",$H$11*$K$19*$B$22*Q1238,-$H$11*$K$19*$B$22*Q1238) -> 0 | G30: =IF($B$26="I",$K$11*$K$19*$B$22*X1238,-$K$11*$K$19*$B$22*X1238) -> 0 | H30: =IF($B$19>$B$20,D30+E30+F30+G30,-(D30+E30+F30+G30)) -> -1.358651487e-07 | J30: =B30 -> -1.5 | K30: =H30 -> -1.358651487e-07
A31: 9.983333333 | B31: -1.501666667 | D31: -1.371849098e-07 | E31: 0 | F31: 0 | G31: 0 | H31: -1.371849098e-07 | J31: =B31 -> -1.501666667 | K31: =H31 -> -1.371849098e-07
A32: 9.966666667 | B32: -1.503333333 | D32: -1.385287272e-07 | E32: 0 | F32: 0 | G32: 0 | H32: -1.385287272e-07 | J32: -1.503333333 | K32: -1.385287272e-07
A33: 9.95 | B33: -1.505 | D33: -1.398971996e-07 | E33: 0 | F33: 0 | G33: 0 | H33: -1.398971996e-07 | J33: -1.505 | K33: -1.398971996e-07
A34: 9.933333333 | B34: -1.506666667 | D34: -1.412909405e-07 | E34: 0 | F34: 0 | G34: 0 | H34: -1.412909405e-07 | J34: -1.506666667 | K34: -1.412909405e-07
A35: 9.916666667 | B35: -1.508333333 | D35: -1.427105781e-07 | E35: 0 | F35: 0 | G35: 0 | H35: -1.427105781e-07 | J35: -1.508333333 | K35: -1.427105781e-07
A36: 9.9 | B36: -1.51 | D36: -1.441567553e-07 | E36: 0 | F36: 0 | G36: 0 | H36: -1.441567553e-07 | J36: -1.51 | K36: -1.441567553e-07
A37: 9.883333333 | B37: -1.511666667 | D37: -1.456301302e-07 | E37: 0 | F37: 0 | G37: 0 | H37: -1.456301302e-07 | J37: -1.511666667 | K37: -1.456301302e-07
A38: 9.866666667 | B38: -1.513333333 | D38: -1.471313752e-07 | E38: 0 | F38: 0 | G38: 0 | H38: -1.471313752e-07 | J38: -1.513333333 | K38: -1.471313752e-07
A39: 9.85 | B39: -1.515 | D39: -1.486611778e-07 | E39: 0 | F39: 0 | G39: 0 | H39: -1.486611778e-07 | J39: -1.515 | K39: -1.486611778e-07
A40: 9.833333333 | B40: -1.516666667 | D40: -1.502202396e-07 | E40: 0 | F40: 0 | G40: 0 | H40: -1.502202396e-07 | J40: -1.516666667 | K40: -1.502202396e-07
A41: 9.816666667 | B41: -1.518333333 | D41: -1.518092764e-07 | E41: 0 | F41: 0 | G41: 0 | H41: -1.518092764e-07 | J41: -1.518333333 | K41: -1.518092764e-07
A42: 9.8 | B42: -1.52 | D42: -1.53429018e-07 | E42: 0 | F42: 0 | G42: 0 | H42: -1.53429018e-07 | J42: -1.52 | K42: -1.53429018e-07
A43: 9.783333333 | B43: -1.521666667 | D43: -1.550802075e-07 | E43: 0 | F43: 0 | G43: 0 | H43: -1.550802075e-07 | J43: -1.521666667 | K43: -1.550802075e-07
A44: 9.766666667 | B44: -1.523333333 | D44: -1.567636009e-07 | E44: 0 | F44: 0 | G44: 0 | H44: -1.567636009e-07 | J44: -1.523333333 | K44: -1.567636009e-07
A45: 9.75 | B45: -1.525 | D45: -1.584799666e-07 | E45: 0 | F45: 0 | G45: 0 | H45: -1.584799666e-07 | J45: -1.525 | K45: -1.584799666e-07
A46: 9.733333333 | B46: -1.526666667 | D46: -1.602300841e-07 | E46: 0 | F46: 0 | G46: 0 | H46: -1.602300841e-07 | J46: -1.526666667 | K46: -1.602300841e-07
A47: 9.716666667 | B47: -1.528333333 | D47: -1.620147439e-07 | E47: 0 | F47: 0 | G47: 0 | H47: -1.620147439e-07 | J47: -1.528333333 | K47: -1.620147439e-07
A48: 9.7 | B48: -1.53 | D48: -1.638347457e-07 | E48: 0 | F48: 0 | G48: 0 | H48: -1.638347457e-07 | J48: -1.53 | K48: -1.638347457e-07
A49: 9.683333333 | B49: -1.531666667 | D49: -1.656908978e-07 | E49: 0 | F49: 0 | G49: 0 | H49: -1.656908978e-07 | J49: -1.531666667 | K49: -1.656908978e-07
A50: 9.666666667 | B50: -1.533333333 | D50: -1.675840152e-07 | E50: 0 | F50: 0 | G50: 0 | H50: -1.675840152e-07 | J50: -1.533333333 | K50: -1.675840152e-07
A51: 9.65 | B51: -1.535 | D51: -1.695149184e-07 | E51: 0 | F51: 0 | G51: 0 | H51: -1.695149184e-07 | J51: -1.535 | K51: -1.695149184e-07
A52: 9.633333333 | B52: -1.536666667 | D52: -1.714844313e-07 | E52: 0 | F52: 0 | G52: 0 | H52: -1.714844313e-07 | J52: -1.536666667 | K52: -1.714844313e-07
A53: 9.616666667 | B53: -1.538333333 | D53: -1.734933793e-07 | E53: 0 | F53: 0 | G53: 0 | H53: -1.734933793e-07 | J53: -1.538333333 | K53: -1.734933793e-07
A54: 9.6 | B54: -1.54 | D54: -1.75542587e-07 | E54: 0 | F54: 0 | G54: 0 | H54: -1.75542587e-07 | J54: -1.54 | K54: -1.75542587e-07
A55: 9.583333333 | B55: -1.541666667 | D55: -1.776328754e-07 | E55: 0 | F55: 0 | G55: 0 | H55: -1.776328754e-07 | J55: -1.541666667 | K55: -1.776328754e-07
A56: 9.566666667 | B56: -1.543333333 | D56: -1.797650593e-07 | E56: 0 | F56: 0 | G56: 0 | H56: -1.797650593e-07 | J56: -1.543333333 | K56: -1.797650593e-07
A57: 9.55 | B57: -1.545 | D57: -1.819399438e-07 | E57: 0 | F57: 0 | G57: 0 | H57: -1.819399438e-07 | J57: -1.545 | K57: -1.819399438e-07
A58: 9.533333333 | B58: -1.546666667 | D58: -1.841583207e-07 | E58: 0 | F58: 0 | G58: 0 | H58: -1.841583207e-07 | J58: -1.546666667 | K58: -1.841583207e-07
A59: 9.516666667 | B59: -1.548333333 | D59: -1.864209646e-07 | E59: 0 | F59: 0 | G59: 0 | H59: -1.864209646e-07 | J59: -1.548333333 | K59: -1.864209646e-07
A60: 9.5 | B60: -1.55 | D60: -1.887286281e-07 | E60: 0 | F60: 0 | G60: 0 | H60: -1.887286281e-07 | J60: -1.55 | K60: -1.887286281e-07
A61: 9.483333333 | B61: -1.551666667 | D61: -1.910820374e-07 | E61: 0 | F61: 0 | G61: 0 | H61: -1.910820374e-07 | J61: -1.551666667 | K61: -1.910820374e-07
A62: 9.466666667 | B62: -1.553333333 | D62: -1.934818862e-07 | E62: 0 | F62: 0 | G62: 0 | H62: -1.934818862e-07 | J62: -1.553333333 | K62: -1.934818862e-07
A63: 9.45 | B63: -1.555 | D63: -1.959288302e-07 | E63: 0 | F63: 0 | G63: 0 | H63: -1.959288302e-07 | J63: -1.555 | K63: -1.959288302e-07
A64: 9.433333333 | B64: -1.556666667 | D64: -1.984234802e-07 | E64: 0 | F64: 0 | G64: 0 | H64: -1.984234802e-07 | J64: -1.556666667 | K64: -1.984234802e-07
A65: 9.416666667 | B65: -1.558333333 | D65: -2.009663948e-07 | E65: 0 | F65: 0 | G65: 0 | H65: -2.009663948e-07 | J65: -1.558333333 | K65: -2.009663948e-07
A66: 9.4 | B66: -1.56 | D66: -2.035580727e-07 | E66: 0 | F66: 0 | G66: 0 | H66: -2.035580727e-07 | J66: -1.56 | K66: -2.035580727e-07
A67: 9.383333333 | B67: -1.561666667 | D67: -2.06198944e-07 | E67: 0 | F67: 0 | G67: 0 | H67: -2.06198944e-07 | J67: -1.561666667 | K67: -2.06198944e-07
A68: 9.366666667 | B68: -1.563333333 | D68: -2.088893602e-07 | E68: 0 | F68: 0 | G68: 0 | H68: -2.088893602e-07 | J68: -1.563333333 | K68: -2.088893602e-07
A69: 9.35 | B69: -1.565 | D69: -2.116295846e-07 | E69: 0 | F69: 0 | G69: 0 | H69: -2.116295846e-07 | J69: -1.565 | K69: -2.116295846e-07
A70: 9.333333333 | B70: -1.566666667 | D70: -2.144197807e-07 | E70: 0 | F70: 0 | G70: 0 | H70: -2.144197807e-07 | J70: -1.566666667 | K70: -2.144197807e-07
A71: 9.316666667 | B71: -1.568333333 | D71: -2.172599998e-07 | E71: 0 | F71: 0 | G71: 0 | H71: -2.172599998e-07 | J71: -1.568333333 | K71: -2.172599998e-07
A72: 9.3 | B72: -1.57 | D72: -2.201501686e-07 | E72: 0 | F72: 0 | G72: 0 | H72: -2.201501686e-07 | J72: -1.57 | K72: -2.201501686e-07
A73: 9.283333333 | B73: -1.571666667 | D73: -2.23090074e-07 | E73: 0 | F73: 0 | G73: 0 | H73: -2.23090074e-07 | J73: -1.571666667 | K73: -2.23090074e-07
A74: 9.266666667 | B74: -1.573333333 | D74: -2.260793486e-07 | E74: 0 | F74: 0 | G74: 0 | H74: -2.260793486e-07 | J74: -1.573333333 | K74: -2.260793486e-07
A75: 9.25 | B75: -1.575 | D75: -2.291174538e-07 | E75: 0 | F75: 0 | G75: 0 | H75: -2.291174538e-07 | J75: -1.575 | K75: -2.291174538e-07
A76: 9.233333333 | B76: -1.576666667 | D76: -2.322036621e-07 | E76: 0 | F76: 0 | G76: 0 | H76: -2.322036621e-07 | J76: -1.576666667 | K76: -2.322036621e-07
A77: 9.216666667 | B77: -1.578333333 | D77: -2.353370383e-07 | E77: 0 | F77: 0 | G77: 0 | H77: -2.353370383e-07 | J77: -1.578333333 | K77: -2.353370383e-07
A78: 9.2 | B78: -1.58 | D78: -2.385164195e-07 | E78: 0 | F78: 0 | G78: 0 | H78: -2.385164195e-07 | J78: -1.58 | K78: -2.385164195e-07
A79: 9.183333333 | B79: -1.581666667 | D79: -2.417403932e-07 | E79: 0 | F79: 0 | G79: 0 | H79: -2.417403932e-07 | J79: -1.581666667 | K79: -2.417403932e-07
A80: 9.166666667 | B80: -1.583333333 | D80: -2.450072746e-07 | E80: 0 | F80: 0 | G80: 0 | H80: -2.450072746e-07 | J80: -1.583333333 | K80: -2.450072746e-07
A81: 9.15 | B81: -1.585 | D81: -2.48315083e-07 | E81: 0 | F81: 0 | G81: 0 | H81: -2.48315083e-07 | J81: -1.585 | K81: -2.48315083e-07
A82: 9.133333333 | B82: -1.586666667 | D82: -2.516615156e-07 | E82: 0 | F82: 0 | G82: 0 | H82: -2.516615156e-07 | J82: -1.586666667 | K82: -2.516615156e-07
A83: 9.116666667 | B83: -1.588333333 | D83: -2.550439214e-07 | E83: 0 | F83: 0 | G83: 0 | H83: -2.550439214e-07 | J83: -1.588333333 | K83: -2.550439214e-07
A84: 9.1 | B84: -1.59 | D84: -2.584592733e-07 | E84: 0 | F84: 0 | G84: 0 | H84: -2.584592733e-07 | J84: -1.59 | K84: -2.584592733e-07
A85: 9.083333333 | B85: -1.591666667 | D85: -2.619041387e-07 | E85: 0 | F85: 0 | G85: 0 | H85: -2.619041387e-07 | J85: -1.591666667 | K85: -2.619041387e-07
A86: 9.066666667 | B86: -1.593333333 | D86: -2.653746498e-07 | E86: 0 | F86: 0 | G86: 0 | H86: -2.653746498e-07 | J86: -1.593333333 | K86: -2.653746498e-07
A87: 9.05 | B87: -1.595 | D87: -2.688664729e-07 | E87: 0 | F87: 0 | G87: 0 | H87: -2.688664729e-07 | J87: -1.595 | K87: -2.688664729e-07
A88: 9.033333333 | B88: -1.596666667 | D88: -2.723747761e-07 | E88: 0 | F88: 0 | G88: 0 | H88: -2.723747761e-07 | J88: -1.596666667 | K88: -2.723747761e-07
A89: 9.016666667 | B89: -1.598333333 | D89: -2.758941979e-07 | E89: 0 | F89: 0 | G89: 0 | H89: -2.758941979e-07 | J89: -1.598333333 | K89: -2.758941979e-07
A90: 9 | B90: -1.6 | D90: -2.794188144e-07 | E90: 0 | F90: 0 | G90: 0 | H90: -2.794188144e-07 | J90: -1.6 | K90: -2.794188144e-07
A91: 8.983333333 | B91: -1.601666667 | D91: -2.829421076e-07 | E91: 0 | F91: 0 | G91: 0 | H91: -2.829421076e-07 | J91: -1.601666667 | K91: -2.829421076e-07
A92: 8.966666667 | B92: -1.603333333 | D92: -2.86456933e-07 | E92: 0 | F92: 0 | G92: 0 | H92: -2.86456933e-07 | J92: -1.603333333 | K92: -2.86456933e-07
A93: 8.95 | B93: -1.605 | D93: -2.899554892e-07 | E93: 0 | F93: 0 | G93: 0 | H93: -2.899554892e-07 | J93: -1.605 | K93: -2.899554892e-07
A94: =A95+$K$22 -> 8.933333333 | B94: =B95-(($B$20-$B$19)/300) -> -1.606666667 | D94: =IF($B$26="I",$B$11*$K$19*$B$22*C1302,-$B$11*$K$19*$B$22*C1302) -> -2.934292884e-07 | E94: =IF($B$26="I",$E$11*$K$19*$B$22*J1302,-$E$11*$K$19*$B$22*J1302) -> 0 | F94: =IF($B$26="I",$H$11*$K$19*$B$22*Q1302,-$H$11*$K$19*$B$22*Q1302) -> 0 | G94: =IF($B$26="I",$K$11*$K$19*$B$22*X1302,-$K$11*$K$19*$B$22*X1302) -> 0 | H94: =IF($B$19>$B$20,D94+E94+F94+G94,-(D94+E94+F94+G94)) -> -2.934292884e-07 | J94: -1.606666667 | K94: -2.934292884e-07
A95: 8.916666667 | B95: -1.608333333 | D95: -2.968691284e-07 | E95: 0 | F95: 0 | G95: 0 | H95: -2.968691284e-07 | J95: =B95 -> -1.608333333 | K95: =H95 -> -2.968691284e-07
A96: 8.9 | B96: -1.61 | D96: -3.002650681e-07 | E96: 0 | F96: 0 | G96: 0 | H96: -3.002650681e-07 | J96: -1.61 | K96: -3.002650681e-07
A97: 8.883333333 | B97: -1.611666667 | D97: -3.036064056e-07 | E97: 0 | F97: 0 | G97: 0 | H97: -3.036064056e-07 | J97: -1.611666667 | K97: -3.036064056e-07
A98: 8.866666667 | B98: -1.613333333 | D98: -3.068816601e-07 | E98: 0 | F98: 0 | G98: 0 | H98: -3.068816601e-07 | J98: -1.613333333 | K98: -3.068816601e-07
A99: 8.85 | B99: -1.615 | D99: -3.100785593e-07 | E99: 0 | F99: 0 | G99: 0 | H99: -3.100785593e-07 | J99: -1.615 | K99: -3.100785593e-07
A100: 8.833333333 | B100: -1.616666667 | D100: -3.131840318e-07 | E100: 0 | F100: 0 | G100: 0 | H100: -3.131840318e-07 | J100: -1.616666667 | K100: -3.131840318e-07
A101: 8.816666667 | B101: -1.618333333 | D101: -3.161842065e-07 | E101: 0 | F101: 0 | G101: 0 | H101: -3.161842065e-07 | J101: -1.618333333 | K101: -3.161842065e-07
A102: 8.8 | B102: -1.62 | D102: -3.190644194e-07 | E102: 0 | F102: 0 | G102: 0 | H102: -3.190644194e-07 | J102: -1.62 | K102: -3.190644194e-07
A103: 8.783333333 | B103: -1.621666667 | D103: -3.218092289e-07 | E103: 0 | F103: 0 | G103: 0 | H103: -3.218092289e-07 | J103: -1.621666667 | K103: -3.218092289e-07
A104: 8.766666667 | B104: -1.623333333 | D104: -3.244024407e-07 | E104: 0 | F104: 0 | G104: 0 | H104: -3.244024407e-07 | J104: -1.623333333 | K104: -3.244024407e-07
A105: 8.75 | B105: -1.625 | D105: -3.268271431e-07 | E105: 0 | F105: 0 | G105: 0 | H105: -3.268271431e-07 | J105: -1.625 | K105: -3.268271431e-07
A106: 8.733333333 | B106: -1.626666667 | D106: -3.290657539e-07 | E106: 0 | F106: 0 | G106: 0 | H106: -3.290657539e-07 | J106: -1.626666667 | K106: -3.290657539e-07
A107: 8.716666667 | B107: -1.628333333 | D107: -3.311000798e-07 | E107: 0 | F107: 0 | G107: 0 | H107: -3.311000798e-07 | J107: -1.628333333 | K107: -3.311000798e-07
A108: 8.7 | B108: -1.63 | D108: -3.329113881e-07 | E108: 0 | F108: 0 | G108: 0 | H108: -3.329113881e-07 | J108: -1.63 | K108: -3.329113881e-07
A109: 8.683333333 | B109: -1.631666667 | D109: -3.344804935e-07 | E109: 0 | F109: 0 | G109: 0 | H109: -3.344804935e-07 | J109: -1.631666667 | K109: -3.344804935e-07
A110: 8.666666667 | B110: -1.633333333 | D110: -3.357878578e-07 | E110: 0 | F110: 0 | G110: 0 | H110: -3.357878578e-07 | J110: -1.633333333 | K110: -3.357878578e-07
A111: 8.65 | B111: -1.635 | D111: -3.368137052e-07 | E111: 0 | F111: 0 | G111: 0 | H111: -3.368137052e-07 | J111: -1.635 | K111: -3.368137052e-07
A112: 8.633333333 | B112: -1.636666667 | D112: -3.375381514e-07 | E112: 0 | F112: 0 | G112: 0 | H112: -3.375381514e-07 | J112: -1.636666667 | K112: -3.375381514e-07
A113: 8.616666667 | B113: -1.638333333 | D113: -3.379413473e-07 | E113: 0 | F113: 0 | G113: 0 | H113: -3.379413473e-07 | J113: -1.638333333 | K113: -3.379413473e-07
A114: 8.6 | B114: -1.64 | D114: -3.380036365e-07 | E114: 0 | F114: 0 | G114: 0 | H114: -3.380036365e-07 | J114: -1.64 | K114: -3.380036365e-07
A115: 8.583333333 | B115: -1.641666667 | D115: -3.377057258e-07 | E115: 0 | F115: 0 | G115: 0 | H115: -3.377057258e-07 | J115: -1.641666667 | K115: -3.377057258e-07
A116: 8.566666667 | B116: -1.643333333 | D116: -3.370288663e-07 | E116: 0 | F116: 0 | G116: 0 | H116: -3.370288663e-07 | J116: -1.643333333 | K116: -3.370288663e-07
A117: 8.55 | B117: -1.645 | D117: -3.359550453e-07 | E117: 0 | F117: 0 | G117: 0 | H117: -3.359550453e-07 | J117: -1.645 | K117: -3.359550453e-07
A118: 8.533333333 | B118: -1.646666667 | D118: -3.344671855e-07 | E118: 0 | F118: 0 | G118: 0 | H118: -3.344671855e-07 | J118: -1.646666667 | K118: -3.344671855e-07
A119: 8.516666667 | B119: -1.648333333 | D119: -3.325493491e-07 | E119: 0 | F119: 0 | G119: 0 | H119: -3.325493491e-07 | J119: -1.648333333 | K119: -3.325493491e-07
A120: 8.5 | B120: -1.65 | D120: -3.301869451e-07 | E120: 0 | F120: 0 | G120: 0 | H120: -3.301869451e-07 | J120: -1.65 | K120: -3.301869451e-07
A121: 8.483333333 | B121: -1.651666667 | D121: -3.273669345e-07 | E121: 0 | F121: 0 | G121: 0 | H121: -3.273669345e-07 | J121: -1.651666667 | K121: -3.273669345e-07
A122: 8.466666667 | B122: -1.653333333 | D122: -3.240780323e-07 | E122: 0 | F122: 0 | G122: 0 | H122: -3.240780323e-07 | J122: -1.653333333 | K122: -3.240780323e-07
A123: 8.45 | B123: -1.655 | D123: -3.20310901e-07 | E123: 0 | F123: 0 | G123: 0 | H123: -3.20310901e-07 | J123: -1.655 | K123: -3.20310901e-07
A124: 8.433333333 | B124: -1.656666667 | D124: -3.160583321e-07 | E124: 0 | F124: 0 | G124: 0 | H124: -3.160583321e-07 | J124: -1.656666667 | K124: -3.160583321e-07
A125: 8.416666667 | B125: -1.658333333 | D125: -3.113154118e-07 | E125: 0 | F125: 0 | G125: 0 | H125: -3.113154118e-07 | J125: -1.658333333 | K125: -3.113154118e-07
A126: 8.4 | B126: -1.66 | D126: -3.060796674e-07 | E126: 0 | F126: 0 | G126: 0 | H126: -3.060796674e-07 | J126: -1.66 | K126: -3.060796674e-07
A127: 8.383333333 | B127: -1.661666667 | D127: -3.003511904e-07 | E127: 0 | F127: 0 | G127: 0 | H127: -3.003511904e-07 | J127: -1.661666667 | K127: -3.003511904e-07
A128: 8.366666667 | B128: -1.663333333 | D128: -2.941327321e-07 | E128: 0 | F128: 0 | G128: 0 | H128: -2.941327321e-07 | J128: -1.663333333 | K128: -2.941327321e-07
A129: 8.35 | B129: -1.665 | D129: -2.87429771e-07 | E129: 0 | F129: 0 | G129: 0 | H129: -2.87429771e-07 | J129: -1.665 | K129: -2.87429771e-07
A130: 8.333333333 | B130: -1.666666667 | D130: -2.802505468e-07 | E130: 0 | F130: 0 | G130: 0 | H130: -2.802505468e-07 | J130: -1.666666667 | K130: -2.802505468e-07
A131: 8.316666667 | B131: -1.668333333 | D131: -2.726060613e-07 | E131: 0 | F131: 0 | G131: 0 | H131: -2.726060613e-07 | J131: -1.668333333 | K131: -2.726060613e-07
A132: 8.3 | B132: -1.67 | D132: -2.645100436e-07 | E132: 0 | F132: 0 | G132: 0 | H132: -2.645100436e-07 | J132: -1.67 | K132: -2.645100436e-07
A133: 8.283333333 | B133: -1.671666667 | D133: -2.559788803e-07 | E133: 0 | F133: 0 | G133: 0 | H133: -2.559788803e-07 | J133: -1.671666667 | K133: -2.559788803e-07
A134: 8.266666667 | B134: -1.673333333 | D134: -2.470315103e-07 | E134: 0 | F134: 0 | G134: 0 | H134: -2.470315103e-07 | J134: -1.673333333 | K134: -2.470315103e-07
A135: 8.25 | B135: -1.675 | D135: -2.376892857e-07 | E135: 0 | F135: 0 | G135: 0 | H135: -2.376892857e-07 | J135: -1.675 | K135: -2.376892857e-07
A136: 8.233333333 | B136: -1.676666667 | D136: -2.279758008e-07 | E136: 0 | F136: 0 | G136: 0 | H136: -2.279758008e-07 | J136: -1.676666667 | K136: -2.279758008e-07
A137: 8.216666667 | B137: -1.678333333 | D137: -2.179166916e-07 | E137: 0 | F137: 0 | G137: 0 | H137: -2.179166916e-07 | J137: -1.678333333 | K137: -2.179166916e-07
A138: 8.2 | B138: -1.68 | D138: -2.075394098e-07 | E138: 0 | F138: 0 | G138: 0 | H138: -2.075394098e-07 | J138: -1.68 | K138: -2.075394098e-07
A139: 8.183333333 | B139: -1.681666667 | D139: -1.968729748e-07 | E139: 0 | F139: 0 | G139: 0 | H139: -1.968729748e-07 | J139: -1.681666667 | K139: -1.968729748e-07
A140: 8.166666667 | B140: -1.683333333 | D140: -1.859477078e-07 | E140: 0 | F140: 0 | G140: 0 | H140: -1.859477078e-07 | J140: -1.683333333 | K140: -1.859477078e-07
A141: 8.15 | B141: -1.685 | D141: -1.747949537e-07 | E141: 0 | F141: 0 | G141: 0 | H141: -1.747949537e-07 | J141: -1.685 | K141: -1.747949537e-07
A142: 8.133333333 | B142: -1.686666667 | D142: -1.634467949e-07 | E142: 0 | F142: 0 | G142: 0 | H142: -1.634467949e-07 | J142: -1.686666667 | K142: -1.634467949e-07
A143: 8.116666667 | B143: -1.688333333 | D143: -1.519357627e-07 | E143: 0 | F143: 0 | G143: 0 | H143: -1.519357627e-07 | J143: -1.688333333 | K143: -1.519357627e-07
A144: 8.1 | B144: -1.69 | D144: -1.4029455e-07 | E144: 0 | F144: 0 | G144: 0 | H144: -1.4029455e-07 | J144: -1.69 | K144: -1.4029455e-07
A145: 8.083333333 | B145: -1.691666667 | D145: -1.28555732e-07 | E145: 0 | F145: 0 | G145: 0 | H145: -1.28555732e-07 | J145: -1.691666667 | K145: -1.28555732e-07
A146: 8.066666667 | B146: -1.693333333 | D146: -1.16751497e-07 | E146: 0 | F146: 0 | G146: 0 | H146: -1.16751497e-07 | J146: -1.693333333 | K146: -1.16751497e-07
A147: 8.05 | B147: -1.695 | D147: -1.049133934e-07 | E147: 0 | F147: 0 | G147: 0 | H147: -1.049133934e-07 | J147: -1.695 | K147: -1.049133934e-07
A148: 8.033333333 | B148: -1.696666667 | D148: -9.307209368e-08 | E148: 0 | F148: 0 | G148: 0 | H148: -9.307209368e-08 | J148: -1.696666667 | K148: -9.307209368e-08
A149: 8.016666667 | B149: -1.698333333 | D149: -8.125718174e-08 | E149: 0 | F149: 0 | G149: 0 | H149: -8.125718174e-08 | J149: -1.698333333 | K149: -8.125718174e-08
A150: 8 | B150: -1.7 | D150: -6.949696203e-08 | E150: 0 | F150: 0 | G150: 0 | H150: -6.949696203e-08 | J150: -1.7 | K150: -6.949696203e-08
A151: 7.983333333 | B151: -1.701666667 | D151: -5.781829477e-08 | E151: 0 | F151: 0 | G151: 0 | H151: -5.781829477e-08 | J151: -1.701666667 | K151: -5.781829477e-08
A152: 7.966666667 | B152: -1.703333333 | D152: -4.624645703e-08 | E152: 0 | F152: 0 | G152: 0 | H152: -4.624645703e-08 | J152: -1.703333333 | K152: -4.624645703e-08
A153: 7.95 | B153: -1.705 | D153: -3.480503022e-08 | E153: 0 | F153: 0 | G153: 0 | H153: -3.480503022e-08 | J153: -1.705 | K153: -3.480503022e-08
A154: 7.933333333 | B154: -1.706666667 | D154: -2.351581391e-08 | E154: 0 | F154: 0 | G154: 0 | H154: -2.351581391e-08 | J154: -1.706666667 | K154: -2.351581391e-08
A155: 7.916666667 | B155: -1.708333333 | D155: -1.239876519e-08 | E155: 0 | F155: 0 | G155: 0 | H155: -1.239876519e-08 | J155: -1.708333333 | K155: -1.239876519e-08
A156: 7.9 | B156: -1.71 | D156: -1.471962517e-09 | E156: 0 | F156: 0 | G156: 0 | H156: -1.471962517e-09 | J156: -1.71 | K156: -1.471962517e-09
A157: 7.883333333 | B157: -1.711666667 | D157: 9.248407555e-09 | E157: 0 | F157: 0 | G157: 0 | H157: 9.248407555e-09 | J157: -1.711666667 | K157: 9.248407555e-09
A158: =A159+$K$22 -> 7.866666667 | B158: =B159-(($B$20-$B$19)/300) -> -1.713333333 | D158: =IF($B$26="I",$B$11*$K$19*$B$22*C1366,-$B$11*$K$19*$B$22*C1366) -> 1.974804243e-08 | E158: =IF($B$26="I",$E$11*$K$19*$B$22*J1366,-$E$11*$K$19*$B$22*J1366) -> 0 | F158: =IF($B$26="I",$H$11*$K$19*$B$22*Q1366,-$H$11*$K$19*$B$22*Q1366) -> 0 | G158: =IF($B$26="I",$K$11*$K$19*$B$22*X1366,-$K$11*$K$19*$B$22*X1366) -> 0 | H158: =IF($B$19>$B$20,D158+E158+F158+G158,-(D158+E158+F158+G158)) -> 1.974804243e-08 | J158: -1.713333333 | K158: 1.974804243e-08
A159: 7.85 | B159: -1.715 | D159: 3.001449639e-08 | E159: 0 | F159: 0 | G159: 0 | H159: 3.001449639e-08 | J159: =B159 -> -1.715 | K159: =H159 -> 3.001449639e-08
A160: 7.833333333 | B160: -1.716666667 | D160: 4.003713651e-08 | E160: 0 | F160: 0 | G160: 0 | H160: 4.003713651e-08 | J160: -1.716666667 | K160: 4.003713651e-08
A161: 7.816666667 | B161: -1.718333333 | D161: 4.980708377e-08 | E161: 0 | F161: 0 | G161: 0 | H161: 4.980708377e-08 | J161: -1.718333333 | K161: 4.980708377e-08
A162: 7.8 | B162: -1.72 | D162: 5.931714171e-08 | E162: 0 | F162: 0 | G162: 0 | H162: 5.931714171e-08 | J162: -1.72 | K162: 5.931714171e-08
A163: 7.783333333 | B163: -1.721666667 | D163: 6.856171474e-08 | E163: 0 | F163: 0 | G163: 0 | H163: 6.856171474e-08 | J163: -1.721666667 | K163: 6.856171474e-08
A164: 7.766666667 | B164: -1.723333333 | D164: 7.753671831e-08 | E164: 0 | F164: 0 | G164: 0 | H164: 7.753671831e-08 | J164: -1.723333333 | K164: 7.753671831e-08
A165: 7.75 | B165: -1.725 | D165: 8.6239483e-08 | E165: 0 | F165: 0 | G165: 0 | H165: 8.6239483e-08 | J165: -1.725 | K165: 8.6239483e-08
A166: 7.733333333 | B166: -1.726666667 | D166: 9.466865436e-08 | E166: 0 | F166: 0 | G166: 0 | H166: 9.466865436e-08 | J166: -1.726666667 | K166: 9.466865436e-08
A167: 7.716666667 | B167: -1.728333333 | D167: 1.028240903e-07 | E167: 0 | F167: 0 | G167: 0 | H167: 1.028240903e-07 | J167: -1.728333333 | K167: 1.028240903e-07
A168: 7.7 | B168: -1.73 | D168: 1.107067574e-07 | E168: 0 | F168: 0 | G168: 0 | H168: 1.107067574e-07 | J168: -1.73 | K168: 1.107067574e-07
A169: 7.683333333 | B169: -1.731666667 | D169: 1.18318628e-07 | E169: 0 | F169: 0 | G169: 0 | H169: 1.18318628e-07 | J169: -1.731666667 | K169: 1.18318628e-07
A170: 7.666666667 | B170: -1.733333333 | D170: 1.256625787e-07 | E170: 0 | F170: 0 | G170: 0 | H170: 1.256625787e-07 | J170: -1.733333333 | K170: 1.256625787e-07
A171: 7.65 | B171: -1.735 | D171: 1.327422913e-07 | E171: 0 | F171: 0 | G171: 0 | H171: 1.327422913e-07 | J171: -1.735 | K171: 1.327422913e-07
A172: 7.633333333 | B172: -1.736666667 | D172: 1.395621576e-07 | E172: 0 | F172: 0 | G172: 0 | H172: 1.395621576e-07 | J172: -1.736666667 | K172: 1.395621576e-07
A173: 7.616666667 | B173: -1.738333333 | D173: 1.461271884e-07 | E173: 0 | F173: 0 | G173: 0 | H173: 1.461271884e-07 | J173: -1.738333333 | K173: 1.461271884e-07
A174: 7.6 | B174: -1.74 | D174: 1.524429266e-07 | E174: 0 | F174: 0 | G174: 0 | H174: 1.524429266e-07 | J174: -1.74 | K174: 1.524429266e-07
A175: 7.583333333 | B175: -1.741666667 | D175: 1.585153662e-07 | E175: 0 | F175: 0 | G175: 0 | H175: 1.585153662e-07 | J175: -1.741666667 | K175: 1.585153662e-07
A176: 7.566666667 | B176: -1.743333333 | D176: 1.643508757e-07 | E176: 0 | F176: 0 | G176: 0 | H176: 1.643508757e-07 | J176: -1.743333333 | K176: 1.643508757e-07
A177: 7.55 | B177: -1.745 | D177: 1.699561277e-07 | E177: 0 | F177: 0 | G177: 0 | H177: 1.699561277e-07 | J177: -1.745 | K177: 1.699561277e-07
A178: 7.533333333 | B178: -1.746666667 | D178: 1.753380338e-07 | E178: 0 | F178: 0 | G178: 0 | H178: 1.753380338e-07 | J178: -1.746666667 | K178: 1.753380338e-07
A179: 7.516666667 | B179: -1.748333333 | D179: 1.805036848e-07 | E179: 0 | F179: 0 | G179: 0 | H179: 1.805036848e-07 | J179: -1.748333333 | K179: 1.805036848e-07
A180: 7.5 | B180: -1.75 | D180: 1.854602965e-07 | E180: 0 | F180: 0 | G180: 0 | H180: 1.854602965e-07 | J180: -1.75 | K180: 1.854602965e-07
A181: 7.483333333 | B181: -1.751666667 | D181: 1.902151606e-07 | E181: 0 | F181: 0 | G181: 0 | H181: 1.902151606e-07 | J181: -1.751666667 | K181: 1.902151606e-07
A182: 7.466666667 | B182: -1.753333333 | D182: 1.947756006e-07 | E182: 0 | F182: 0 | G182: 0 | H182: 1.947756006e-07 | J182: -1.753333333 | K182: 1.947756006e-07
A183: 7.45 | B183: -1.755 | D183: 1.99148933e-07 | E183: 0 | F183: 0 | G183: 0 | H183: 1.99148933e-07 | J183: -1.755 | K183: 1.99148933e-07
A184: 7.433333333 | B184: -1.756666667 | D184: 2.033424323e-07 | E184: 0 | F184: 0 | G184: 0 | H184: 2.033424323e-07 | J184: -1.756666667 | K184: 2.033424323e-07
A185: 7.416666667 | B185: -1.758333333 | D185: 2.073633006e-07 | E185: 0 | F185: 0 | G185: 0 | H185: 2.073633006e-07 | J185: -1.758333333 | K185: 2.073633006e-07
A186: 7.4 | B186: -1.76 | D186: 2.112186417e-07 | E186: 0 | F186: 0 | G186: 0 | H186: 2.112186417e-07 | J186: -1.76 | K186: 2.112186417e-07
A187: 7.383333333 | B187: -1.761666667 | D187: 2.149154379e-07 | E187: 0 | F187: 0 | G187: 0 | H187: 2.149154379e-07 | J187: -1.761666667 | K187: 2.149154379e-07
A188: 7.366666667 | B188: -1.763333333 | D188: 2.18460531e-07 | E188: 0 | F188: 0 | G188: 0 | H188: 2.18460531e-07 | J188: -1.763333333 | K188: 2.18460531e-07
A189: 7.35 | B189: -1.765 | D189: 2.218606064e-07 | E189: 0 | F189: 0 | G189: 0 | H189: 2.218606064e-07 | J189: -1.765 | K189: 2.218606064e-07
A190: 7.333333333 | B190: -1.766666667 | D190: 2.251221792e-07 | E190: 0 | F190: 0 | G190: 0 | H190: 2.251221792e-07 | J190: -1.766666667 | K190: 2.251221792e-07
A191: 7.316666667 | B191: -1.768333333 | D191: 2.282515845e-07 | E191: 0 | F191: 0 | G191: 0 | H191: 2.282515845e-07 | J191: -1.768333333 | K191: 2.282515845e-07
A192: 7.3 | B192: -1.77 | D192: 2.312549679e-07 | E192: 0 | F192: 0 | G192: 0 | H192: 2.312549679e-07 | J192: -1.77 | K192: 2.312549679e-07
A193: 7.283333333 | B193: -1.771666667 | D193: 2.341382804e-07 | E193: 0 | F193: 0 | G193: 0 | H193: 2.341382804e-07 | J193: -1.771666667 | K193: 2.341382804e-07
A194: 7.266666667 | B194: -1.773333333 | D194: 2.36907273e-07 | E194: 0 | F194: 0 | G194: 0 | H194: 2.36907273e-07 | J194: -1.773333333 | K194: 2.36907273e-07
A195: 7.25 | B195: -1.775 | D195: 2.395674949e-07 | E195: 0 | F195: 0 | G195: 0 | H195: 2.395674949e-07 | J195: -1.775 | K195: 2.395674949e-07
A196: 7.233333333 | B196: -1.776666667 | D196: 2.421242915e-07 | E196: 0 | F196: 0 | G196: 0 | H196: 2.421242915e-07 | J196: -1.776666667 | K196: 2.421242915e-07
A197: 7.216666667 | B197: -1.778333333 | D197: 2.445828047e-07 | E197: 0 | F197: 0 | G197: 0 | H197: 2.445828047e-07 | J197: -1.778333333 | K197: 2.445828047e-07
A198: 7.2 | B198: -1.78 | D198: 2.469479741e-07 | E198: 0 | F198: 0 | G198: 0 | H198: 2.469479741e-07 | J198: -1.78 | K198: 2.469479741e-07
A199: 7.183333333 | B199: -1.781666667 | D199: 2.492245389e-07 | E199: 0 | F199: 0 | G199: 0 | H199: 2.492245389e-07 | J199: -1.781666667 | K199: 2.492245389e-07
A200: 7.166666667 | B200: -1.783333333 | D200: 2.514170409e-07 | E200: 0 | F200: 0 | G200: 0 | H200: 2.514170409e-07 | J200: -1.783333333 | K200: 2.514170409e-07
A201: 7.15 | B201: -1.785 | D201: 2.535298277e-07 | E201: 0 | F201: 0 | G201: 0 | H201: 2.535298277e-07 | J201: -1.785 | K201: 2.535298277e-07
A202: 7.133333333 | B202: -1.786666667 | D202: 2.555670576e-07 | E202: 0 | F202: 0 | G202: 0 | H202: 2.555670576e-07 | J202: -1.786666667 | K202: 2.555670576e-07
A203: 7.116666667 | B203: -1.788333333 | D203: 2.575327033e-07 | E203: 0 | F203: 0 | G203: 0 | H203: 2.575327033e-07 | J203: -1.788333333 | K203: 2.575327033e-07
A204: 7.1 | B204: -1.79 | D204: 2.594305576e-07 | E204: 0 | F204: 0 | G204: 0 | H204: 2.594305576e-07 | J204: -1.79 | K204: 2.594305576e-07
A205: 7.083333333 | B205: -1.791666667 | D205: 2.612642383e-07 | E205: 0 | F205: 0 | G205: 0 | H205: 2.612642383e-07 | J205: -1.791666667 | K205: 2.612642383e-07
... 357 more rows

Sheet Species 2
A1: Species 2 instructions
A3: 1. Enter your concentration, electrochemical, and simulation parameters below.
A4: 2. Mark Eoˊ values as N/A (shorthand for not applicable) to exclude them from the model.
A5: 3. Click on a parameter and adjust manually or press [Ctrl] o for least-squares optimization.
A7: Species concentration: | C7: CBulk = | D7: 0 | E7: mol/cm3
A9: Redox 1 (subspecies 1 and 2) | D9: Redox 2 (subspecies 3 and 4) | G9: Redox 3 (subspecies 5 and 6) | J9: Redox 4 (subspecies 7 and 8)
A10: Eoˊ(1,2) = | B10: N/A | C10: V | D10: Eoˊ(3,4) = | E10: N/A | F10: V | G10: Eoˊ(5,6) = | H10: N/A | I10: V | J10: Eoˊ(7,8) = | K10: N/A | L10: V
A11: n (1,2) = | B11: 1 | C11: e- | D11: n (3,4) = | E11: 1 | F11: e- | G11: n (5,6) = | H11: 1 | I11: e- | J11: n (7,8) = | K11: 1 | L11: e-
A12: na (1,2) = | B12: 1 | C12: e- | D12: na (3,4) = | E12: 1 | F12: e- | G12: na (5,6) = | H12: 1 | I12: e- | J12: na (7,8) = | K12: 1 | L12: e-
A13: ko(1,2) = | B13: 0.01 | C13: cm/s | D13: ko(3,4) = | E13: 0.01 | F13: cm/s | G13: ko(5,6) = | H13: 0.01 | I13: cm/s | J13: ko(7,8) = | K13: 0.01 | L13: cm/s
A14: a (1,2) = | B14: 0.5 | D14: a (3,4) = | E14: 0.5 | G14: a (5,6) = | H14: 0.5 | J14: a (7,8) = | K14: 0.5
A15: D (1) = | B15: 1e-05 | C15: cm2/s | D15: D (3) = | E15: 1e-05 | F15: cm2/s | G15: D (5) = | H15: 1e-05 | I15: cm2/s | J15: D (7) = | K15: 1e-05 | L15: cm2/s
A16: D (2) = | B16: 1e-05 | C16: cm2/s | D16: D (4) = | E16: 1e-05 | F16: cm2/s | G16: D (6) = | H16: 1e-05 | I16: cm2/s | J16: D (8) = | K16: 1e-05 | L16: cm2/s
A18: Simulation parameters | D18: Subspecies | E18: kR1 | F18: kA1 | G18: kR2 | H18: kA2 | J18: Simulation constants
A19: E1 = | B19: ='Species 1'!B19 -> -1.5 | C19: V | D19: 2 | E19: 0 | F19: 0 | G19: 0 | H19: 0 | J19: F = | K19: 96485 | L19: C/mol
A20: E2 = | B20: ='Species 1'!B20 -> -2 | C20: V | D20: 3 | E20: 0 | F20: 0 | G20: 0 | H20: 0 | J20: R = | K20: 8.31451 | L20: J/K∙mol
A21: v = | B21: ='Species 1'!B21 -> 0.1 | C21: V/s | D21: 4 | E21: 0 | F21: 0 | G21: 0 | H21: 0 | J21: ttotal = | K21: =ABS((($B$20-$B$19)*2)/$B$21) -> 10 | L21: s
A22: A = | B22: ='Species 1'!B22 -> 0.0357 | C22: cm2 | D22: 5 | E22: 0 | F22: 0 | G22: 0 | H22: 0 | J22: Dt = | K22: =$K$21/600 -> 0.01666666667 | L22: s
A23: T = | B23: ='Species 1'!B23 -> 293.15 | C23: K | D23: 6 | E23: 0 | F23: 0 | G23: 0 | H23: 0 | J23: xtotal = | K23: =($B$24/100)*6*SQRT($B$15*$K$21) -> 0.06 | L23: cm
A24: xScale = | B24: ='Species 1'!B24 -> 100 | C24: % | D24: 7 | E24: 0 | F24: 0 | G24: 0 | H24: 0 | J24: Dx = | K24: =$K$23/49 -> 0.001224489796 | L24: cm
A25: g = | B25: ='Species 1'!B25 -> 1 | C25: unitless | D25: 8 | E25: 0 | F25: 0 | G25: 0 | H25: 0
A26: CC = | B26: ='Species 1'!B26 -> P | C26: (I or P) | D26: units | E26: s-1 | F26: s-1 | G26: cm3/mol∙s | H26: cm3/mol∙s | J26: Red are boundary conditions
A28: Simulated potential ramp | D28: Simulated currents from the redox processes and total (A) | J28: Simulated CV for species
A29: Time (s) | B29: Potl (V) | D29: Redox 1 | E29: Redox 2 | F29: Redox 3 | G29: Redox 4 | H29: Total | J29: Potl (V) | K29: Total (A)
A30: =A31+$K$22 -> 10 | B30: =B31-(($B$20-$B$19)/300) -> -1.5 | D30: =IF($B$26="I",$B$11*$K$19*$B$22*C1238,-$B$11*$K$19*$B$22*C1238) -> 0 | E30: =IF($B$26="I",$E$11*$K$19*$B$22*J1238,-$E$11*$K$19*$B$22*J1238) -> 0 | F30: =IF($B$26="I",$H$11*$K$19*$B$22*Q1238,-$H$11*$K$19*$B$22*Q1238) -> 0 | G30: =IF($B$26="I",$K$11*$K$19*$B$22*X1238,-$K$11*$K$19*$B$22*X1238) -> 0 | H30: =IF($B$19>$B$20,D30+E30+F30+G30,-(D30+E30+F30+G30)) -> 0 | J30: =B30 -> -1.5 | K30: =H30 -> 0
A31: 9.983333333 | B31: -1.501666667 | D31: 0 | E31: 0 | F31: 0 | G31: 0 | H31: 0 | J31: =B31 -> -1.501666667 | K31: =H31 -> 0
A32: 9.966666667 | B32: -1.503333333 | D32: 0 | E32: 0 | F32: 0 | G32: 0 | H32: 0 | J32: -1.503333333 | K32: 0
A33: 9.95 | B33: -1.505 | D33: 0 | E33: 0 | F33: 0 | G33: 0 | H33: 0 | J33: -1.505 | K33: 0
A34: 9.933333333 | B34: -1.506666667 | D34: 0 | E34: 0 | F34: 0 | G34: 0 | H34: 0 | J34: -1.506666667 | K34: 0
A35: 9.916666667 | B35: -1.508333333 | D35: 0 | E35: 0 | F35: 0 | G35: 0 | H35: 0 | J35: -1.508333333 | K35: 0
A36: 9.9 | B36: -1.51 | D36: 0 | E36: 0 | F36: 0 | G36: 0 | H36: 0 | J36: -1.51 | K36: 0
A37: 9.883333333 | B37: -1.511666667 | D37: 0 | E37: 0 | F37: 0 | G37: 0 | H37: 0 | J37: -1.511666667 | K37: 0
A38: 9.866666667 | B38: -1.513333333 | D38: 0 | E38: 0 | F38: 0 | G38: 0 | H38: 0 | J38: -1.513333333 | K38: 0
A39: 9.85 | B39: -1.515 | D39: 0 | E39: 0 | F39: 0 | G39: 0 | H39: 0 | J39: -1.515 | K39: 0
A40: 9.833333333 | B40: -1.516666667 | D40: 0 | E40: 0 | F40: 0 | G40: 0 | H40: 0 | J40: -1.516666667 | K40: 0
A41: 9.816666667 | B41: -1.518333333 | D41: 0 | E41: 0 | F41: 0 | G41: 0 | H41: 0 | J41: -1.518333333 | K41: 0
A42: 9.8 | B42: -1.52 | D42: 0 | E42: 0 | F42: 0 | G42: 0 | H42: 0 | J42: -1.52 | K42: 0
A43: 9.783333333 | B43: -1.521666667 | D43: 0 | E43: 0 | F43: 0 | G43: 0 | H43: 0 | J43: -1.521666667 | K43: 0
A44: 9.766666667 | B44: -1.523333333 | D44: 0 | E44: 0 | F44: 0 | G44: 0 | H44: 0 | J44: -1.523333333 | K44: 0
A45: 9.75 | B45: -1.525 | D45: 0 | E45: 0 | F45: 0 | G45: 0 | H45: 0 | J45: -1.525 | K45: 0
A46: 9.733333333 | B46: -1.526666667 | D46: 0 | E46: 0 | F46: 0 | G46: 0 | H46: 0 | J46: -1.526666667 | K46: 0
A47: 9.716666667 | B47: -1.528333333 | D47: 0 | E47: 0 | F47: 0 | G47: 0 | H47: 0 | J47: -1.528333333 | K47: 0
A48: 9.7 | B48: -1.53 | D48: 0 | E48: 0 | F48: 0 | G48: 0 | H48: 0 | J48: -1.53 | K48: 0
A49: 9.683333333 | B49: -1.531666667 | D49: 0 | E49: 0 | F49: 0 | G49: 0 | H49: 0 | J49: -1.531666667 | K49: 0
A50: 9.666666667 | B50: -1.533333333 | D50: 0 | E50: 0 | F50: 0 | G50: 0 | H50: 0 | J50: -1.533333333 | K50: 0
A51: 9.65 | B51: -1.535 | D51: 0 | E51: 0 | F51: 0 | G51: 0 | H51: 0 | J51: -1.535 | K51: 0
A52: 9.633333333 | B52: -1.536666667 | D52: 0 | E52: 0 | F52: 0 | G52: 0 | H52: 0 | J52: -1.536666667 | K52: 0
A53: 9.616666667 | B53: -1.538333333 | D53: 0 | E53: 0 | F53: 0 | G53: 0 | H53: 0 | J53: -1.538333333 | K53: 0
A54: 9.6 | B54: -1.54 | D54: 0 | E54: 0 | F54: 0 | G54: 0 | H54: 0 | J54: -1.54 | K54: 0
A55: 9.583333333 | B55: -1.541666667 | D55: 0 | E55: 0 | F55: 0 | G55: 0 | H55: 0 | J55: -1.541666667 | K55: 0
A56: 9.566666667 | B56: -1.543333333 | D56: 0 | E56: 0 | F56: 0 | G56: 0 | H56: 0 | J56: -1.543333333 | K56: 0
A57: 9.55 | B57: -1.545 | D57: 0 | E57: 0 | F57: 0 | G57: 0 | H57: 0 | J57: -1.545 | K57: 0
A58: 9.533333333 | B58: -1.546666667 | D58: 0 | E58: 0 | F58: 0 | G58: 0 | H58: 0 | J58: -1.546666667 | K58: 0
A59: 9.516666667 | B59: -1.548333333 | D59: 0 | E59: 0 | F59: 0 | G59: 0 | H59: 0 | J59: -1.548333333 | K59: 0
A60: 9.5 | B60: -1.55 | D60: 0 | E60: 0 | F60: 0 | G60: 0 | H60: 0 | J60: -1.55 | K60: 0
A61: 9.483333333 | B61: -1.551666667 | D61: 0 | E61: 0 | F61: 0 | G61: 0 | H61: 0 | J61: -1.551666667 | K61: 0
A62: 9.466666667 | B62: -1.553333333 | D62: 0 | E62: 0 | F62: 0 | G62: 0 | H62: 0 | J62: -1.553333333 | K62: 0
A63: 9.45 | B63: -1.555 | D63: 0 | E63: 0 | F63: 0 | G63: 0 | H63: 0 | J63: -1.555 | K63: 0
A64: 9.433333333 | B64: -1.556666667 | D64: 0 | E64: 0 | F64: 0 | G64: 0 | H64: 0 | J64: -1.556666667 | K64: 0
A65: 9.416666667 | B65: -1.558333333 | D65: 0 | E65: 0 | F65: 0 | G65: 0 | H65: 0 | J65: -1.558333333 | K65: 0
A66: 9.4 | B66: -1.56 | D66: 0 | E66: 0 | F66: 0 | G66: 0 | H66: 0 | J66: -1.56 | K66: 0
A67: 9.383333333 | B67: -1.561666667 | D67: 0 | E67: 0 | F67: 0 | G67: 0 | H67: 0 | J67: -1.561666667 | K67: 0
A68: 9.366666667 | B68: -1.563333333 | D68: 0 | E68: 0 | F68: 0 | G68: 0 | H68: 0 | J68: -1.563333333 | K68: 0
A69: 9.35 | B69: -1.565 | D69: 0 | E69: 0 | F69: 0 | G69: 0 | H69: 0 | J69: -1.565 | K69: 0
A70: 9.333333333 | B70: -1.566666667 | D70: 0 | E70: 0 | F70: 0 | G70: 0 | H70: 0 | J70: -1.566666667 | K70: 0
A71: 9.316666667 | B71: -1.568333333 | D71: 0 | E71: 0 | F71: 0 | G71: 0 | H71: 0 | J71: -1.568333333 | K71: 0
A72: 9.3 | B72: -1.57 | D72: 0 | E72: 0 | F72: 0 | G72: 0 | H72: 0 | J72: -1.57 | K72: 0
A73: 9.283333333 | B73: -1.571666667 | D73: 0 | E73: 0 | F73: 0 | G73: 0 | H73: 0 | J73: -1.571666667 | K73: 0
A74: 9.266666667 | B74: -1.573333333 | D74: 0 | E74: 0 | F74: 0 | G74: 0 | H74: 0 | J74: -1.573333333 | K74: 0
A75: 9.25 | B75: -1.575 | D75: 0 | E75: 0 | F75: 0 | G75: 0 | H75: 0 | J75: -1.575 | K75: 0
A76: 9.233333333 | B76: -1.576666667 | D76: 0 | E76: 0 | F76: 0 | G76: 0 | H76: 0 | J76: -1.576666667 | K76: 0
A77: 9.216666667 | B77: -1.578333333 | D77: 0 | E77: 0 | F77: 0 | G77: 0 | H77: 0 | J77: -1.578333333 | K77: 0
A78: 9.2 | B78: -1.58 | D78: 0 | E78: 0 | F78: 0 | G78: 0 | H78: 0 | J78: -1.58 | K78: 0
A79: 9.183333333 | B79: -1.581666667 | D79: 0 | E79: 0 | F79: 0 | G79: 0 | H79: 0 | J79: -1.581666667 | K79: 0
A80: 9.166666667 | B80: -1.583333333 | D80: 0 | E80: 0 | F80: 0 | G80: 0 | H80: 0 | J80: -1.583333333 | K80: 0
A81: 9.15 | B81: -1.585 | D81: 0 | E81: 0 | F81: 0 | G81: 0 | H81: 0 | J81: -1.585 | K81: 0
A82: 9.133333333 | B82: -1.586666667 | D82: 0 | E82: 0 | F82: 0 | G82: 0 | H82: 0 | J82: -1.586666667 | K82: 0
A83: 9.116666667 | B83: -1.588333333 | D83: 0 | E83: 0 | F83: 0 | G83: 0 | H83: 0 | J83: -1.588333333 | K83: 0
A84: 9.1 | B84: -1.59 | D84: 0 | E84: 0 | F84: 0 | G84: 0 | H84: 0 | J84: -1.59 | K84: 0
A85: 9.083333333 | B85: -1.591666667 | D85: 0 | E85: 0 | F85: 0 | G85: 0 | H85: 0 | J85: -1.591666667 | K85: 0
A86: 9.066666667 | B86: -1.593333333 | D86: 0 | E86: 0 | F86: 0 | G86: 0 | H86: 0 | J86: -1.593333333 | K86: 0
A87: 9.05 | B87: -1.595 | D87: 0 | E87: 0 | F87: 0 | G87: 0 | H87: 0 | J87: -1.595 | K87: 0
A88: 9.033333333 | B88: -1.596666667 | D88: 0 | E88: 0 | F88: 0 | G88: 0 | H88: 0 | J88: -1.596666667 | K88: 0
A89: 9.016666667 | B89: -1.598333333 | D89: 0 | E89: 0 | F89: 0 | G89: 0 | H89: 0 | J89: -1.598333333 | K89: 0
A90: 9 | B90: -1.6 | D90: 0 | E90: 0 | F90: 0 | G90: 0 | H90: 0 | J90: -1.6 | K90: 0
A91: 8.983333333 | B91: -1.601666667 | D91: 0 | E91: 0 | F91: 0 | G91: 0 | H91: 0 | J91: -1.601666667 | K91: 0
A92: 8.966666667 | B92: -1.603333333 | D92: 0 | E92: 0 | F92: 0 | G92: 0 | H92: 0 | J92: -1.603333333 | K92: 0
A93: 8.95 | B93: -1.605 | D93: 0 | E93: 0 | F93: 0 | G93: 0 | H93: 0 | J93: -1.605 | K93: 0
A94: =A95+$K$22 -> 8.933333333 | B94: =B95-(($B$20-$B$19)/300) -> -1.606666667 | D94: =IF($B$26="I",$B$11*$K$19*$B$22*C1302,-$B$11*$K$19*$B$22*C1302) -> 0 | E94: =IF($B$26="I",$E$11*$K$19*$B$22*J1302,-$E$11*$K$19*$B$22*J1302) -> 0 | F94: =IF($B$26="I",$H$11*$K$19*$B$22*Q1302,-$H$11*$K$19*$B$22*Q1302) -> 0 | G94: =IF($B$26="I",$K$11*$K$19*$B$22*X1302,-$K$11*$K$19*$B$22*X1302) -> 0 | H94: =IF($B$19>$B$20,D94+E94+F94+G94,-(D94+E94+F94+G94)) -> 0 | J94: -1.606666667 | K94: 0
A95: 8.916666667 | B95: -1.608333333 | D95: 0 | E95: 0 | F95: 0 | G95: 0 | H95: 0 | J95: =B95 -> -1.608333333 | K95: =H95 -> 0
A96: 8.9 | B96: -1.61 | D96: 0 | E96: 0 | F96: 0 | G96: 0 | H96: 0 | J96: -1.61 | K96: 0
A97: 8.883333333 | B97: -1.611666667 | D97: 0 | E97: 0 | F97: 0 | G97: 0 | H97: 0 | J97: -1.611666667 | K97: 0
A98: 8.866666667 | B98: -1.613333333 | D98: 0 | E98: 0 | F98: 0 | G98: 0 | H98: 0 | J98: -1.613333333 | K98: 0
A99: 8.85 | B99: -1.615 | D99: 0 | E99: 0 | F99: 0 | G99: 0 | H99: 0 | J99: -1.615 | K99: 0
A100: 8.833333333 | B100: -1.616666667 | D100: 0 | E100: 0 | F100: 0 | G100: 0 | H100: 0 | J100: -1.616666667 | K100: 0
A101: 8.816666667 | B101: -1.618333333 | D101: 0 | E101: 0 | F101: 0 | G101: 0 | H101: 0 | J101: -1.618333333 | K101: 0
A102: 8.8 | B102: -1.62 | D102: 0 | E102: 0 | F102: 0 | G102: 0 | H102: 0 | J102: -1.62 | K102: 0
A103: 8.783333333 | B103: -1.621666667 | D103: 0 | E103: 0 | F103: 0 | G103: 0 | H103: 0 | J103: -1.621666667 | K103: 0
A104: 8.766666667 | B104: -1.623333333 | D104: 0 | E104: 0 | F104: 0 | G104: 0 | H104: 0 | J104: -1.623333333 | K104: 0
A105: 8.75 | B105: -1.625 | D105: 0 | E105: 0 | F105: 0 | G105: 0 | H105: 0 | J105: -1.625 | K105: 0
A106: 8.733333333 | B106: -1.626666667 | D106: 0 | E106: 0 | F106: 0 | G106: 0 | H106: 0 | J106: -1.626666667 | K106: 0
A107: 8.716666667 | B107: -1.628333333 | D107: 0 | E107: 0 | F107: 0 | G107: 0 | H107: 0 | J107: -1.628333333 | K107: 0
A108: 8.7 | B108: -1.63 | D108: 0 | E108: 0 | F108: 0 | G108: 0 | H108: 0 | J108: -1.63 | K108: 0
A109: 8.683333333 | B109: -1.631666667 | D109: 0 | E109: 0 | F109: 0 | G109: 0 | H109: 0 | J109: -1.631666667 | K109: 0
A110: 8.666666667 | B110: -1.633333333 | D110: 0 | E110: 0 | F110: 0 | G110: 0 | H110: 0 | J110: -1.633333333 | K110: 0
A111: 8.65 | B111: -1.635 | D111: 0 | E111: 0 | F111: 0 | G111: 0 | H111: 0 | J111: -1.635 | K111: 0
A112: 8.633333333 | B112: -1.636666667 | D112: 0 | E112: 0 | F112: 0 | G112: 0 | H112: 0 | J112: -1.636666667 | K112: 0
A113: 8.616666667 | B113: -1.638333333 | D113: 0 | E113: 0 | F113: 0 | G113: 0 | H113: 0 | J113: -1.638333333 | K113: 0
A114: 8.6 | B114: -1.64 | D114: 0 | E114: 0 | F114: 0 | G114: 0 | H114: 0 | J114: -1.64 | K114: 0
A115: 8.583333333 | B115: -1.641666667 | D115: 0 | E115: 0 | F115: 0 | G115: 0 | H115: 0 | J115: -1.641666667 | K115: 0
A116: 8.566666667 | B116: -1.643333333 | D116: 0 | E116: 0 | F116: 0 | G116: 0 | H116: 0 | J116: -1.643333333 | K116: 0
A117: 8.55 | B117: -1.645 | D117: 0 | E117: 0 | F117: 0 | G117: 0 | H117: 0 | J117: -1.645 | K117: 0
A118: 8.533333333 | B118: -1.646666667 | D118: 0 | E118: 0 | F118: 0 | G118: 0 | H118: 0 | J118: -1.646666667 | K118: 0
A119: 8.516666667 | B119: -1.648333333 | D119: 0 | E119: 0 | F119: 0 | G119: 0 | H119: 0 | J119: -1.648333333 | K119: 0
A120: 8.5 | B120: -1.65 | D120: 0 | E120: 0 | F120: 0 | G120: 0 | H120: 0 | J120: -1.65 | K120: 0
A121: 8.483333333 | B121: -1.651666667 | D121: 0 | E121: 0 | F121: 0 | G121: 0 | H121: 0 | J121: -1.651666667 | K121: 0
A122: 8.466666667 | B122: -1.653333333 | D122: 0 | E122: 0 | F122: 0 | G122: 0 | H122: 0 | J122: -1.653333333 | K122: 0
A123: 8.45 | B123: -1.655 | D123: 0 | E123: 0 | F123: 0 | G123: 0 | H123: 0 | J123: -1.655 | K123: 0
A124: 8.433333333 | B124: -1.656666667 | D124: 0 | E124: 0 | F124: 0 | G124: 0 | H124: 0 | J124: -1.656666667 | K124: 0
A125: 8.416666667 | B125: -1.658333333 | D125: 0 | E125: 0 | F125: 0 | G125: 0 | H125: 0 | J125: -1.658333333 | K125: 0
A126: 8.4 | B126: -1.66 | D126: 0 | E126: 0 | F126: 0 | G126: 0 | H126: 0 | J126: -1.66 | K126: 0
A127: 8.383333333 | B127: -1.661666667 | D127: 0 | E127: 0 | F127: 0 | G127: 0 | H127: 0 | J127: -1.661666667 | K127: 0
A128: 8.366666667 | B128: -1.663333333 | D128: 0 | E128: 0 | F128: 0 | G128: 0 | H128: 0 | J128: -1.663333333 | K128: 0
A129: 8.35 | B129: -1.665 | D129: 0 | E129: 0 | F129: 0 | G129: 0 | H129: 0 | J129: -1.665 | K129: 0
A130: 8.333333333 | B130: -1.666666667 | D130: 0 | E130: 0 | F130: 0 | G130: 0 | H130: 0 | J130: -1.666666667 | K130: 0
A131: 8.316666667 | B131: -1.668333333 | D131: 0 | E131: 0 | F131: 0 | G131: 0 | H131: 0 | J131: -1.668333333 | K131: 0
A132: 8.3 | B132: -1.67 | D132: 0 | E132: 0 | F132: 0 | G132: 0 | H132: 0 | J132: -1.67 | K132: 0
A133: 8.283333333 | B133: -1.671666667 | D133: 0 | E133: 0 | F133: 0 | G133: 0 | H133: 0 | J133: -1.671666667 | K133: 0
A134: 8.266666667 | B134: -1.673333333 | D134: 0 | E134: 0 | F134: 0 | G134: 0 | H134: 0 | J134: -1.673333333 | K134: 0
A135: 8.25 | B135: -1.675 | D135: 0 | E135: 0 | F135: 0 | G135: 0 | H135: 0 | J135: -1.675 | K135: 0
A136: 8.233333333 | B136: -1.676666667 | D136: 0 | E136: 0 | F136: 0 | G136: 0 | H136: 0 | J136: -1.676666667 | K136: 0
A137: 8.216666667 | B137: -1.678333333 | D137: 0 | E137: 0 | F137: 0 | G137: 0 | H137: 0 | J137: -1.678333333 | K137: 0
A138: 8.2 | B138: -1.68 | D138: 0 | E138: 0 | F138: 0 | G138: 0 | H138: 0 | J138: -1.68 | K138: 0
A139: 8.183333333 | B139: -1.681666667 | D139: 0 | E139: 0 | F139: 0 | G139: 0 | H139: 0 | J139: -1.681666667 | K139: 0
A140: 8.166666667 | B140: -1.683333333 | D140: 0 | E140: 0 | F140: 0 | G140: 0 | H140: 0 | J140: -1.683333333 | K140: 0
A141: 8.15 | B141: -1.685 | D141: 0 | E141: 0 | F141: 0 | G141: 0 | H141: 0 | J141: -1.685 | K141: 0
A142: 8.133333333 | B142: -1.686666667 | D142: 0 | E142: 0 | F142: 0 | G142: 0 | H142: 0 | J142: -1.686666667 | K142: 0
A143: 8.116666667 | B143: -1.688333333 | D143: 0 | E143: 0 | F143: 0 | G143: 0 | H143: 0 | J143: -1.688333333 | K143: 0
A144: 8.1 | B144: -1.69 | D144: 0 | E144: 0 | F144: 0 | G144: 0 | H144: 0 | J144: -1.69 | K144: 0
A145: 8.083333333 | B145: -1.691666667 | D145: 0 | E145: 0 | F145: 0 | G145: 0 | H145: 0 | J145: -1.691666667 | K145: 0
A146: 8.066666667 | B146: -1.693333333 | D146: 0 | E146: 0 | F146: 0 | G146: 0 | H146: 0 | J146: -1.693333333 | K146: 0
A147: 8.05 | B147: -1.695 | D147: 0 | E147: 0 | F147: 0 | G147: 0 | H147: 0 | J147: -1.695 | K147: 0
A148: 8.033333333 | B148: -1.696666667 | D148: 0 | E148: 0 | F148: 0 | G148: 0 | H148: 0 | J148: -1.696666667 | K148: 0
A149: 8.016666667 | B149: -1.698333333 | D149: 0 | E149: 0 | F149: 0 | G149: 0 | H149: 0 | J149: -1.698333333 | K149: 0
A150: 8 | B150: -1.7 | D150: 0 | E150: 0 | F150: 0 | G150: 0 | H150: 0 | J150: -1.7 | K150: 0
A151: 7.983333333 | B151: -1.701666667 | D151: 0 | E151: 0 | F151: 0 | G151: 0 | H151: 0 | J151: -1.701666667 | K151: 0
A152: 7.966666667 | B152: -1.703333333 | D152: 0 | E152: 0 | F152: 0 | G152: 0 | H152: 0 | J152: -1.703333333 | K152: 0
A153: 7.95 | B153: -1.705 | D153: 0 | E153: 0 | F153: 0 | G153: 0 | H153: 0 | J153: -1.705 | K153: 0
A154: 7.933333333 | B154: -1.706666667 | D154: 0 | E154: 0 | F154: 0 | G154: 0 | H154: 0 | J154: -1.706666667 | K154: 0
A155: 7.916666667 | B155: -1.708333333 | D155: 0 | E155: 0 | F155: 0 | G155: 0 | H155: 0 | J155: -1.708333333 | K155: 0
A156: 7.9 | B156: -1.71 | D156: 0 | E156: 0 | F156: 0 | G156: 0 | H156: 0 | J156: -1.71 | K156: 0
A157: 7.883333333 | B157: -1.711666667 | D157: 0 | E157: 0 | F157: 0 | G157: 0 | H157: 0 | J157: -1.711666667 | K157: 0
A158: =A159+$K$22 -> 7.866666667 | B158: =B159-(($B$20-$B$19)/300) -> -1.713333333 | D158: =IF($B$26="I",$B$11*$K$19*$B$22*C1366,-$B$11*$K$19*$B$22*C1366) -> 0 | E158: =IF($B$26="I",$E$11*$K$19*$B$22*J1366,-$E$11*$K$19*$B$22*J1366) -> 0 | F158: =IF($B$26="I",$H$11*$K$19*$B$22*Q1366,-$H$11*$K$19*$B$22*Q1366) -> 0 | G158: =IF($B$26="I",$K$11*$K$19*$B$22*X1366,-$K$11*$K$19*$B$22*X1366) -> 0 | H158: =IF($B$19>$B$20,D158+E158+F158+G158,-(D158+E158+F158+G158)) -> 0 | J158: -1.713333333 | K158: 0
A159: 7.85 | B159: -1.715 | D159: 0 | E159: 0 | F159: 0 | G159: 0 | H159: 0 | J159: =B159 -> -1.715 | K159: =H159 -> 0
A160: 7.833333333 | B160: -1.716666667 | D160: 0 | E160: 0 | F160: 0 | G160: 0 | H160: 0 | J160: -1.716666667 | K160: 0
A161: 7.816666667 | B161: -1.718333333 | D161: 0 | E161: 0 | F161: 0 | G161: 0 | H161: 0 | J161: -1.718333333 | K161: 0
A162: 7.8 | B162: -1.72 | D162: 0 | E162: 0 | F162: 0 | G162: 0 | H162: 0 | J162: -1.72 | K162: 0
A163: 7.783333333 | B163: -1.721666667 | D163: 0 | E163: 0 | F163: 0 | G163: 0 | H163: 0 | J163: -1.721666667 | K163: 0
A164: 7.766666667 | B164: -1.723333333 | D164: 0 | E164: 0 | F164: 0 | G164: 0 | H164: 0 | J164: -1.723333333 | K164: 0
A165: 7.75 | B165: -1.725 | D165: 0 | E165: 0 | F165: 0 | G165: 0 | H165: 0 | J165: -1.725 | K165: 0
A166: 7.733333333 | B166: -1.726666667 | D166: 0 | E166: 0 | F166: 0 | G166: 0 | H166: 0 | J166: -1.726666667 | K166: 0
A167: 7.716666667 | B167: -1.728333333 | D167: 0 | E167: 0 | F167: 0 | G167: 0 | H167: 0 | J167: -1.728333333 | K167: 0
A168: 7.7 | B168: -1.73 | D168: 0 | E168: 0 | F168: 0 | G168: 0 | H168: 0 | J168: -1.73 | K168: 0
A169: 7.683333333 | B169: -1.731666667 | D169: 0 | E169: 0 | F169: 0 | G169: 0 | H169: 0 | J169: -1.731666667 | K169: 0
A170: 7.666666667 | B170: -1.733333333 | D170: 0 | E170: 0 | F170: 0 | G170: 0 | H170: 0 | J170: -1.733333333 | K170: 0
A171: 7.65 | B171: -1.735 | D171: 0 | E171: 0 | F171: 0 | G171: 0 | H171: 0 | J171: -1.735 | K171: 0
A172: 7.633333333 | B172: -1.736666667 | D172: 0 | E172: 0 | F172: 0 | G172: 0 | H172: 0 | J172: -1.736666667 | K172: 0
A173: 7.616666667 | B173: -1.738333333 | D173: 0 | E173: 0 | F173: 0 | G173: 0 | H173: 0 | J173: -1.738333333 | K173: 0
A174: 7.6 | B174: -1.74 | D174: 0 | E174: 0 | F174: 0 | G174: 0 | H174: 0 | J174: -1.74 | K174: 0
A175: 7.583333333 | B175: -1.741666667 | D175: 0 | E175: 0 | F175: 0 | G175: 0 | H175: 0 | J175: -1.741666667 | K175: 0
A176: 7.566666667 | B176: -1.743333333 | D176: 0 | E176: 0 | F176: 0 | G176: 0 | H176: 0 | J176: -1.743333333 | K176: 0
A177: 7.55 | B177: -1.745 | D177: 0 | E177: 0 | F177: 0 | G177: 0 | H177: 0 | J177: -1.745 | K177: 0
A178: 7.533333333 | B178: -1.746666667 | D178: 0 | E178: 0 | F178: 0 | G178: 0 | H178: 0 | J178: -1.746666667 | K178: 0
A179: 7.516666667 | B179: -1.748333333 | D179: 0 | E179: 0 | F179: 0 | G179: 0 | H179: 0 | J179: -1.748333333 | K179: 0
A180: 7.5 | B180: -1.75 | D180: 0 | E180: 0 | F180: 0 | G180: 0 | H180: 0 | J180: -1.75 | K180: 0
A181: 7.483333333 | B181: -1.751666667 | D181: 0 | E181: 0 | F181: 0 | G181: 0 | H181: 0 | J181: -1.751666667 | K181: 0
A182: 7.466666667 | B182: -1.753333333 | D182: 0 | E182: 0 | F182: 0 | G182: 0 | H182: 0 | J182: -1.753333333 | K182: 0
A183: 7.45 | B183: -1.755 | D183: 0 | E183: 0 | F183: 0 | G183: 0 | H183: 0 | J183: -1.755 | K183: 0
A184: 7.433333333 | B184: -1.756666667 | D184: 0 | E184: 0 | F184: 0 | G184: 0 | H184: 0 | J184: -1.756666667 | K184: 0
A185: 7.416666667 | B185: -1.758333333 | D185: 0 | E185: 0 | F185: 0 | G185: 0 | H185: 0 | J185: -1.758333333 | K185: 0
A186: 7.4 | B186: -1.76 | D186: 0 | E186: 0 | F186: 0 | G186: 0 | H186: 0 | J186: -1.76 | K186: 0
A187: 7.383333333 | B187: -1.761666667 | D187: 0 | E187: 0 | F187: 0 | G187: 0 | H187: 0 | J187: -1.761666667 | K187: 0
A188: 7.366666667 | B188: -1.763333333 | D188: 0 | E188: 0 | F188: 0 | G188: 0 | H188: 0 | J188: -1.763333333 | K188: 0
A189: 7.35 | B189: -1.765 | D189: 0 | E189: 0 | F189: 0 | G189: 0 | H189: 0 | J189: -1.765 | K189: 0
A190: 7.333333333 | B190: -1.766666667 | D190: 0 | E190: 0 | F190: 0 | G190: 0 | H190: 0 | J190: -1.766666667 | K190: 0
A191: 7.316666667 | B191: -1.768333333 | D191: 0 | E191: 0 | F191: 0 | G191: 0 | H191: 0 | J191: -1.768333333 | K191: 0
A192: 7.3 | B192: -1.77 | D192: 0 | E192: 0 | F192: 0 | G192: 0 | H192: 0 | J192: -1.77 | K192: 0
A193: 7.283333333 | B193: -1.771666667 | D193: 0 | E193: 0 | F193: 0 | G193: 0 | H193: 0 | J193: -1.771666667 | K193: 0
A194: 7.266666667 | B194: -1.773333333 | D194: 0 | E194: 0 | F194: 0 | G194: 0 | H194: 0 | J194: -1.773333333 | K194: 0
A195: 7.25 | B195: -1.775 | D195: 0 | E195: 0 | F195: 0 | G195: 0 | H195: 0 | J195: -1.775 | K195: 0
A196: 7.233333333 | B196: -1.776666667 | D196: 0 | E196: 0 | F196: 0 | G196: 0 | H196: 0 | J196: -1.776666667 | K196: 0
A197: 7.216666667 | B197: -1.778333333 | D197: 0 | E197: 0 | F197: 0 | G197: 0 | H197: 0 | J197: -1.778333333 | K197: 0
A198: 7.2 | B198: -1.78 | D198: 0 | E198: 0 | F198: 0 | G198: 0 | H198: 0 | J198: -1.78 | K198: 0
A199: 7.183333333 | B199: -1.781666667 | D199: 0 | E199: 0 | F199: 0 | G199: 0 | H199: 0 | J199: -1.781666667 | K199: 0
A200: 7.166666667 | B200: -1.783333333 | D200: 0 | E200: 0 | F200: 0 | G200: 0 | H200: 0 | J200: -1.783333333 | K200: 0
A201: 7.15 | B201: -1.785 | D201: 0 | E201: 0 | F201: 0 | G201: 0 | H201: 0 | J201: -1.785 | K201: 0
A202: 7.133333333 | B202: -1.786666667 | D202: 0 | E202: 0 | F202: 0 | G202: 0 | H202: 0 | J202: -1.786666667 | K202: 0
A203: 7.116666667 | B203: -1.788333333 | D203: 0 | E203: 0 | F203: 0 | G203: 0 | H203: 0 | J203: -1.788333333 | K203: 0
A204: 7.1 | B204: -1.79 | D204: 0 | E204: 0 | F204: 0 | G204: 0 | H204: 0 | J204: -1.79 | K204: 0
A205: 7.083333333 | B205: -1.791666667 | D205: 0 | E205: 0 | F205: 0 | G205: 0 | H205: 0 | J205: -1.791666667 | K205: 0
... 357 more rows

Sheet Species 3
A1: Species 3 instructions
A3: 1. Enter your concentration, electrochemical, and simulation parameters below.
A4: 2. Mark Eoˊ values as N/A (shorthand for not applicable) to exclude them from the model.
A5: 3. Click on a parameter and adjust manually or press [Ctrl] o for least-squares optimization.
A7: Species concentration: | C7: CBulk = | D7: 0 | E7: mol/cm3
A9: Redox 1 (subspecies 1 and 2) | D9: Redox 2 (subspecies 3 and 4) | G9: Redox 3 (subspecies 5 and 6) | J9: Redox 4 (subspecies 7 and 8)
A10: Eoˊ(1,2) = | B10: N/A | C10: V | D10: Eoˊ(3,4) = | E10: N/A | F10: V | G10: Eoˊ(5,6) = | H10: N/A | I10: V | J10: Eoˊ(7,8) = | K10: N/A | L10: V
A11: n (1,2) = | B11: 1 | C11: e- | D11: n (3,4) = | E11: 1 | F11: e- | G11: n (5,6) = | H11: 1 | I11: e- | J11: n (7,8) = | K11: 1 | L11: e-
A12: na (1,2) = | B12: 1 | C12: e- | D12: na (3,4) = | E12: 1 | F12: e- | G12: na (5,6) = | H12: 1 | I12: e- | J12: na (7,8) = | K12: 1 | L12: e-
A13: ko(1,2) = | B13: 0.01 | C13: cm/s | D13: ko(3,4) = | E13: 0.01 | F13: cm/s | G13: ko(5,6) = | H13: 0.01 | I13: cm/s | J13: ko(7,8) = | K13: 0.01 | L13: cm/s
A14: a (1,2) = | B14: 0.5 | D14: a (3,4) = | E14: 0.5 | G14: a (5,6) = | H14: 0.5 | J14: a (7,8) = | K14: 0.5
A15: D (1) = | B15: 1e-05 | C15: cm2/s | D15: D (3) = | E15: 1e-05 | F15: cm2/s | G15: D (5) = | H15: 1e-05 | I15: cm2/s | J15: D (7) = | K15: 1e-05 | L15: cm2/s
A16: D (2) = | B16: 1e-05 | C16: cm2/s | D16: D (4) = | E16: 1e-05 | F16: cm2/s | G16: D (6) = | H16: 1e-05 | I16: cm2/s | J16: D (8) = | K16: 1e-05 | L16: cm2/s
A18: Simulation parameters | D18: Subspecies | E18: kR1 | F18: kA1 | G18: kR2 | H18: kA2 | J18: Simulation constants
A19: E1 = | B19: ='Species 1'!B19 -> -1.5 | C19: V | D19: 2 | E19: 0 | F19: 0 | G19: 0 | H19: 0 | J19: F = | K19: 96485 | L19: C/mol
A20: E2 = | B20: ='Species 1'!B20 -> -2 | C20: V | D20: 3 | E20: 0 | F20: 0 | G20: 0 | H20: 0 | J20: R = | K20: 8.31451 | L20: J/K∙mol
A21: v = | B21: ='Species 1'!B21 -> 0.1 | C21: V/s | D21: 4 | E21: 0 | F21: 0 | G21: 0 | H21: 0 | J21: ttotal = | K21: =ABS((($B$20-$B$19)*2)/$B$21) -> 10 | L21: s
A22: A = | B22: ='Species 1'!B22 -> 0.0357 | C22: cm2 | D22: 5 | E22: 0 | F22: 0 | G22: 0 | H22: 0 | J22: Dt = | K22: =$K$21/600 -> 0.01666666667 | L22: s
A23: T = | B23: ='Species 1'!B23 -> 293.15 | C23: K | D23: 6 | E23: 0 | F23: 0 | G23: 0 | H23: 0 | J23: xtotal = | K23: =($B$24/100)*6*SQRT($B$15*$K$21) -> 0.06 | L23: cm
A24: xScale = | B24: ='Species 1'!B24 -> 100 | C24: % | D24: 7 | E24: 0 | F24: 0 | G24: 0 | H24: 0 | J24: Dx = | K24: =$K$23/49 -> 0.001224489796 | L24: cm
A25: g = | B25: ='Species 1'!B25 -> 1 | C25: unitless | D25: 8 | E25: 0 | F25: 0 | G25: 0 | H25: 0
A26: CC = | B26: ='Species 1'!B26 -> P | C26: (I or P) | D26: units | E26: s-1 | F26: s-1 | G26: cm3/mol∙s | H26: cm3/mol∙s | J26: Red are boundary conditions
A28: Simulated potential ramp | D28: Simulated currents from the redox processes and total (A) | J28: Simulated CV for species
A29: Time (s) | B29: Potl (V) | D29: Redox 1 | E29: Redox 2 | F29: Redox 3 | G29: Redox 4 | H29: Total | J29: Potl (V) | K29: Total (A)
A30: =A31+$K$22 -> 10 | B30: =B31-(($B$20-$B$19)/300) -> -1.5 | D30: =IF($B$26="I",$B$11*$K$19*$B$22*C1238,-$B$11*$K$19*$B$22*C1238) -> 0 | E30: =IF($B$26="I",$E$11*$K$19*$B$22*J1238,-$E$11*$K$19*$B$22*J1238) -> 0 | F30: =IF($B$26="I",$H$11*$K$19*$B$22*Q1238,-$H$11*$K$19*$B$22*Q1238) -> 0 | G30: =IF($B$26="I",$K$11*$K$19*$B$22*X1238,-$K$11*$K$19*$B$22*X1238) -> 0 | H30: =IF($B$19>$B$20,D30+E30+F30+G30,-(D30+E30+F30+G30)) -> 0 | J30: =B30 -> -1.5 | K30: =H30 -> 0
A31: 9.983333333 | B31: -1.501666667 | D31: 0 | E31: 0 | F31: 0 | G31: 0 | H31: 0 | J31: =B31 -> -1.501666667 | K31: =H31 -> 0
A32: 9.966666667 | B32: -1.503333333 | D32: 0 | E32: 0 | F32: 0 | G32: 0 | H32: 0 | J32: -1.503333333 | K32: 0
A33: 9.95 | B33: -1.505 | D33: 0 | E33: 0 | F33: 0 | G33: 0 | H33: 0 | J33: -1.505 | K33: 0
A34: 9.933333333 | B34: -1.506666667 | D34: 0 | E34: 0 | F34: 0 | G34: 0 | H34: 0 | J34: -1.506666667 | K34: 0
A35: 9.916666667 | B35: -1.508333333 | D35: 0 | E35: 0 | F35: 0 | G35: 0 | H35: 0 | J35: -1.508333333 | K35: 0
A36: 9.9 | B36: -1.51 | D36: 0 | E36: 0 | F36: 0 | G36: 0 | H36: 0 | J36: -1.51 | K36: 0
A37: 9.883333333 | B37: -1.511666667 | D37: 0 | E37: 0 | F37: 0 | G37: 0 | H37: 0 | J37: -1.511666667 | K37: 0
A38: 9.866666667 | B38: -1.513333333 | D38: 0 | E38: 0 | F38: 0 | G38: 0 | H38: 0 | J38: -1.513333333 | K38: 0
A39: 9.85 | B39: -1.515 | D39: 0 | E39: 0 | F39: 0 | G39: 0 | H39: 0 | J39: -1.515 | K39: 0
A40: 9.833333333 | B40: -1.516666667 | D40: 0 | E40: 0 | F40: 0 | G40: 0 | H40: 0 | J40: -1.516666667 | K40: 0
A41: 9.816666667 | B41: -1.518333333 | D41: 0 | E41: 0 | F41: 0 | G41: 0 | H41: 0 | J41: -1.518333333 | K41: 0
A42: 9.8 | B42: -1.52 | D42: 0 | E42: 0 | F42: 0 | G42: 0 | H42: 0 | J42: -1.52 | K42: 0
A43: 9.783333333 | B43: -1.521666667 | D43: 0 | E43: 0 | F43: 0 | G43: 0 | H43: 0 | J43: -1.521666667 | K43: 0
A44: 9.766666667 | B44: -1.523333333 | D44: 0 | E44: 0 | F44: 0 | G44: 0 | H44: 0 | J44: -1.523333333 | K44: 0
A45: 9.75 | B45: -1.525 | D45: 0 | E45: 0 | F45: 0 | G45: 0 | H45: 0 | J45: -1.525 | K45: 0
A46: 9.733333333 | B46: -1.526666667 | D46: 0 | E46: 0 | F46: 0 | G46: 0 | H46: 0 | J46: -1.526666667 | K46: 0
A47: 9.716666667 | B47: -1.528333333 | D47: 0 | E47: 0 | F47: 0 | G47: 0 | H47: 0 | J47: -1.528333333 | K47: 0
A48: 9.7 | B48: -1.53 | D48: 0 | E48: 0 | F48: 0 | G48: 0 | H48: 0 | J48: -1.53 | K48: 0
A49: 9.683333333 | B49: -1.531666667 | D49: 0 | E49: 0 | F49: 0 | G49: 0 | H49: 0 | J49: -1.531666667 | K49: 0
A50: 9.666666667 | B50: -1.533333333 | D50: 0 | E50: 0 | F50: 0 | G50: 0 | H50: 0 | J50: -1.533333333 | K50: 0
A51: 9.65 | B51: -1.535 | D51: 0 | E51: 0 | F51: 0 | G51: 0 | H51: 0 | J51: -1.535 | K51: 0
A52: 9.633333333 | B52: -1.536666667 | D52: 0 | E52: 0 | F52: 0 | G52: 0 | H52: 0 | J52: -1.536666667 | K52: 0
A53: 9.616666667 | B53: -1.538333333 | D53: 0 | E53: 0 | F53: 0 | G53: 0 | H53: 0 | J53: -1.538333333 | K53: 0
A54: 9.6 | B54: -1.54 | D54: 0 | E54: 0 | F54: 0 | G54: 0 | H54: 0 | J54: -1.54 | K54: 0
A55: 9.583333333 | B55: -1.541666667 | D55: 0 | E55: 0 | F55: 0 | G55: 0 | H55: 0 | J55: -1.541666667 | K55: 0
A56: 9.566666667 | B56: -1.543333333 | D56: 0 | E56: 0 | F56: 0 | G56: 0 | H56: 0 | J56: -1.543333333 | K56: 0
A57: 9.55 | B57: -1.545 | D57: 0 | E57: 0 | F57: 0 | G57: 0 | H57: 0 | J57: -1.545 | K57: 0
A58: 9.533333333 | B58: -1.546666667 | D58: 0 | E58: 0 | F58: 0 | G58: 0 | H58: 0 | J58: -1.546666667 | K58: 0
A59: 9.516666667 | B59: -1.548333333 | D59: 0 | E59: 0 | F59: 0 | G59: 0 | H59: 0 | J59: -1.548333333 | K59: 0
A60: 9.5 | B60: -1.55 | D60: 0 | E60: 0 | F60: 0 | G60: 0 | H60: 0 | J60: -1.55 | K60: 0
A61: 9.483333333 | B61: -1.551666667 | D61: 0 | E61: 0 | F61: 0 | G61: 0 | H61: 0 | J61: -1.551666667 | K61: 0
A62: 9.466666667 | B62: -1.553333333 | D62: 0 | E62: 0 | F62: 0 | G62: 0 | H62: 0 | J62: -1.553333333 | K62: 0
A63: 9.45 | B63: -1.555 | D63: 0 | E63: 0 | F63: 0 | G63: 0 | H63: 0 | J63: -1.555 | K63: 0
A64: 9.433333333 | B64: -1.556666667 | D64: 0 | E64: 0 | F64: 0 | G64: 0 | H64: 0 | J64: -1.556666667 | K64: 0
A65: 9.416666667 | B65: -1.558333333 | D65: 0 | E65: 0 | F65: 0 | G65: 0 | H65: 0 | J65: -1.558333333 | K65: 0
A66: 9.4 | B66: -1.56 | D66: 0 | E66: 0 | F66: 0 | G66: 0 | H66: 0 | J66: -1.56 | K66: 0
A67: 9.383333333 | B67: -1.561666667 | D67: 0 | E67: 0 | F67: 0 | G67: 0 | H67: 0 | J67: -1.561666667 | K67: 0
A68: 9.366666667 | B68: -1.563333333 | D68: 0 | E68: 0 | F68: 0 | G68: 0 | H68: 0 | J68: -1.563333333 | K68: 0
A69: 9.35 | B69: -1.565 | D69: 0 | E69: 0 | F69: 0 | G69: 0 | H69: 0 | J69: -1.565 | K69: 0
A70: 9.333333333 | B70: -1.566666667 | D70: 0 | E70: 0 | F70: 0 | G70: 0 | H70: 0 | J70: -1.566666667 | K70: 0
A71: 9.316666667 | B71: -1.568333333 | D71: 0 | E71: 0 | F71: 0 | G71: 0 | H71: 0 | J71: -1.568333333 | K71: 0
A72: 9.3 | B72: -1.57 | D72: 0 | E72: 0 | F72: 0 | G72: 0 | H72: 0 | J72: -1.57 | K72: 0
A73: 9.283333333 | B73: -1.571666667 | D73: 0 | E73: 0 | F73: 0 | G73: 0 | H73: 0 | J73: -1.571666667 | K73: 0
A74: 9.266666667 | B74: -1.573333333 | D74: 0 | E74: 0 | F74: 0 | G74: 0 | H74: 0 | J74: -1.573333333 | K74: 0
A75: 9.25 | B75: -1.575 | D75: 0 | E75: 0 | F75: 0 | G75: 0 | H75: 0 | J75: -1.575 | K75: 0
A76: 9.233333333 | B76: -1.576666667 | D76: 0 | E76: 0 | F76: 0 | G76: 0 | H76: 0 | J76: -1.576666667 | K76: 0
A77: 9.216666667 | B77: -1.578333333 | D77: 0 | E77: 0 | F77: 0 | G77: 0 | H77: 0 | J77: -1.578333333 | K77: 0
A78: 9.2 | B78: -1.58 | D78: 0 | E78: 0 | F78: 0 | G78: 0 | H78: 0 | J78: -1.58 | K78: 0
A79: 9.183333333 | B79: -1.581666667 | D79: 0 | E79: 0 | F79: 0 | G79: 0 | H79: 0 | J79: -1.581666667 | K79: 0
A80: 9.166666667 | B80: -1.583333333 | D80: 0 | E80: 0 | F80: 0 | G80: 0 | H80: 0 | J80: -1.583333333 | K80: 0
A81: 9.15 | B81: -1.585 | D81: 0 | E81: 0 | F81: 0 | G81: 0 | H81: 0 | J81: -1.585 | K81: 0
A82: 9.133333333 | B82: -1.586666667 | D82: 0 | E82: 0 | F82: 0 | G82: 0 | H82: 0 | J82: -1.586666667 | K82: 0
A83: 9.116666667 | B83: -1.588333333 | D83: 0 | E83: 0 | F83: 0 | G83: 0 | H83: 0 | J83: -1.588333333 | K83: 0
A84: 9.1 | B84: -1.59 | D84: 0 | E84: 0 | F84: 0 | G84: 0 | H84: 0 | J84: -1.59 | K84: 0
A85: 9.083333333 | B85: -1.591666667 | D85: 0 | E85: 0 | F85: 0 | G85: 0 | H85: 0 | J85: -1.591666667 | K85: 0
A86: 9.066666667 | B86: -1.593333333 | D86: 0 | E86: 0 | F86: 0 | G86: 0 | H86: 0 | J86: -1.593333333 | K86: 0
A87: 9.05 | B87: -1.595 | D87: 0 | E87: 0 | F87: 0 | G87: 0 | H87: 0 | J87: -1.595 | K87: 0
A88: 9.033333333 | B88: -1.596666667 | D88: 0 | E88: 0 | F88: 0 | G88: 0 | H88: 0 | J88: -1.596666667 | K88: 0
A89: 9.016666667 | B89: -1.598333333 | D89: 0 | E89: 0 | F89: 0 | G89: 0 | H89: 0 | J89: -1.598333333 | K89: 0
A90: 9 | B90: -1.6 | D90: 0 | E90: 0 | F90: 0 | G90: 0 | H90: 0 | J90: -1.6 | K90: 0
A91: 8.983333333 | B91: -1.601666667 | D91: 0 | E91: 0 | F91: 0 | G91: 0 | H91: 0 | J91: -1.601666667 | K91: 0
A92: 8.966666667 | B92: -1.603333333 | D92: 0 | E92: 0 | F92: 0 | G92: 0 | H92: 0 | J92: -1.603333333 | K92: 0
A93: 8.95 | B93: -1.605 | D93: 0 | E93: 0 | F93: 0 | G93: 0 | H93: 0 | J93: -1.605 | K93: 0
A94: =A95+$K$22 -> 8.933333333 | B94: =B95-(($B$20-$B$19)/300) -> -1.606666667 | D94: =IF($B$26="I",$B$11*$K$19*$B$22*C1302,-$B$11*$K$19*$B$22*C1302) -> 0 | E94: =IF($B$26="I",$E$11*$K$19*$B$22*J1302,-$E$11*$K$19*$B$22*J1302) -> 0 | F94: =IF($B$26="I",$H$11*$K$19*$B$22*Q1302,-$H$11*$K$19*$B$22*Q1302) -> 0 | G94: =IF($B$26="I",$K$11*$K$19*$B$22*X1302,-$K$11*$K$19*$B$22*X1302) -> 0 | H94: =IF($B$19>$B$20,D94+E94+F94+G94,-(D94+E94+F94+G94)) -> 0 | J94: -1.606666667 | K94: 0
A95: 8.916666667 | B95: -1.608333333 | D95: 0 | E95: 0 | F95: 0 | G95: 0 | H95: 0 | J95: =B95 -> -1.608333333 | K95: =H95 -> 0
A96: 8.9 | B96: -1.61 | D96: 0 | E96: 0 | F96: 0 | G96: 0 | H96: 0 | J96: -1.61 | K96: 0
A97: 8.883333333 | B97: -1.611666667 | D97: 0 | E97: 0 | F97: 0 | G97: 0 | H97: 0 | J97: -1.611666667 | K97: 0
A98: 8.866666667 | B98: -1.613333333 | D98: 0 | E98: 0 | F98: 0 | G98: 0 | H98: 0 | J98: -1.613333333 | K98: 0
A99: 8.85 | B99: -1.615 | D99: 0 | E99: 0 | F99: 0 | G99: 0 | H99: 0 | J99: -1.615 | K99: 0
A100: 8.833333333 | B100: -1.616666667 | D100: 0 | E100: 0 | F100: 0 | G100: 0 | H100: 0 | J100: -1.616666667 | K100: 0
A101: 8.816666667 | B101: -1.618333333 | D101: 0 | E101: 0 | F101: 0 | G101: 0 | H101: 0 | J101: -1.618333333 | K101: 0
A102: 8.8 | B102: -1.62 | D102: 0 | E102: 0 | F102: 0 | G102: 0 | H102: 0 | J102: -1.62 | K102: 0
A103: 8.783333333 | B103: -1.621666667 | D103: 0 | E103: 0 | F103: 0 | G103: 0 | H103: 0 | J103: -1.621666667 | K103: 0
A104: 8.766666667 | B104: -1.623333333 | D104: 0 | E104: 0 | F104: 0 | G104: 0 | H104: 0 | J104: -1.623333333 | K104: 0
A105: 8.75 | B105: -1.625 | D105: 0 | E105: 0 | F105: 0 | G105: 0 | H105: 0 | J105: -1.625 | K105: 0
A106: 8.733333333 | B106: -1.626666667 | D106: 0 | E106: 0 | F106: 0 | G106: 0 | H106: 0 | J106: -1.626666667 | K106: 0
A107: 8.716666667 | B107: -1.628333333 | D107: 0 | E107: 0 | F107: 0 | G107: 0 | H107: 0 | J107: -1.628333333 | K107: 0
A108: 8.7 | B108: -1.63 | D108: 0 | E108: 0 | F108: 0 | G108: 0 | H108: 0 | J108: -1.63 | K108: 0
A109: 8.683333333 | B109: -1.631666667 | D109: 0 | E109: 0 | F109: 0 | G109: 0 | H109: 0 | J109: -1.631666667 | K109: 0
A110: 8.666666667 | B110: -1.633333333 | D110: 0 | E110: 0 | F110: 0 | G110: 0 | H110: 0 | J110: -1.633333333 | K110: 0
A111: 8.65 | B111: -1.635 | D111: 0 | E111: 0 | F111: 0 | G111: 0 | H111: 0 | J111: -1.635 | K111: 0
A112: 8.633333333 | B112: -1.636666667 | D112: 0 | E112: 0 | F112: 0 | G112: 0 | H112: 0 | J112: -1.636666667 | K112: 0
A113: 8.616666667 | B113: -1.638333333 | D113: 0 | E113: 0 | F113: 0 | G113: 0 | H113: 0 | J113: -1.638333333 | K113: 0
A114: 8.6 | B114: -1.64 | D114: 0 | E114: 0 | F114: 0 | G114: 0 | H114: 0 | J114: -1.64 | K114: 0
A115: 8.583333333 | B115: -1.641666667 | D115: 0 | E115: 0 | F115: 0 | G115: 0 | H115: 0 | J115: -1.641666667 | K115: 0
A116: 8.566666667 | B116: -1.643333333 | D116: 0 | E116: 0 | F116: 0 | G116: 0 | H116: 0 | J116: -1.643333333 | K116: 0
A117: 8.55 | B117: -1.645 | D117: 0 | E117: 0 | F117: 0 | G117: 0 | H117: 0 | J117: -1.645 | K117: 0
A118: 8.533333333 | B118: -1.646666667 | D118: 0 | E118: 0 | F118: 0 | G118: 0 | H118: 0 | J118: -1.646666667 | K118: 0
A119: 8.516666667 | B119: -1.648333333 | D119: 0 | E119: 0 | F119: 0 | G119: 0 | H119: 0 | J119: -1.648333333 | K119: 0
A120: 8.5 | B120: -1.65 | D120: 0 | E120: 0 | F120: 0 | G120: 0 | H120: 0 | J120: -1.65 | K120: 0
A121: 8.483333333 | B121: -1.651666667 | D121: 0 | E121: 0 | F121: 0 | G121: 0 | H121: 0 | J121: -1.651666667 | K121: 0
A122: 8.466666667 | B122: -1.653333333 | D122: 0 | E122: 0 | F122: 0 | G122: 0 | H122: 0 | J122: -1.653333333 | K122: 0
A123: 8.45 | B123: -1.655 | D123: 0 | E123: 0 | F123: 0 | G123: 0 | H123: 0 | J123: -1.655 | K123: 0
A124: 8.433333333 | B124: -1.656666667 | D124: 0 | E124: 0 | F124: 0 | G124: 0 | H124: 0 | J124: -1.656666667 | K124: 0
A125: 8.416666667 | B125: -1.658333333 | D125: 0 | E125: 0 | F125: 0 | G125: 0 | H125: 0 | J125: -1.658333333 | K125: 0
A126: 8.4 | B126: -1.66 | D126: 0 | E126: 0 | F126: 0 | G126: 0 | H126: 0 | J126: -1.66 | K126: 0
A127: 8.383333333 | B127: -1.661666667 | D127: 0 | E127: 0 | F127: 0 | G127: 0 | H127: 0 | J127: -1.661666667 | K127: 0
A128: 8.366666667 | B128: -1.663333333 | D128: 0 | E128: 0 | F128: 0 | G128: 0 | H128: 0 | J128: -1.663333333 | K128: 0
A129: 8.35 | B129: -1.665 | D129: 0 | E129: 0 | F129: 0 | G129: 0 | H129: 0 | J129: -1.665 | K129: 0
A130: 8.333333333 | B130: -1.666666667 | D130: 0 | E130: 0 | F130: 0 | G130: 0 | H130: 0 | J130: -1.666666667 | K130: 0
A131: 8.316666667 | B131: -1.668333333 | D131: 0 | E131: 0 | F131: 0 | G131: 0 | H131: 0 | J131: -1.668333333 | K131: 0
A132: 8.3 | B132: -1.67 | D132: 0 | E132: 0 | F132: 0 | G132: 0 | H132: 0 | J132: -1.67 | K132: 0
A133: 8.283333333 | B133: -1.671666667 | D133: 0 | E133: 0 | F133: 0 | G133: 0 | H133: 0 | J133: -1.671666667 | K133: 0
A134: 8.266666667 | B134: -1.673333333 | D134: 0 | E134: 0 | F134: 0 | G134: 0 | H134: 0 | J134: -1.673333333 | K134: 0
A135: 8.25 | B135: -1.675 | D135: 0 | E135: 0 | F135: 0 | G135: 0 | H135: 0 | J135: -1.675 | K135: 0
A136: 8.233333333 | B136: -1.676666667 | D136: 0 | E136: 0 | F136: 0 | G136: 0 | H136: 0 | J136: -1.676666667 | K136: 0
A137: 8.216666667 | B137: -1.678333333 | D137: 0 | E137: 0 | F137: 0 | G137: 0 | H137: 0 | J137: -1.678333333 | K137: 0
A138: 8.2 | B138: -1.68 | D138: 0 | E138: 0 | F138: 0 | G138: 0 | H138: 0 | J138: -1.68 | K138: 0
A139: 8.183333333 | B139: -1.681666667 | D139: 0 | E139: 0 | F139: 0 | G139: 0 | H139: 0 | J139: -1.681666667 | K139: 0
A140: 8.166666667 | B140: -1.683333333 | D140: 0 | E140: 0 | F140: 0 | G140: 0 | H140: 0 | J140: -1.683333333 | K140: 0
A141: 8.15 | B141: -1.685 | D141: 0 | E141: 0 | F141: 0 | G141: 0 | H141: 0 | J141: -1.685 | K141: 0
A142: 8.133333333 | B142: -1.686666667 | D142: 0 | E142: 0 | F142: 0 | G142: 0 | H142: 0 | J142: -1.686666667 | K142: 0
A143: 8.116666667 | B143: -1.688333333 | D143: 0 | E143: 0 | F143: 0 | G143: 0 | H143: 0 | J143: -1.688333333 | K143: 0
A144: 8.1 | B144: -1.69 | D144: 0 | E144: 0 | F144: 0 | G144: 0 | H144: 0 | J144: -1.69 | K144: 0
A145: 8.083333333 | B145: -1.691666667 | D145: 0 | E145: 0 | F145: 0 | G145: 0 | H145: 0 | J145: -1.691666667 | K145: 0
A146: 8.066666667 | B146: -1.693333333 | D146: 0 | E146: 0 | F146: 0 | G146: 0 | H146: 0 | J146: -1.693333333 | K146: 0
A147: 8.05 | B147: -1.695 | D147: 0 | E147: 0 | F147: 0 | G147: 0 | H147: 0 | J147: -1.695 | K147: 0
A148: 8.033333333 | B148: -1.696666667 | D148: 0 | E148: 0 | F148: 0 | G148: 0 | H148: 0 | J148: -1.696666667 | K148: 0
A149: 8.016666667 | B149: -1.698333333 | D149: 0 | E149: 0 | F149: 0 | G149: 0 | H149: 0 | J149: -1.698333333 | K149: 0
A150: 8 | B150: -1.7 | D150: 0 | E150: 0 | F150: 0 | G150: 0 | H150: 0 | J150: -1.7 | K150: 0
A151: 7.983333333 | B151: -1.701666667 | D151: 0 | E151: 0 | F151: 0 | G151: 0 | H151: 0 | J151: -1.701666667 | K151: 0
A152: 7.966666667 | B152: -1.703333333 | D152: 0 | E152: 0 | F152: 0 | G152: 0 | H152: 0 | J152: -1.703333333 | K152: 0
A153: 7.95 | B153: -1.705 | D153: 0 | E153: 0 | F153: 0 | G153: 0 | H153: 0 | J153: -1.705 | K153: 0
A154: 7.933333333 | B154: -1.706666667 | D154: 0 | E154: 0 | F154: 0 | G154: 0 | H154: 0 | J154: -1.706666667 | K154: 0
A155: 7.916666667 | B155: -1.708333333 | D155: 0 | E155: 0 | F155: 0 | G155: 0 | H155: 0 | J155: -1.708333333 | K155: 0
A156: 7.9 | B156: -1.71 | D156: 0 | E156: 0 | F156: 0 | G156: 0 | H156: 0 | J156: -1.71 | K156: 0
A157: 7.883333333 | B157: -1.711666667 | D157: 0 | E157: 0 | F157: 0 | G157: 0 | H157: 0 | J157: -1.711666667 | K157: 0
A158: =A159+$K$22 -> 7.866666667 | B158: =B159-(($B$20-$B$19)/300) -> -1.713333333 | D158: =IF($B$26="I",$B$11*$K$19*$B$22*C1366,-$B$11*$K$19*$B$22*C1366) -> 0 | E158: =IF($B$26="I",$E$11*$K$19*$B$22*J1366,-$E$11*$K$19*$B$22*J1366) -> 0 | F158: =IF($B$26="I",$H$11*$K$19*$B$22*Q1366,-$H$11*$K$19*$B$22*Q1366) -> 0 | G158: =IF($B$26="I",$K$11*$K$19*$B$22*X1366,-$K$11*$K$19*$B$22*X1366) -> 0 | H158: =IF($B$19>$B$20,D158+E158+F158+G158,-(D158+E158+F158+G158)) -> 0 | J158: -1.713333333 | K158: 0
A159: 7.85 | B159: -1.715 | D159: 0 | E159: 0 | F159: 0 | G159: 0 | H159: 0 | J159: =B159 -> -1.715 | K159: =H159 -> 0
A160: 7.833333333 | B160: -1.716666667 | D160: 0 | E160: 0 | F160: 0 | G160: 0 | H160: 0 | J160: -1.716666667 | K160: 0
A161: 7.816666667 | B161: -1.718333333 | D161: 0 | E161: 0 | F161: 0 | G161: 0 | H161: 0 | J161: -1.718333333 | K161: 0
A162: 7.8 | B162: -1.72 | D162: 0 | E162: 0 | F162: 0 | G162: 0 | H162: 0 | J162: -1.72 | K162: 0
A163: 7.783333333 | B163: -1.721666667 | D163: 0 | E163: 0 | F163: 0 | G163: 0 | H163: 0 | J163: -1.721666667 | K163: 0
A164: 7.766666667 | B164: -1.723333333 | D164: 0 | E164: 0 | F164: 0 | G164: 0 | H164: 0 | J164: -1.723333333 | K164: 0
A165: 7.75 | B165: -1.725 | D165: 0 | E165: 0 | F165: 0 | G165: 0 | H165: 0 | J165: -1.725 | K165: 0
A166: 7.733333333 | B166: -1.726666667 | D166: 0 | E166: 0 | F166: 0 | G166: 0 | H166: 0 | J166: -1.726666667 | K166: 0
A167: 7.716666667 | B167: -1.728333333 | D167: 0 | E167: 0 | F167: 0 | G167: 0 | H167: 0 | J167: -1.728333333 | K167: 0
A168: 7.7 | B168: -1.73 | D168: 0 | E168: 0 | F168: 0 | G168: 0 | H168: 0 | J168: -1.73 | K168: 0
A169: 7.683333333 | B169: -1.731666667 | D169: 0 | E169: 0 | F169: 0 | G169: 0 | H169: 0 | J169: -1.731666667 | K169: 0
A170: 7.666666667 | B170: -1.733333333 | D170: 0 | E170: 0 | F170: 0 | G170: 0 | H170: 0 | J170: -1.733333333 | K170: 0
A171: 7.65 | B171: -1.735 | D171: 0 | E171: 0 | F171: 0 | G171: 0 | H171: 0 | J171: -1.735 | K171: 0
A172: 7.633333333 | B172: -1.736666667 | D172: 0 | E172: 0 | F172: 0 | G172: 0 | H172: 0 | J172: -1.736666667 | K172: 0
A173: 7.616666667 | B173: -1.738333333 | D173: 0 | E173: 0 | F173: 0 | G173: 0 | H173: 0 | J173: -1.738333333 | K173: 0
A174: 7.6 | B174: -1.74 | D174: 0 | E174: 0 | F174: 0 | G174: 0 | H174: 0 | J174: -1.74 | K174: 0
A175: 7.583333333 | B175: -1.741666667 | D175: 0 | E175: 0 | F175: 0 | G175: 0 | H175: 0 | J175: -1.741666667 | K175: 0
A176: 7.566666667 | B176: -1.743333333 | D176: 0 | E176: 0 | F176: 0 | G176: 0 | H176: 0 | J176: -1.743333333 | K176: 0
A177: 7.55 | B177: -1.745 | D177: 0 | E177: 0 | F177: 0 | G177: 0 | H177: 0 | J177: -1.745 | K177: 0
A178: 7.533333333 | B178: -1.746666667 | D178: 0 | E178: 0 | F178: 0 | G178: 0 | H178: 0 | J178: -1.746666667 | K178: 0
A179: 7.516666667 | B179: -1.748333333 | D179: 0 | E179: 0 | F179: 0 | G179: 0 | H179: 0 | J179: -1.748333333 | K179: 0
A180: 7.5 | B180: -1.75 | D180: 0 | E180: 0 | F180: 0 | G180: 0 | H180: 0 | J180: -1.75 | K180: 0
A181: 7.483333333 | B181: -1.751666667 | D181: 0 | E181: 0 | F181: 0 | G181: 0 | H181: 0 | J181: -1.751666667 | K181: 0
A182: 7.466666667 | B182: -1.753333333 | D182: 0 | E182: 0 | F182: 0 | G182: 0 | H182: 0 | J182: -1.753333333 | K182: 0
A183: 7.45 | B183: -1.755 | D183: 0 | E183: 0 | F183: 0 | G183: 0 | H183: 0 | J183: -1.755 | K183: 0
A184: 7.433333333 | B184: -1.756666667 | D184: 0 | E184: 0 | F184: 0 | G184: 0 | H184: 0 | J184: -1.756666667 | K184: 0
A185: 7.416666667 | B185: -1.758333333 | D185: 0 | E185: 0 | F185: 0 | G185: 0 | H185: 0 | J185: -1.758333333 | K185: 0
A186: 7.4 | B186: -1.76 | D186: 0 | E186: 0 | F186: 0 | G186: 0 | H186: 0 | J186: -1.76 | K186: 0
A187: 7.383333333 | B187: -1.761666667 | D187: 0 | E187: 0 | F187: 0 | G187: 0 | H187: 0 | J187: -1.761666667 | K187: 0
A188: 7.366666667 | B188: -1.763333333 | D188: 0 | E188: 0 | F188: 0 | G188: 0 | H188: 0 | J188: -1.763333333 | K188: 0
A189: 7.35 | B189: -1.765 | D189: 0 | E189: 0 | F189: 0 | G189: 0 | H189: 0 | J189: -1.765 | K189: 0
A190: 7.333333333 | B190: -1.766666667 | D190: 0 | E190: 0 | F190: 0 | G190: 0 | H190: 0 | J190: -1.766666667 | K190: 0
A191: 7.316666667 | B191: -1.768333333 | D191: 0 | E191: 0 | F191: 0 | G191: 0 | H191: 0 | J191: -1.768333333 | K191: 0
A192: 7.3 | B192: -1.77 | D192: 0 | E192: 0 | F192: 0 | G192: 0 | H192: 0 | J192: -1.77 | K192: 0
A193: 7.283333333 | B193: -1.771666667 | D193: 0 | E193: 0 | F193: 0 | G193: 0 | H193: 0 | J193: -1.771666667 | K193: 0
A194: 7.266666667 | B194: -1.773333333 | D194: 0 | E194: 0 | F194: 0 | G194: 0 | H194: 0 | J194: -1.773333333 | K194: 0
A195: 7.25 | B195: -1.775 | D195: 0 | E195: 0 | F195: 0 | G195: 0 | H195: 0 | J195: -1.775 | K195: 0
A196: 7.233333333 | B196: -1.776666667 | D196: 0 | E196: 0 | F196: 0 | G196: 0 | H196: 0 | J196: -1.776666667 | K196: 0
A197: 7.216666667 | B197: -1.778333333 | D197: 0 | E197: 0 | F197: 0 | G197: 0 | H197: 0 | J197: -1.778333333 | K197: 0
A198: 7.2 | B198: -1.78 | D198: 0 | E198: 0 | F198: 0 | G198: 0 | H198: 0 | J198: -1.78 | K198: 0
A199: 7.183333333 | B199: -1.781666667 | D199: 0 | E199: 0 | F199: 0 | G199: 0 | H199: 0 | J199: -1.781666667 | K199: 0
A200: 7.166666667 | B200: -1.783333333 | D200: 0 | E200: 0 | F200: 0 | G200: 0 | H200: 0 | J200: -1.783333333 | K200: 0
A201: 7.15 | B201: -1.785 | D201: 0 | E201: 0 | F201: 0 | G201: 0 | H201: 0 | J201: -1.785 | K201: 0
A202: 7.133333333 | B202: -1.786666667 | D202: 0 | E202: 0 | F202: 0 | G202: 0 | H202: 0 | J202: -1.786666667 | K202: 0
A203: 7.116666667 | B203: -1.788333333 | D203: 0 | E203: 0 | F203: 0 | G203: 0 | H203: 0 | J203: -1.788333333 | K203: 0
A204: 7.1 | B204: -1.79 | D204: 0 | E204: 0 | F204: 0 | G204: 0 | H204: 0 | J204: -1.79 | K204: 0
A205: 7.083333333 | B205: -1.791666667 | D205: 0 | E205: 0 | F205: 0 | G205: 0 | H205: 0 | J205: -1.791666667 | K205: 0
... 357 more rows

Sheet Total simulation
A1: Total simulation obtained by adding the current contributions of all the species
A2: Instructions: Adjust the current offsets found below to obtain the desired plot.
A4: Species | B4: Offset (A) | D4: Error analysis
A5: 1 | B5: -1.3e-06 | D5: n = | E5: =COUNT(G12:G611) -> 600 | F5: points
A6: 2 | B6: -2e-06 | D6: Avg. r = | E6: =AVERAGE(N12:N611) -> -8.166076475e-10 | F6: A
A7: 3 | B7: -3e-06 | D7: Sr2 = | E7: =SUM(P12:P611) -> 6.439367478e-13 | F7: A2
A8: Total | B8: 0 | D8: ERMS = | E8: =SQRT(E7/E5) -> 3.27601574e-08 | F8: A
A10: Potential | B10: Experimental | D10: Simulated currents from species and total (A): | I10: Apply current offsets to species and total (A): | N10: Current | P10: Current residuals
A11: ramp (V) | B11: current (A) | D11: 1 | E11: 2 | F11: 3 | G11: Total | I11: 1 | J11: 2 | K11: 3 | L11: Total | N11: residuals (A) | P11: squared (A2)
A12: ='Species 1'!J30 -> -1.5 | B12: ='Import data'!K18 -> -2.5513268e-07 | D12: ='Species 1'!K30 -> -1.358651487e-07 | E12: ='Species 2'!K30 -> 0 | F12: ='Species 3'!K30 -> 0 | G12: =D12+E12+F12 -> -1.358651487e-07 | I12: =$D12+$B$5 -> -1.435865149e-06 | J12: =$E12+$B$6 -> -2e-06 | K12: =$F12+$B$7 -> -3e-06 | L12: =$G12+$B$8 -> -1.358651487e-07 | N12: =$G12-$B12 -> 1.192675313e-07 | P12: =N12^2 -> 1.422474402e-14
A13: ='Species 1'!J31 -> -1.501666667 | B13: ='Import data'!K19 -> -2.473806e-07 | D13: ='Species 1'!K31 -> -1.371849098e-07 | E13: ='Species 2'!K31 -> 0 | F13: ='Species 3'!K31 -> 0 | G13: =D13+E13+F13 -> -1.371849098e-07 | I13: -1.43718491e-06 | J13: -2e-06 | K13: -3e-06 | L13: -1.371849098e-07 | N13: 1.101956902e-07 | P13: 1.214309014e-14
A14: ='Species 1'!J32 -> -1.503333333 | B14: ='Import data'!K20 -> -2.504326e-07 | D14: ='Species 1'!K32 -> -1.385287272e-07 | E14: ='Species 2'!K32 -> 0 | F14: ='Species 3'!K32 -> 0 | G14: -1.385287272e-07 | I14: -1.438528727e-06 | J14: -2e-06 | K14: -3e-06 | L14: -1.385287272e-07 | N14: 1.119038728e-07 | P14: 1.252247674e-14
A15: ='Species 1'!J33 -> -1.505 | B15: ='Import data'!K21 -> -2.5818468e-07 | D15: ='Species 1'!K33 -> -1.398971996e-07 | E15: ='Species 2'!K33 -> 0 | F15: ='Species 3'!K33 -> 0 | G15: -1.398971996e-07 | I15: -1.4398972e-06 | J15: -2e-06 | K15: -3e-06 | L15: -1.398971996e-07 | N15: 1.182874804e-07 | P15: 1.399192801e-14
A16: ='Species 1'!J34 -> -1.506666667 | B16: ='Import data'!K22 -> -2.5018844e-07 | D16: ='Species 1'!K34 -> -1.412909405e-07 | E16: ='Species 2'!K34 -> 0 | F16: ='Species 3'!K34 -> 0 | G16: -1.412909405e-07 | I16: -1.441290941e-06 | J16: -2e-06 | K16: -3e-06 | L16: -1.412909405e-07 | N16: 1.088974995e-07 | P16: 1.185866539e-14
A17: ='Species 1'!J35 -> -1.508333333 | B17: ='Import data'!K23 -> -2.5159236e-07 | D17: ='Species 1'!K35 -> -1.427105781e-07 | E17: ='Species 2'!K35 -> 0 | F17: ='Species 3'!K35 -> 0 | G17: -1.427105781e-07 | I17: -1.442710578e-06 | J17: -2e-06 | K17: -3e-06 | L17: -1.427105781e-07 | N17: 1.088817819e-07 | P17: 1.185524244e-14
A18: ='Species 1'!J36 -> -1.51 | B18: ='Import data'!K24 -> -2.614803e-07 | D18: ='Species 1'!K36 -> -1.441567553e-07 | E18: ='Species 2'!K36 -> 0 | F18: ='Species 3'!K36 -> 0 | G18: -1.441567553e-07 | I18: -1.444156755e-06 | J18: -2e-06 | K18: -3e-06 | L18: -1.441567553e-07 | N18: 1.173235447e-07 | P18: 1.376481414e-14
A19: ='Species 1'!J37 -> -1.511666667 | B19: ='Import data'!K25 -> -2.5513268e-07 | D19: ='Species 1'!K37 -> -1.456301302e-07 | E19: ='Species 2'!K37 -> 0 | F19: ='Species 3'!K37 -> 0 | G19: -1.456301302e-07 | I19: -1.44563013e-06 | J19: -2e-06 | K19: -3e-06 | L19: -1.456301302e-07 | N19: 1.095025498e-07 | P19: 1.199080842e-14
A20: ='Species 1'!J38 -> -1.513333333 | B20: ='Import data'!K26 -> -2.5818468e-07 | D20: ='Species 1'!K38 -> -1.471313752e-07 | E20: ='Species 2'!K38 -> 0 | F20: ='Species 3'!K38 -> 0 | G20: -1.471313752e-07 | I20: -1.447131375e-06 | J20: -2e-06 | K20: -3e-06 | L20: -1.471313752e-07 | N20: 1.110533048e-07 | P20: 1.23328365e-14
A21: ='Species 1'!J39 -> -1.515 | B21: ='Import data'!K27 -> -2.5818468e-07 | D21: ='Species 1'!K39 -> -1.486611778e-07 | E21: ='Species 2'!K39 -> 0 | F21: ='Species 3'!K39 -> 0 | G21: -1.486611778e-07 | I21: -1.448661178e-06 | J21: -2e-06 | K21: -3e-06 | L21: -1.486611778e-07 | N21: 1.095235022e-07 | P21: 1.199539753e-14
A22: ='Species 1'!J40 -> -1.516666667 | B22: ='Import data'!K28 -> -2.5629244e-07 | D22: ='Species 1'!K40 -> -1.502202396e-07 | E22: ='Species 2'!K40 -> 0 | F22: ='Species 3'!K40 -> 0 | G22: -1.502202396e-07 | I22: -1.45022024e-06 | J22: -2e-06 | K22: -3e-06 | L22: -1.502202396e-07 | N22: 1.060722004e-07 | P22: 1.125131171e-14
A23: ='Species 1'!J41 -> -1.518333333 | B23: ='Import data'!K29 -> -2.5818468e-07 | D23: ='Species 1'!K41 -> -1.518092764e-07 | E23: ='Species 2'!K41 -> 0 | F23: ='Species 3'!K41 -> 0 | G23: -1.518092764e-07 | I23: -1.451809276e-06 | J23: -2e-06 | K23: -3e-06 | L23: -1.518092764e-07 | N23: 1.063754036e-07 | P23: 1.13157265e-14
A24: ='Species 1'!J42 -> -1.52 | B24: ='Import data'!K30 -> -2.614803e-07 | D24: ='Species 1'!K42 -> -1.53429018e-07 | E24: ='Species 2'!K42 -> 0 | F24: ='Species 3'!K42 -> 0 | G24: -1.53429018e-07 | I24: -1.453429018e-06 | J24: -2e-06 | K24: -3e-06 | L24: -1.53429018e-07 | N24: 1.08051282e-07 | P24: 1.167507955e-14
A25: ='Species 1'!J43 -> -1.521666667 | B25: ='Import data'!K31 -> -2.553763e-07 | D25: ='Species 1'!K43 -> -1.550802075e-07 | E25: ='Species 2'!K43 -> 0 | F25: ='Species 3'!K43 -> 0 | G25: -1.550802075e-07 | I25: -1.455080208e-06 | J25: -2e-06 | K25: -3e-06 | L25: -1.550802075e-07 | N25: 1.002960925e-07 | P25: 1.005930617e-14
A26: ='Species 1'!J44 -> -1.523333333 | B26: ='Import data'!K32 -> -2.614803e-07 | D26: ='Species 1'!K44 -> -1.567636009e-07 | E26: ='Species 2'!K44 -> 0 | F26: ='Species 3'!K44 -> 0 | G26: -1.567636009e-07 | I26: -1.456763601e-06 | J26: -2e-06 | K26: -3e-06 | L26: -1.567636009e-07 | N26: 1.047166991e-07 | P26: 1.096558706e-14
A27: ='Species 1'!J45 -> -1.525 | B27: ='Import data'!K33 -> -2.5818468e-07 | D27: ='Species 1'!K45 -> -1.584799666e-07 | E27: ='Species 2'!K45 -> 0 | F27: ='Species 3'!K45 -> 0 | G27: -1.584799666e-07 | I27: -1.458479967e-06 | J27: -2e-06 | K27: -3e-06 | L27: -1.584799666e-07 | N27: 9.970471343e-08 | P27: 9.941029879e-15
A28: ='Species 1'!J46 -> -1.526666667 | B28: ='Import data'!K34 -> -2.584283e-07 | D28: ='Species 1'!K46 -> -1.602300841e-07 | E28: ='Species 2'!K46 -> 0 | F28: ='Species 3'!K46 -> 0 | G28: -1.602300841e-07 | I28: -1.460230084e-06 | J28: -2e-06 | K28: -3e-06 | L28: -1.602300841e-07 | N28: 9.819821588e-08 | P28: 9.642889603e-15
A29: ='Species 1'!J47 -> -1.528333333 | B29: ='Import data'!K35 -> -2.6123668e-07 | D29: ='Species 1'!K47 -> -1.620147439e-07 | E29: ='Species 2'!K47 -> 0 | F29: ='Species 3'!K47 -> 0 | G29: -1.620147439e-07 | I29: -1.462014744e-06 | J29: -2e-06 | K29: -3e-06 | L29: -1.620147439e-07 | N29: 9.922193611e-08 | P29: 9.844992606e-15
A30: ='Species 1'!J48 -> -1.53 | B30: ='Import data'!K36 -> -2.6733968e-07 | D30: ='Species 1'!K48 -> -1.638347457e-07 | E30: ='Species 2'!K48 -> 0 | F30: ='Species 3'!K48 -> 0 | G30: -1.638347457e-07 | I30: -1.463834746e-06 | J30: -2e-06 | K30: -3e-06 | L30: -1.638347457e-07 | N30: 1.035049343e-07 | P30: 1.071327142e-14
A31: ='Species 1'!J49 -> -1.531666667 | B31: ='Import data'!K37 -> -2.5818468e-07 | D31: ='Species 1'!K49 -> -1.656908978e-07 | E31: ='Species 2'!K49 -> 0 | F31: ='Species 3'!K49 -> 0 | G31: -1.656908978e-07 | I31: -1.465690898e-06 | J31: -2e-06 | K31: -3e-06 | L31: -1.656908978e-07 | N31: 9.249378218e-08 | P31: 8.555099742e-15
A32: ='Species 1'!J50 -> -1.533333333 | B32: ='Import data'!K38 -> -2.706353e-07 | D32: ='Species 1'!K50 -> -1.675840152e-07 | E32: ='Species 2'!K50 -> 0 | F32: ='Species 3'!K50 -> 0 | G32: -1.675840152e-07 | I32: -1.467584015e-06 | J32: -2e-06 | K32: -3e-06 | L32: -1.675840152e-07 | N32: 1.030512848e-07 | P32: 1.061956729e-14
A33: ='Species 1'!J51 -> -1.535 | B33: ='Import data'!K39 -> -2.614803e-07 | D33: ='Species 1'!K51 -> -1.695149184e-07 | E33: ='Species 2'!K51 -> 0 | F33: ='Species 3'!K51 -> 0 | G33: -1.695149184e-07 | I33: -1.469514918e-06 | J33: -2e-06 | K33: -3e-06 | L33: -1.695149184e-07 | N33: 9.196538157e-08 | P33: 8.457631408e-15
A34: ='Species 1'!J52 -> -1.536666667 | B34: ='Import data'!K40 -> -2.706353e-07 | D34: ='Species 1'!K52 -> -1.714844313e-07 | E34: ='Species 2'!K52 -> 0 | F34: ='Species 3'!K52 -> 0 | G34: -1.714844313e-07 | I34: -1.471484431e-06 | J34: -2e-06 | K34: -3e-06 | L34: -1.714844313e-07 | N34: 9.915086869e-08 | P34: 9.830894762e-15
A35: ='Species 1'!J53 -> -1.538333333 | B35: ='Import data'!K41 -> -2.6733968e-07 | D35: ='Species 1'!K53 -> -1.734933793e-07 | E35: ='Species 2'!K53 -> 0 | F35: ='Species 3'!K53 -> 0 | G35: -1.734933793e-07 | I35: -1.473493379e-06 | J35: -2e-06 | K35: -3e-06 | L35: -1.734933793e-07 | N35: 9.38463007e-08 | P35: 8.807128155e-15
A36: ='Species 1'!J54 -> -1.54 | B36: ='Import data'!K42 -> -2.6123668e-07 | D36: ='Species 1'!K54 -> -1.75542587e-07 | E36: ='Species 2'!K54 -> 0 | F36: ='Species 3'!K54 -> 0 | G36: -1.75542587e-07 | I36: -1.475542587e-06 | J36: -2e-06 | K36: -3e-06 | L36: -1.75542587e-07 | N36: 8.569409304e-08 | P36: 7.343477582e-15
A37: ='Species 1'!J55 -> -1.541666667 | B37: ='Import data'!K43 -> -2.6312838e-07 | D37: ='Species 1'!K55 -> -1.776328754e-07 | E37: ='Species 2'!K55 -> 0 | F37: ='Species 3'!K55 -> 0 | G37: -1.776328754e-07 | I37: -1.477632875e-06 | J37: -2e-06 | K37: -3e-06 | L37: -1.776328754e-07 | N37: 8.549550462e-08 | P37: 7.30948131e-15
A38: ='Species 1'!J56 -> -1.543333333 | B38: ='Import data'!K44 -> -2.614803e-07 | D38: ='Species 1'!K56 -> -1.797650593e-07 | E38: ='Species 2'!K56 -> 0 | F38: ='Species 3'!K56 -> 0 | G38: -1.797650593e-07 | I38: -1.479765059e-06 | J38: -2e-06 | K38: -3e-06 | L38: -1.797650593e-07 | N38: 8.17152407e-08 | P38: 6.677380563e-15
A39: ='Species 1'!J57 -> -1.545 | B39: ='Import data'!K45 -> -2.706353e-07 | D39: ='Species 1'!K57 -> -1.819399438e-07 | E39: ='Species 2'!K57 -> 0 | F39: ='Species 3'!K57 -> 0 | G39: -1.819399438e-07 | I39: -1.481939944e-06 | J39: -2e-06 | K39: -3e-06 | L39: -1.819399438e-07 | N39: 8.86953562e-08 | P39: 7.866866211e-15
A40: ='Species 1'!J58 -> -1.546666667 | B40: ='Import data'!K46 -> -2.6923138e-07 | D40: ='Species 1'!K58 -> -1.841583207e-07 | E40: ='Species 2'!K58 -> 0 | F40: ='Species 3'!K58 -> 0 | G40: -1.841583207e-07 | I40: -1.484158321e-06 | J40: -2e-06 | K40: -3e-06 | L40: -1.841583207e-07 | N40: 8.507305928e-08 | P40: 7.237425416e-15
A41: ='Species 1'!J59 -> -1.548333333 | B41: ='Import data'!K47 -> -2.6923138e-07 | D41: ='Species 1'!K59 -> -1.864209646e-07 | E41: ='Species 2'!K59 -> 0 | F41: ='Species 3'!K59 -> 0 | G41: -1.864209646e-07 | I41: -1.486420965e-06 | J41: -2e-06 | K41: -3e-06 | L41: -1.864209646e-07 | N41: 8.281041542e-08 | P41: 6.857564903e-15
A42: ='Species 1'!J60 -> -1.55 | B42: ='Import data'!K48 -> -2.767393e-07 | D42: ='Species 1'!K60 -> -1.887286281e-07 | E42: ='Species 2'!K60 -> 0 | F42: ='Species 3'!K60 -> 0 | G42: -1.887286281e-07 | I42: -1.488728628e-06 | J42: -2e-06 | K42: -3e-06 | L42: -1.887286281e-07 | N42: 8.801067187e-08 | P42: 7.745878363e-15
A43: ='Species 1'!J61 -> -1.551666667 | B43: ='Import data'!K49 -> -2.7533538e-07 | D43: ='Species 1'!K61 -> -1.910820374e-07 | E43: ='Species 2'!K61 -> 0 | F43: ='Species 3'!K61 -> 0 | G43: -1.910820374e-07 | I43: -1.491082037e-06 | J43: -2e-06 | K43: -3e-06 | L43: -1.910820374e-07 | N43: 8.42533426e-08 | P43: 7.09862574e-15
A44: ='Species 1'!J62 -> -1.553333333 | B44: ='Import data'!K50 -> -2.675833e-07 | D44: ='Species 1'!K62 -> -1.934818862e-07 | E44: ='Species 2'!K62 -> 0 | F44: ='Species 3'!K62 -> 0 | G44: -1.934818862e-07 | I44: -1.493481886e-06 | J44: -2e-06 | K44: -3e-06 | L44: -1.934818862e-07 | N44: 7.410141379e-08 | P44: 5.491019525e-15
A45: ='Species 1'!J63 -> -1.555 | B45: ='Import data'!K51 -> -2.7228338e-07 | D45: ='Species 1'!K63 -> -1.959288302e-07 | E45: ='Species 2'!K63 -> 0 | F45: ='Species 3'!K63 -> 0 | G45: -1.959288302e-07 | I45: -1.49592883e-06 | J45: -2e-06 | K45: -3e-06 | L45: -1.959288302e-07 | N45: 7.63545498e-08 | P45: 5.830017275e-15
A46: ='Species 1'!J64 -> -1.556666667 | B46: ='Import data'!K52 -> -2.7228338e-07 | D46: ='Species 1'!K64 -> -1.984234802e-07 | E46: ='Species 2'!K64 -> 0 | F46: ='Species 3'!K64 -> 0 | G46: -1.984234802e-07 | I46: -1.49842348e-06 | J46: -2e-06 | K46: -3e-06 | L46: -1.984234802e-07 | N46: 7.385989984e-08 | P46: 5.455284805e-15
A47: ='Species 1'!J65 -> -1.558333333 | B47: ='Import data'!K53 -> -2.8003546e-07 | D47: ='Species 1'!K65 -> -2.009663948e-07 | E47: ='Species 2'!K65 -> 0 | F47: ='Species 3'!K65 -> 0 | G47: -2.009663948e-07 | I47: -1.500966395e-06 | J47: -2e-06 | K47: -3e-06 | L47: -2.009663948e-07 | N47: 7.906906521e-08 | P47: 6.251917074e-15
A48: ='Species 1'!J66 -> -1.56 | B48: ='Import data'!K54 -> -2.7393146e-07 | D48: ='Species 1'!K66 -> -2.035580727e-07 | E48: ='Species 2'!K66 -> 0 | F48: ='Species 3'!K66 -> 0 | G48: -2.035580727e-07 | I48: -1.503558073e-06 | J48: -2e-06 | K48: -3e-06 | L48: -2.035580727e-07 | N48: 7.037338725e-08 | P48: 4.952413633e-15
A49: ='Species 1'!J67 -> -1.561666667 | B49: ='Import data'!K55 -> -2.7228338e-07 | D49: ='Species 1'!K67 -> -2.06198944e-07 | E49: ='Species 2'!K67 -> 0 | F49: ='Species 3'!K67 -> 0 | G49: -2.06198944e-07 | I49: -1.506198944e-06 | J49: -2e-06 | K49: -3e-06 | L49: -2.06198944e-07 | N49: 6.608443602e-08 | P49: 4.367152684e-15
A50: ='Species 1'!J68 -> -1.563333333 | B50: ='Import data'!K56 -> -2.7557954e-07 | D50: ='Species 1'!K68 -> -2.088893602e-07 | E50: ='Species 2'!K68 -> 0 | F50: ='Species 3'!K68 -> 0 | G50: -2.088893602e-07 | I50: -1.50888936e-06 | J50: -2e-06 | K50: -3e-06 | L50: -2.088893602e-07 | N50: 6.669017979e-08 | P50: 4.44758008e-15
A51: ='Species 1'!J69 -> -1.565 | B51: ='Import data'!K57 -> -2.7557954e-07 | D51: ='Species 1'!K69 -> -2.116295846e-07 | E51: ='Species 2'!K69 -> 0 | F51: ='Species 3'!K69 -> 0 | G51: -2.116295846e-07 | I51: -1.511629585e-06 | J51: -2e-06 | K51: -3e-06 | L51: -2.116295846e-07 | N51: 6.394995538e-08 | P51: 4.089596793e-15
A52: ='Species 1'!J70 -> -1.566666667 | B52: ='Import data'!K58 -> -2.7533538e-07 | D52: ='Species 1'!K70 -> -2.144197807e-07 | E52: ='Species 2'!K70 -> 0 | F52: ='Species 3'!K70 -> 0 | G52: -2.144197807e-07 | I52: -1.514419781e-06 | J52: -2e-06 | K52: -3e-06 | L52: -2.144197807e-07 | N52: 6.091559934e-08 | P52: 3.710710244e-15
A53: ='Species 1'!J71 -> -1.568333333 | B53: ='Import data'!K59 -> -2.7838738e-07 | D53: ='Species 1'!K71 -> -2.172599998e-07 | E53: ='Species 2'!K71 -> 0 | F53: ='Species 3'!K71 -> 0 | G53: -2.172599998e-07 | I53: -1.51726e-06 | J53: -2e-06 | K53: -3e-06 | L53: -2.172599998e-07 | N53: 6.112738018e-08 | P53: 3.736556607e-15
A54: ='Species 1'!J72 -> -1.57 | B54: ='Import data'!K60 -> -2.7838738e-07 | D54: ='Species 1'!K72 -> -2.201501686e-07 | E54: ='Species 2'!K72 -> 0 | F54: ='Species 3'!K72 -> 0 | G54: -2.201501686e-07 | I54: -1.520150169e-06 | J54: -2e-06 | K54: -3e-06 | L54: -2.201501686e-07 | N54: 5.823721143e-08 | P54: 3.391572796e-15
A55: ='Species 1'!J73 -> -1.571666667 | B55: ='Import data'!K61 -> -2.9108216e-07 | D55: ='Species 1'!K73 -> -2.23090074e-07 | E55: ='Species 2'!K73 -> 0 | F55: ='Species 3'!K73 -> 0 | G55: -2.23090074e-07 | I55: -1.523090074e-06 | J55: -2e-06 | K55: -3e-06 | L55: -2.23090074e-07 | N55: 6.7992086e-08 | P55: 4.622923758e-15
A56: ='Species 1'!J74 -> -1.573333333 | B56: ='Import data'!K62 -> -2.9108216e-07 | D56: ='Species 1'!K74 -> -2.260793486e-07 | E56: ='Species 2'!K74 -> 0 | F56: ='Species 3'!K74 -> 0 | G56: -2.260793486e-07 | I56: -1.526079349e-06 | J56: -2e-06 | K56: -3e-06 | L56: -2.260793486e-07 | N56: 6.500281138e-08 | P56: 4.225365487e-15
A57: ='Species 1'!J75 -> -1.575 | B57: ='Import data'!K63 -> -2.8473554e-07 | D57: ='Species 1'!K75 -> -2.291174538e-07 | E57: ='Species 2'!K75 -> 0 | F57: ='Species 3'!K75 -> 0 | G57: -2.291174538e-07 | I57: -1.529117454e-06 | J57: -2e-06 | K57: -3e-06 | L57: -2.291174538e-07 | N57: 5.561808621e-08 | P57: 3.093371513e-15
A58: ='Species 1'!J76 -> -1.576666667 | B58: ='Import data'!K64 -> -2.9108216e-07 | D58: ='Species 1'!K76 -> -2.322036621e-07 | E58: ='Species 2'!K76 -> 0 | F58: ='Species 3'!K76 -> 0 | G58: -2.322036621e-07 | I58: -1.532203662e-06 | J58: -2e-06 | K58: -3e-06 | L58: -2.322036621e-07 | N58: 5.887849792e-08 | P58: 3.466677517e-15
A59: ='Species 1'!J77 -> -1.578333333 | B59: ='Import data'!K65 -> -2.8919046e-07 | D59: ='Species 1'!K77 -> -2.353370383e-07 | E59: ='Species 2'!K77 -> 0 | F59: ='Species 3'!K77 -> 0 | G59: -2.353370383e-07 | I59: -1.535337038e-06 | J59: -2e-06 | K59: -3e-06 | L59: -2.353370383e-07 | N59: 5.385342165e-08 | P59: 2.900191024e-15
A60: ='Species 1'!J78 -> -1.58 | B60: ='Import data'!K66 -> -2.8497916e-07 | D60: ='Species 1'!K78 -> -2.385164195e-07 | E60: ='Species 2'!K78 -> 0 | F60: ='Species 3'!K78 -> 0 | G60: -2.385164195e-07 | I60: -1.53851642e-06 | J60: -2e-06 | K60: -3e-06 | L60: -2.385164195e-07 | N60: 4.646274047e-08 | P60: 2.158786252e-15
A61: ='Species 1'!J79 -> -1.581666667 | B61: ='Import data'!K67 -> -2.7838738e-07 | D61: ='Species 1'!K79 -> -2.417403932e-07 | E61: ='Species 2'!K79 -> 0 | F61: ='Species 3'!K79 -> 0 | G61: -2.417403932e-07 | I61: -1.541740393e-06 | J61: -2e-06 | K61: -3e-06 | L61: -2.417403932e-07 | N61: 3.664698683e-08 | P61: 1.343001644e-15
A62: ='Species 1'!J80 -> -1.583333333 | B62: ='Import data'!K68 -> -2.8754238e-07 | D62: ='Species 1'!K80 -> -2.450072746e-07 | E62: ='Species 2'!K80 -> 0 | F62: ='Species 3'!K80 -> 0 | G62: -2.450072746e-07 | I62: -1.545007275e-06 | J62: -2e-06 | K62: -3e-06 | L62: -2.450072746e-07 | N62: 4.253510537e-08 | P62: 1.809235189e-15
A63: ='Species 1'!J81 -> -1.585 | B63: ='Import data'!K69 -> -2.9389054e-07 | D63: ='Species 1'!K81 -> -2.48315083e-07 | E63: ='Species 2'!K81 -> 0 | F63: ='Species 3'!K81 -> 0 | G63: -2.48315083e-07 | I63: -1.548315083e-06 | J63: -2e-06 | K63: -3e-06 | L63: -2.48315083e-07 | N63: 4.557545702e-08 | P63: 2.077122283e-15
A64: ='Species 1'!J82 -> -1.586666667 | B64: ='Import data'!K70 -> -2.9248608e-07 | D64: ='Species 1'!K82 -> -2.516615156e-07 | E64: ='Species 2'!K82 -> 0 | F64: ='Species 3'!K82 -> 0 | G64: -2.516615156e-07 | I64: -1.551661516e-06 | J64: -2e-06 | K64: -3e-06 | L64: -2.516615156e-07 | N64: 4.082456443e-08 | P64: 1.666645061e-15
A65: ='Species 1'!J83 -> -1.588333333 | B65: ='Import data'!K71 -> -2.9883424e-07 | D65: ='Species 1'!K83 -> -2.550439214e-07 | E65: ='Species 2'!K83 -> 0 | F65: ='Species 3'!K83 -> 0 | G65: -2.550439214e-07 | I65: -1.555043921e-06 | J65: -2e-06 | K65: -3e-06 | L65: -2.550439214e-07 | N65: 4.379031859e-08 | P65: 1.917592002e-15
A66: ='Species 1'!J84 -> -1.59 | B66: ='Import data'!K72 -> -2.9389054e-07 | D66: ='Species 1'!K84 -> -2.584592733e-07 | E66: ='Species 2'!K84 -> 0 | F66: ='Species 3'!K84 -> 0 | G66: -2.584592733e-07 | I66: -1.558459273e-06 | J66: -2e-06 | K66: -3e-06 | L66: -2.584592733e-07 | N66: 3.543126673e-08 | P66: 1.255374662e-15
A67: ='Species 1'!J85 -> -1.591666667 | B67: ='Import data'!K73 -> -2.9883424e-07 | D67: ='Species 1'!K85 -> -2.619041387e-07 | E67: ='Species 2'!K85 -> 0 | F67: ='Species 3'!K85 -> 0 | G67: -2.619041387e-07 | I67: -1.561904139e-06 | J67: -2e-06 | K67: -3e-06 | L67: -2.619041387e-07 | N67: 3.693010134e-08 | P67: 1.363832385e-15
A68: ='Species 1'!J86 -> -1.593333333 | B68: ='Import data'!K74 -> -2.9248608e-07 | D68: ='Species 1'!K86 -> -2.653746498e-07 | E68: ='Species 2'!K86 -> 0 | F68: ='Species 3'!K86 -> 0 | G68: -2.653746498e-07 | I68: -1.56537465e-06 | J68: -2e-06 | K68: -3e-06 | L68: -2.653746498e-07 | N68: 2.711143017e-08 | P68: 7.350296456e-16
A69: ='Species 1'!J87 -> -1.595 | B69: ='Import data'!K75 -> -2.9389054e-07 | D69: ='Species 1'!K87 -> -2.688664729e-07 | E69: ='Species 2'!K87 -> 0 | F69: ='Species 3'!K87 -> 0 | G69: -2.688664729e-07 | I69: -1.568866473e-06 | J69: -2e-06 | K69: -3e-06 | L69: -2.688664729e-07 | N69: 2.502406712e-08 | P69: 6.262039354e-16
A70: ='Species 1'!J88 -> -1.596666667 | B70: ='Import data'!K76 -> -2.9883424e-07 | D70: ='Species 1'!K88 -> -2.723747761e-07 | E70: ='Species 2'!K88 -> 0 | F70: ='Species 3'!K88 -> 0 | G70: -2.723747761e-07 | I70: -1.572374776e-06 | J70: -2e-06 | K70: -3e-06 | L70: -2.723747761e-07 | N70: 2.645946392e-08 | P70: 7.001032311e-16
A71: ='Species 1'!J89 -> -1.598333333 | B71: ='Import data'!K77 -> -3.0329016e-07 | D71: ='Species 1'!K89 -> -2.758941979e-07 | E71: ='Species 2'!K89 -> 0 | F71: ='Species 3'!K89 -> 0 | G71: -2.758941979e-07 | I71: -1.575894198e-06 | J71: -2e-06 | K71: -3e-06 | L71: -2.758941979e-07 | N71: 2.739596215e-08 | P71: 7.505387419e-16
A72: ='Species 1'!J90 -> -1.6 | B72: ='Import data'!K78 -> -3.0493824e-07 | D72: ='Species 1'!K90 -> -2.794188144e-07 | E72: ='Species 2'!K90 -> 0 | F72: ='Species 3'!K90 -> 0 | G72: -2.794188144e-07 | I72: -1.579418814e-06 | J72: -2e-06 | K72: -3e-06 | L72: -2.794188144e-07 | N72: 2.551942558e-08 | P72: 6.512410817e-16
A73: ='Species 1'!J91 -> -1.601666667 | B73: ='Import data'!K79 -> -3.0493824e-07 | D73: ='Species 1'!K91 -> -2.829421076e-07 | E73: ='Species 2'!K91 -> 0 | F73: ='Species 3'!K91 -> 0 | G73: -2.829421076e-07 | I73: -1.582942108e-06 | J73: -2e-06 | K73: -3e-06 | L73: -2.829421076e-07 | N73: 2.19961324e-08 | P73: 4.838298407e-16
A74: ='Species 1'!J92 -> -1.603333333 | B74: ='Import data'!K80 -> -3.0493824e-07 | D74: ='Species 1'!K92 -> -2.86456933e-07 | E74: ='Species 2'!K92 -> 0 | F74: ='Species 3'!K92 -> 0 | G74: -2.86456933e-07 | I74: -1.586456933e-06 | J74: -2e-06 | K74: -3e-06 | L74: -2.86456933e-07 | N74: 1.848130699e-08 | P74: 3.415587081e-16
A75: ='Species 1'!J93 -> -1.605 | B75: ='Import data'!K81 -> -3.1104124e-07 | D75: ='Species 1'!K93 -> -2.899554892e-07 | E75: ='Species 2'!K93 -> 0 | F75: ='Species 3'!K93 -> 0 | G75: -2.899554892e-07 | I75: -1.589955489e-06 | J75: -2e-06 | K75: -3e-06 | L75: -2.899554892e-07 | N75: 2.108575075e-08 | P75: 4.446088848e-16
A76: ='Species 1'!J94 -> -1.606666667 | B76: ='Import data'!K82 -> -3.0164208e-07 | D76: ='Species 1'!K94 -> -2.934292884e-07 | E76: ='Species 2'!K94 -> 0 | F76: ='Species 3'!K94 -> 0 | G76: -2.934292884e-07 | I76: =$D76+$B$5 -> -1.593429288e-06 | J76: =$E76+$B$6 -> -2e-06 | K76: =$F76+$B$7 -> -3e-06 | L76: =$G76+$B$8 -> -2.934292884e-07 | N76: =$G76-$B76 -> 8.212791618e-09 | P76: =N76^2 -> 6.744994616e-17
A77: ='Species 1'!J95 -> -1.608333333 | B77: ='Import data'!K83 -> -3.1714524e-07 | D77: ='Species 1'!K95 -> -2.968691284e-07 | E77: ='Species 2'!K95 -> 0 | F77: ='Species 3'!K95 -> 0 | G77: =D77+E77+F77 -> -2.968691284e-07 | I77: -1.596869128e-06 | J77: -2e-06 | K77: -3e-06 | L77: -2.968691284e-07 | N77: 2.027611162e-08 | P77: 4.111207023e-16
A78: ='Species 1'!J96 -> -1.61 | B78: ='Import data'!K84 -> -3.1104124e-07 | D78: ='Species 1'!K96 -> -3.002650681e-07 | E78: ='Species 2'!K96 -> 0 | F78: ='Species 3'!K96 -> 0 | G78: -3.002650681e-07 | I78: -1.600265068e-06 | J78: -2e-06 | K78: -3e-06 | L78: -3.002650681e-07 | N78: 1.077617188e-08 | P78: 1.161258804e-16
A79: ='Species 1'!J97 -> -1.611666667 | B79: ='Import data'!K85 -> -3.2019724e-07 | D79: ='Species 1'!K97 -> -3.036064056e-07 | E79: ='Species 2'!K97 -> 0 | F79: ='Species 3'!K97 -> 0 | G79: -3.036064056e-07 | I79: -1.603606406e-06 | J79: -2e-06 | K79: -3e-06 | L79: -3.036064056e-07 | N79: 1.659083442e-08 | P79: 2.752557868e-16
A80: ='Species 1'!J98 -> -1.613333333 | B80: ='Import data'!K86 -> -3.2019724e-07 | D80: ='Species 1'!K98 -> -3.068816601e-07 | E80: ='Species 2'!K98 -> 0 | F80: ='Species 3'!K98 -> 0 | G80: -3.068816601e-07 | I80: -1.60688166e-06 | J80: -2e-06 | K80: -3e-06 | L80: -3.068816601e-07 | N80: 1.331557992e-08 | P80: 1.773046687e-16
A81: ='Species 1'!J99 -> -1.615 | B81: ='Import data'!K87 -> -3.2324824e-07 | D81: ='Species 1'!K99 -> -3.100785593e-07 | E81: ='Species 2'!K99 -> 0 | F81: ='Species 3'!K99 -> 0 | G81: -3.100785593e-07 | I81: -1.610078559e-06 | J81: -2e-06 | K81: -3e-06 | L81: -3.100785593e-07 | N81: 1.316968074e-08 | P81: 1.734404909e-16
A82: ='Species 1'!J100 -> -1.616666667 | B82: ='Import data'!K88 -> -3.2794832e-07 | D82: ='Species 1'!K100 -> -3.131840318e-07 | E82: ='Species 2'!K100 -> 0 | F82: ='Species 3'!K100 -> 0 | G82: -3.131840318e-07 | I82: -1.613184032e-06 | J82: -2e-06 | K82: -3e-06 | L82: -3.131840318e-07 | N82: 1.476428824e-08 | P82: 2.179842072e-16
A83: ='Species 1'!J101 -> -1.618333333 | B83: ='Import data'!K89 -> -3.2489632e-07 | D83: ='Species 1'!K101 -> -3.161842065e-07 | E83: ='Species 2'!K101 -> 0 | F83: ='Species 3'!K101 -> 0 | G83: -3.161842065e-07 | I83: -1.616184206e-06 | J83: -2e-06 | K83: -3e-06 | L83: -3.161842065e-07 | N83: 8.712113507e-09 | P83: 7.590092176e-17
A84: ='Species 1'!J102 -> -1.62 | B84: ='Import data'!K90 -> -3.2184532e-07 | D84: ='Species 1'!K102 -> -3.190644194e-07 | E84: ='Species 2'!K102 -> 0 | F84: ='Species 3'!K102 -> 0 | G84: -3.190644194e-07 | I84: -1.619064419e-06 | J84: -2e-06 | K84: -3e-06 | L84: -3.190644194e-07 | N84: 2.780900574e-09 | P84: 7.733408004e-18
A85: ='Species 1'!J103 -> -1.621666667 | B85: ='Import data'!K91 -> -3.2324824e-07 | D85: ='Species 1'!K103 -> -3.218092289e-07 | E85: ='Species 2'!K103 -> 0 | F85: ='Species 3'!K103 -> 0 | G85: -3.218092289e-07 | I85: -1.621809229e-06 | J85: -2e-06 | K85: -3e-06 | L85: -3.218092289e-07 | N85: 1.439011054e-09 | P85: 2.070752814e-18
A86: ='Species 1'!J104 -> -1.623333333 | B86: ='Import data'!K92 -> -3.2489632e-07 | D86: ='Species 1'!K104 -> -3.244024407e-07 | E86: ='Species 2'!K104 -> 0 | F86: ='Species 3'!K104 -> 0 | G86: -3.244024407e-07 | I86: -1.624402441e-06 | J86: -2e-06 | K86: -3e-06 | L86: -3.244024407e-07 | N86: 4.938792736e-10 | P86: 2.439167369e-19
A87: ='Species 1'!J105 -> -1.625 | B87: ='Import data'!K93 -> -3.3100032e-07 | D87: ='Species 1'!K105 -> -3.268271431e-07 | E87: ='Species 2'!K105 -> 0 | F87: ='Species 3'!K105 -> 0 | G87: -3.268271431e-07 | I87: -1.626827143e-06 | J87: -2e-06 | K87: -3e-06 | L87: -3.268271431e-07 | N87: 4.17317689e-09 | P87: 1.741540535e-17
A88: ='Species 1'!J106 -> -1.626666667 | B88: ='Import data'!K94 -> -3.326484e-07 | D88: ='Species 1'!K106 -> -3.290657539e-07 | E88: ='Species 2'!K106 -> 0 | F88: ='Species 3'!K106 -> 0 | G88: -3.290657539e-07 | I88: -1.629065754e-06 | J88: -2e-06 | K88: -3e-06 | L88: -3.290657539e-07 | N88: 3.582646051e-09 | P88: 1.283535273e-17
A89: ='Species 1'!J107 -> -1.628333333 | B89: ='Import data'!K95 -> -3.3100032e-07 | D89: ='Species 1'!K107 -> -3.311000798e-07 | E89: ='Species 2'!K107 -> 0 | F89: ='Species 3'!K107 -> 0 | G89: -3.311000798e-07 | I89: -1.63110008e-06 | J89: -2e-06 | K89: -3e-06 | L89: -3.311000798e-07 | N89: -9.975977852e-11 | P89: 9.952013411e-21
A90: ='Species 1'!J108 -> -1.63 | B90: ='Import data'!K96 -> -3.295964e-07 | D90: ='Species 1'!K108 -> -3.329113881e-07 | E90: ='Species 2'!K108 -> 0 | F90: ='Species 3'!K108 -> 0 | G90: -3.329113881e-07 | I90: -1.632911388e-06 | J90: -2e-06 | K90: -3e-06 | L90: -3.329113881e-07 | N90: -3.314988111e-09 | P90: 1.098914617e-17
A91: ='Species 1'!J109 -> -1.631666667 | B91: ='Import data'!K97 -> -3.3100032e-07 | D91: ='Species 1'!K109 -> -3.344804935e-07 | E91: ='Species 2'!K109 -> 0 | F91: ='Species 3'!K109 -> 0 | G91: -3.344804935e-07 | I91: -1.634480493e-06 | J91: -2e-06 | K91: -3e-06 | L91: -3.344804935e-07 | N91: -3.480173496e-09 | P91: 1.211160756e-17
A92: ='Species 1'!J110 -> -1.633333333 | B92: ='Import data'!K98 -> -3.3405232e-07 | D92: ='Species 1'!K110 -> -3.357878578e-07 | E92: ='Species 2'!K110 -> 0 | F92: ='Species 3'!K110 -> 0 | G92: -3.357878578e-07 | I92: -1.635787858e-06 | J92: -2e-06 | K92: -3e-06 | L92: -3.357878578e-07 | N92: -1.73553784e-09 | P92: 3.012091594e-18
A93: ='Species 1'!J111 -> -1.635 | B93: ='Import data'!K99 -> -3.3734794e-07 | D93: ='Species 1'!K111 -> -3.368137052e-07 | E93: ='Species 2'!K111 -> 0 | F93: ='Species 3'!K111 -> 0 | G93: -3.368137052e-07 | I93: -1.636813705e-06 | J93: -2e-06 | K93: -3e-06 | L93: -3.368137052e-07 | N93: 5.342347599e-10 | P93: 2.854067787e-19
A94: ='Species 1'!J112 -> -1.636666667 | B94: ='Import data'!K100 -> -3.3710432e-07 | D94: ='Species 1'!K112 -> -3.375381514e-07 | E94: ='Species 2'!K112 -> 0 | F94: ='Species 3'!K112 -> 0 | G94: -3.375381514e-07 | I94: -1.637538151e-06 | J94: -2e-06 | K94: -3e-06 | L94: -3.375381514e-07 | N94: -4.338313863e-10 | P94: 1.882096717e-19
A95: ='Species 1'!J113 -> -1.638333333 | B95: ='Import data'!K101 -> -3.5144718e-07 | D95: ='Species 1'!K113 -> -3.379413473e-07 | E95: ='Species 2'!K113 -> 0 | F95: ='Species 3'!K113 -> 0 | G95: -3.379413473e-07 | I95: -1.637941347e-06 | J95: -2e-06 | K95: -3e-06 | L95: -3.379413473e-07 | N95: 1.350583275e-08 | P95: 1.824075182e-16
A96: ='Species 1'!J114 -> -1.64 | B96: ='Import data'!K102 -> -3.3405232e-07 | D96: ='Species 1'!K114 -> -3.380036365e-07 | E96: ='Species 2'!K114 -> 0 | F96: ='Species 3'!K114 -> 0 | G96: -3.380036365e-07 | I96: -1.638003637e-06 | J96: -2e-06 | K96: -3e-06 | L96: -3.380036365e-07 | N96: -3.951316523e-09 | P96: 1.561290226e-17
A97: ='Species 1'!J115 -> -1.641666667 | B97: ='Import data'!K103 -> -3.4039994e-07 | D97: ='Species 1'!K115 -> -3.377057258e-07 | E97: ='Species 2'!K115 -> 0 | F97: ='Species 3'!K115 -> 0 | G97: -3.377057258e-07 | I97: -1.637705726e-06 | J97: -2e-06 | K97: -3e-06 | L97: -3.377057258e-07 | N97: 2.694214212e-09 | P97: 7.258790218e-18
A98: ='Species 1'!J116 -> -1.643333333 | B98: ='Import data'!K104 -> -3.3924018e-07 | D98: ='Species 1'!K116 -> -3.370288663e-07 | E98: ='Species 2'!K116 -> 0 | F98: ='Species 3'!K116 -> 0 | G98: -3.370288663e-07 | I98: -1.637028866e-06 | J98: -2e-06 | K98: -3e-06 | L98: -3.370288663e-07 | N98: 2.211313737e-09 | P98: 4.889908442e-18
A99: ='Species 1'!J117 -> -1.645 | B99: ='Import data'!K105 -> -3.3734794e-07 | D99: ='Species 1'!K117 -> -3.359550453e-07 | E99: ='Species 2'!K117 -> 0 | F99: ='Species 3'!K117 -> 0 | G99: -3.359550453e-07 | I99: -1.635955045e-06 | J99: -2e-06 | K99: -3e-06 | L99: -3.359550453e-07 | N99: 1.392894726e-09 | P99: 1.940155717e-18
A100: ='Species 1'!J118 -> -1.646666667 | B100: ='Import data'!K106 -> -3.3594402e-07 | D100: ='Species 1'!K118 -> -3.344671855e-07 | E100: ='Species 2'!K118 -> 0 | F100: ='Species 3'!K118 -> 0 | G100: -3.344671855e-07 | I100: -1.634467185e-06 | J100: -2e-06 | K100: -3e-06 | L100: -3.344671855e-07 | N100: 1.476834548e-09 | P100: 2.181040283e-18
A101: ='Species 1'!J119 -> -1.648333333 | B101: ='Import data'!K107 -> -3.3594402e-07 | D101: ='Species 1'!K119 -> -3.325493491e-07 | E101: ='Species 2'!K119 -> 0 | F101: ='Species 3'!K119 -> 0 | G101: -3.325493491e-07 | I101: -1.632549349e-06 | J101: -2e-06 | K101: -3e-06 | L101: -3.325493491e-07 | N101: 3.394670869e-09 | P101: 1.152379031e-17
A102: ='Species 1'!J120 -> -1.65 | B102: ='Import data'!K108 -> -3.3429594e-07 | D102: ='Species 1'!K120 -> -3.301869451e-07 | E102: ='Species 2'!K120 -> 0 | F102: ='Species 3'!K120 -> 0 | G102: -3.301869451e-07 | I102: -1.630186945e-06 | J102: -2e-06 | K102: -3e-06 | L102: -3.301869451e-07 | N102: 4.108994903e-09 | P102: 1.688383912e-17
A103: ='Species 1'!J121 -> -1.651666667 | B103: ='Import data'!K109 -> -3.3124394e-07 | D103: ='Species 1'!K121 -> -3.273669345e-07 | E103: ='Species 2'!K121 -> 0 | F103: ='Species 3'!K121 -> 0 | G103: -3.273669345e-07 | I103: -1.627366934e-06 | J103: -2e-06 | K103: -3e-06 | L103: -3.273669345e-07 | N103: 3.87700552e-09 | P103: 1.50311718e-17
A104: ='Species 1'!J122 -> -1.653333333 | B104: ='Import data'!K110 -> -3.2819194e-07 | D104: ='Species 1'!K122 -> -3.240780323e-07 | E104: ='Species 2'!K122 -> 0 | F104: ='Species 3'!K122 -> 0 | G104: -3.240780323e-07 | I104: -1.624078032e-06 | J104: -2e-06 | K104: -3e-06 | L104: -3.240780323e-07 | N104: 4.113907689e-09 | P104: 1.692423647e-17
A105: ='Species 1'!J123 -> -1.655 | B105: ='Import data'!K111 -> -3.2678902e-07 | D105: ='Species 1'!K123 -> -3.20310901e-07 | E105: ='Species 2'!K123 -> 0 | F105: ='Species 3'!K123 -> 0 | G105: -3.20310901e-07 | I105: -1.620310901e-06 | J105: -2e-06 | K105: -3e-06 | L105: -3.20310901e-07 | N105: 6.478118976e-09 | P105: 4.196602546e-17
A106: ='Species 1'!J124 -> -1.656666667 | B106: ='Import data'!K112 -> -3.3008518e-07 | D106: ='Species 1'!K124 -> -3.160583321e-07 | E106: ='Species 2'!K124 -> 0 | F106: ='Species 3'!K124 -> 0 | G106: -3.160583321e-07 | I106: -1.616058332e-06 | J106: -2e-06 | K106: -3e-06 | L106: -3.160583321e-07 | N106: 1.402684793e-08 | P106: 1.967524627e-16
A107: ='Species 1'!J125 -> -1.658333333 | B107: ='Import data'!K113 -> -3.1763302e-07 | D107: ='Species 1'!K125 -> -3.113154118e-07 | E107: ='Species 2'!K125 -> 0 | F107: ='Species 3'!K125 -> 0 | G107: -3.113154118e-07 | I107: -1.611315412e-06 | J107: -2e-06 | K107: -3e-06 | L107: -3.113154118e-07 | N107: 6.317608241e-09 | P107: 3.991217389e-17
A108: ='Species 1'!J126 -> -1.66 | B108: ='Import data'!K114 -> -3.2257726e-07 | D108: ='Species 1'!K126 -> -3.060796674e-07 | E108: ='Species 2'!K126 -> 0 | F108: ='Species 3'!K126 -> 0 | G108: -3.060796674e-07 | I108: -1.606079667e-06 | J108: -2e-06 | K108: -3e-06 | L108: -3.060796674e-07 | N108: 1.649759258e-08 | P108: 2.72170561e-16
A109: ='Species 1'!J127 -> -1.661666667 | B109: ='Import data'!K115 -> -3.1647426e-07 | D109: ='Species 1'!K127 -> -3.003511904e-07 | E109: ='Species 2'!K127 -> 0 | F109: ='Species 3'!K127 -> 0 | G109: -3.003511904e-07 | I109: -1.60035119e-06 | J109: -2e-06 | K109: -3e-06 | L109: -3.003511904e-07 | N109: 1.612306964e-08 | P109: 2.599533747e-16
A110: ='Species 1'!J128 -> -1.663333333 | B110: ='Import data'!K116 -> -3.0731826e-07 | D110: ='Species 1'!K128 -> -2.941327321e-07 | E110: ='Species 2'!K128 -> 0 | F110: ='Species 3'!K128 -> 0 | G110: -2.941327321e-07 | I110: -1.594132732e-06 | J110: -2e-06 | K110: -3e-06 | L110: -2.941327321e-07 | N110: 1.31855279e-08 | P110: 1.73858146e-16
A111: ='Species 1'!J129 -> -1.665 | B111: ='Import data'!K117 -> -3.0591434e-07 | D111: ='Species 1'!K129 -> -2.87429771e-07 | E111: ='Species 2'!K129 -> 0 | F111: ='Species 3'!K129 -> 0 | G111: -2.87429771e-07 | I111: -1.587429771e-06 | J111: -2e-06 | K111: -3e-06 | L111: -2.87429771e-07 | N111: 1.848456899e-08 | P111: 3.416792907e-16
A112: ='Species 1'!J130 -> -1.666666667 | B112: ='Import data'!K118 -> -2.9651518e-07 | D112: ='Species 1'!K130 -> -2.802505468e-07 | E112: ='Species 2'!K130 -> 0 | F112: ='Species 3'!K130 -> 0 | G112: -2.802505468e-07 | I112: -1.580250547e-06 | J112: -2e-06 | K112: -3e-06 | L112: -2.802505468e-07 | N112: 1.626463316e-08 | P112: 2.645382919e-16
A113: ='Species 1'!J131 -> -1.668333333 | B113: ='Import data'!K119 -> -2.9065534e-07 | D113: ='Species 1'!K131 -> -2.726060613e-07 | E113: ='Species 2'!K131 -> 0 | F113: ='Species 3'!K131 -> 0 | G113: -2.726060613e-07 | I113: -1.572606061e-06 | J113: -2e-06 | K113: -3e-06 | L113: -2.726060613e-07 | N113: 1.80492787e-08 | P113: 3.257764616e-16
A114: ='Species 1'!J132 -> -1.67 | B114: ='Import data'!K120 -> -2.7985226e-07 | D114: ='Species 1'!K132 -> -2.645100436e-07 | E114: ='Species 2'!K132 -> 0 | F114: ='Species 3'!K132 -> 0 | G114: -2.645100436e-07 | I114: -1.564510044e-06 | J114: -2e-06 | K114: -3e-06 | L114: -2.645100436e-07 | N114: 1.534221643e-08 | P114: 2.35383605e-16
A115: ='Species 1'!J133 -> -1.671666667 | B115: ='Import data'!K121 -> -2.6929334e-07 | D115: ='Species 1'!K133 -> -2.559788803e-07 | E115: ='Species 2'!K133 -> 0 | F115: ='Species 3'!K133 -> 0 | G115: -2.559788803e-07 | I115: -1.55597888e-06 | J115: -2e-06 | K115: -3e-06 | L115: -2.559788803e-07 | N115: 1.331445974e-08 | P115: 1.772748383e-16
A116: ='Species 1'!J134 -> -1.673333333 | B116: ='Import data'!K122 -> -2.5848926e-07 | D116: ='Species 1'!K134 -> -2.470315103e-07 | E116: ='Species 2'!K134 -> 0 | F116: ='Species 3'!K134 -> 0 | G116: -2.470315103e-07 | I116: -1.54703151e-06 | J116: -2e-06 | K116: -3e-06 | L116: -2.470315103e-07 | N116: 1.145774974e-08 | P116: 1.312800291e-16
A117: ='Species 1'!J135 -> -1.675 | B117: ='Import data'!K123 -> -2.4463418e-07 | D117: ='Species 1'!K135 -> -2.376892857e-07 | E117: ='Species 2'!K135 -> 0 | F117: ='Species 3'!K135 -> 0 | G117: -2.376892857e-07 | I117: -1.537689286e-06 | J117: -2e-06 | K117: -3e-06 | L117: -2.376892857e-07 | N117: 6.944894323e-09 | P117: 4.823155716e-17
A118: ='Species 1'!J136 -> -1.676666667 | B118: ='Import data'!K124 -> -2.4487834e-07 | D118: ='Species 1'!K136 -> -2.279758008e-07 | E118: ='Species 2'!K136 -> 0 | F118: ='Species 3'!K136 -> 0 | G118: -2.279758008e-07 | I118: -1.527975801e-06 | J118: -2e-06 | K118: -3e-06 | L118: -2.279758008e-07 | N118: 1.690253925e-08 | P118: 2.85695833e-16
A119: ='Species 1'!J137 -> -1.678333333 | B119: ='Import data'!K125 -> -2.2797126e-07 | D119: ='Species 1'!K137 -> -2.179166916e-07 | E119: ='Species 2'!K137 -> 0 | F119: ='Species 3'!K137 -> 0 | G119: -2.179166916e-07 | I119: -1.517916692e-06 | J119: -2e-06 | K119: -3e-06 | L119: -2.179166916e-07 | N119: 1.005456844e-08 | P119: 1.010943465e-16
A120: ='Species 1'!J138 -> -1.68 | B120: ='Import data'!K126 -> -2.2046434e-07 | D120: ='Species 1'!K138 -> -2.075394098e-07 | E120: ='Species 2'!K138 -> 0 | F120: ='Species 3'!K138 -> 0 | G120: -2.075394098e-07 | I120: -1.50753941e-06 | J120: -2e-06 | K120: -3e-06 | L120: -2.075394098e-07 | N120: 1.292493018e-08 | P120: 1.670538201e-16
A121: ='Species 1'!J139 -> -1.681666667 | B121: ='Import data'!K127 -> -2.0990488e-07 | D121: ='Species 1'!K139 -> -1.968729748e-07 | E121: ='Species 2'!K139 -> 0 | F121: ='Species 3'!K139 -> 0 | G121: -1.968729748e-07 | I121: -1.496872975e-06 | J121: -2e-06 | K121: -3e-06 | L121: -1.968729748e-07 | N121: 1.303190518e-08 | P121: 1.698305526e-16
A122: ='Species 1'!J140 -> -1.683333333 | B122: ='Import data'!K128 -> -1.9934496e-07 | D122: ='Species 1'!K140 -> -1.859477078e-07 | E122: ='Species 2'!K140 -> 0 | F122: ='Species 3'!K140 -> 0 | G122: -1.859477078e-07 | I122: -1.485947708e-06 | J122: -2e-06 | K122: -3e-06 | L122: -1.859477078e-07 | N122: 1.339725219e-08 | P122: 1.794863663e-16
A123: ='Species 1'!J141 -> -1.685 | B123: ='Import data'!K129 -> -1.9018996e-07 | D123: ='Species 1'!K141 -> -1.747949537e-07 | E123: ='Species 2'!K141 -> 0 | F123: ='Species 3'!K141 -> 0 | G123: -1.747949537e-07 | I123: -1.474794954e-06 | J123: -2e-06 | K123: -3e-06 | L123: -1.747949537e-07 | N123: 1.539500631e-08 | P123: 2.370062194e-16
A124: ='Species 1'!J142 -> -1.686666667 | B124: ='Import data'!K130 -> -1.7963104e-07 | D124: ='Species 1'!K142 -> -1.634467949e-07 | E124: ='Species 2'!K142 -> 0 | F124: ='Species 3'!K142 -> 0 | G124: -1.634467949e-07 | I124: -1.463446795e-06 | J124: -2e-06 | K124: -3e-06 | L124: -1.634467949e-07 | N124: 1.618424508e-08 | P124: 2.619297887e-16
A125: ='Species 1'!J143 -> -1.688333333 | B125: ='Import data'!K131 -> -1.5332434e-07 | D125: ='Species 1'!K143 -> -1.519357627e-07 | E125: ='Species 2'!K143 -> 0 | F125: ='Species 3'!K143 -> 0 | G125: -1.519357627e-07 | I125: -1.451935763e-06 | J125: -2e-06 | K125: -3e-06 | L125: -1.519357627e-07 | N125: 1.38857734e-09 | P125: 1.928147028e-18
A126: ='Species 1'!J144 -> -1.69 | B126: ='Import data'!K132 -> -1.4441296e-07 | D126: ='Species 1'!K144 -> -1.4029455e-07 | E126: ='Species 2'!K144 -> 0 | F126: ='Species 3'!K144 -> 0 | G126: -1.4029455e-07 | I126: -1.44029455e-06 | J126: -2e-06 | K126: -3e-06 | L126: -1.4029455e-07 | N126: 4.118410028e-09 | P126: 1.696130116e-17
A127: ='Species 1'!J145 -> -1.691666667 | B127: ='Import data'!K133 -> -1.3550212e-07 | D127: ='Species 1'!K145 -> -1.28555732e-07 | E127: ='Species 2'!K145 -> 0 | F127: ='Species 3'!K145 -> 0 | G127: -1.28555732e-07 | I127: -1.428555732e-06 | J127: -2e-06 | K127: -3e-06 | L127: -1.28555732e-07 | N127: 6.94638804e-09 | P127: 4.82523068e-17
A128: ='Species 1'!J146 -> -1.693333333 | B128: ='Import data'!K134 -> -1.2024312e-07 | D128: ='Species 1'!K146 -> -1.16751497e-07 | E128: ='Species 2'!K146 -> 0 | F128: ='Species 3'!K146 -> 0 | G128: -1.16751497e-07 | I128: -1.416751497e-06 | J128: -2e-06 | K128: -3e-06 | L128: -1.16751497e-07 | N128: 3.491622959e-09 | P128: 1.219143089e-17
A129: ='Species 1'!J147 -> -1.695 | B129: ='Import data'!K135 -> -1.0498412e-07 | D129: ='Species 1'!K147 -> -1.049133934e-07 | E129: ='Species 2'!K147 -> 0 | F129: ='Species 3'!K147 -> 0 | G129: -1.049133934e-07 | I129: -1.404913393e-06 | J129: -2e-06 | K129: -3e-06 | L129: -1.049133934e-07 | N129: 7.072664961e-11 | P129: 5.002258965e-21
A130: ='Species 1'!J148 -> -1.696666667 | B130: ='Import data'!K136 -> -9.277612e-08 | D130: ='Species 1'!K148 -> -9.307209368e-08 | E130: ='Species 2'!K148 -> 0 | F130: ='Species 3'!K148 -> 0 | G130: -9.307209368e-08 | I130: -1.393072094e-06 | J130: -2e-06 | K130: -3e-06 | L130: -9.307209368e-08 | N130: -2.959736775e-10 | P130: 8.760041778e-20
A131: ='Species 1'!J149 -> -1.698333333 | B131: ='Import data'!K137 -> -8.056912e-08 | D131: ='Species 1'!K149 -> -8.125718174e-08 | E131: ='Species 2'!K149 -> 0 | F131: ='Species 3'!K149 -> 0 | G131: -8.125718174e-08 | I131: -1.381257182e-06 | J131: -2e-06 | K131: -3e-06 | L131: -8.125718174e-08 | N131: -6.880617409e-10 | P131: 4.734289593e-19
A132: ='Species 1'!J150 -> -1.7 | B132: ='Import data'!K138 -> -7.141412e-08 | D132: ='Species 1'!K150 -> -6.949696203e-08 | E132: ='Species 2'!K150 -> 0 | F132: ='Species 3'!K150 -> 0 | G132: -6.949696203e-08 | I132: -1.369496962e-06 | J132: -2e-06 | K132: -3e-06 | L132: -6.949696203e-08 | N132: 1.917157972e-09 | P132: 3.675494688e-18
A133: ='Species 1'!J151 -> -1.701666667 | B133: ='Import data'!K139 -> -5.450704e-08 | D133: ='Species 1'!K151 -> -5.781829477e-08 | E133: ='Species 2'!K151 -> 0 | F133: ='Species 3'!K151 -> 0 | G133: -5.781829477e-08 | I133: -1.357818295e-06 | J133: -2e-06 | K133: -3e-06 | L133: -5.781829477e-08 | N133: -3.311254774e-09 | P133: 1.096440818e-17
A134: ='Species 1'!J152 -> -1.703333333 | B134: ='Import data'!K140 -> -3.454796e-08 | D134: ='Species 1'!K152 -> -4.624645703e-08 | E134: ='Species 2'!K152 -> 0 | F134: ='Species 3'!K152 -> 0 | G134: -4.624645703e-08 | I134: -1.346246457e-06 | J134: -2e-06 | K134: -3e-06 | L134: -4.624645703e-08 | N134: -1.169849703e-08 | P134: 1.368548329e-16
A135: ='Species 1'!J153 -> -1.705 | B135: ='Import data'!K141 -> -2.89322e-08 | D135: ='Species 1'!K153 -> -3.480503022e-08 | E135: ='Species 2'!K153 -> 0 | F135: ='Species 3'!K153 -> 0 | G135: -3.480503022e-08 | I135: -1.33480503e-06 | J135: -2e-06 | K135: -3e-06 | L135: -3.480503022e-08 | N135: -5.872830222e-09 | P135: 3.449013482e-17
A136: ='Species 1'!J154 -> -1.706666667 | B136: ='Import data'!K142 -> -1.037812e-08 | D136: ='Species 1'!K154 -> -2.351581391e-08 | E136: ='Species 2'!K154 -> 0 | F136: ='Species 3'!K154 -> 0 | G136: -2.351581391e-08 | I136: -1.323515814e-06 | J136: -2e-06 | K136: -3e-06 | L136: -2.351581391e-08 | N136: -1.313769391e-08 | P136: 1.725990012e-16
A137: ='Species 1'!J155 -> -1.708333333 | B137: ='Import data'!K143 -> -1.4662e-09 | D137: ='Species 1'!K155 -> -1.239876519e-08 | E137: ='Species 2'!K155 -> 0 | F137: ='Species 3'!K155 -> 0 | G137: -1.239876519e-08 | I137: -1.312398765e-06 | J137: -2e-06 | K137: -3e-06 | L137: -1.239876519e-08 | N137: -1.093256519e-08 | P137: 1.195209816e-16
A138: ='Species 1'!J156 -> -1.71 | B138: ='Import data'!K144 -> 1.37938e-08 | D138: ='Species 1'!K156 -> -1.471962517e-09 | E138: ='Species 2'!K156 -> 0 | F138: ='Species 3'!K156 -> 0 | G138: -1.471962517e-09 | I138: -1.301471963e-06 | J138: -2e-06 | K138: -3e-06 | L138: -1.471962517e-09 | N138: -1.526576252e-08 | P138: 2.330435052e-16
A139: ='Species 1'!J157 -> -1.711666667 | B139: ='Import data'!K145 -> 2.15438e-08 | D139: ='Species 1'!K157 -> 9.248407555e-09 | E139: ='Species 2'!K157 -> 0 | F139: ='Species 3'!K157 -> 0 | G139: 9.248407555e-09 | I139: -1.290751592e-06 | J139: -2e-06 | K139: -3e-06 | L139: 9.248407555e-09 | N139: -1.229539245e-08 | P139: 1.511766754e-16
A140: ='Species 1'!J158 -> -1.713333333 | B140: ='Import data'!K146 -> 3.04558e-08 | D140: ='Species 1'!K158 -> 1.974804243e-08 | E140: ='Species 2'!K158 -> 0 | F140: ='Species 3'!K158 -> 0 | G140: 1.974804243e-08 | I140: =$D140+$B$5 -> -1.280251958e-06 | J140: =$E140+$B$6 -> -2e-06 | K140: =$F140+$B$7 -> -3e-06 | L140: =$G140+$B$8 -> 1.974804243e-08 | N140: =$G140-$B140 -> -1.070775757e-08 | P140: =N140^2 -> 1.146560722e-16
A141: ='Species 1'!J159 -> -1.715 | B141: ='Import data'!K147 -> 5.18158e-08 | D141: ='Species 1'!K159 -> 3.001449639e-08 | E141: ='Species 2'!K159 -> 0 | F141: ='Species 3'!K159 -> 0 | G141: =D141+E141+F141 -> 3.001449639e-08 | I141: -1.269985504e-06 | J141: -2e-06 | K141: -3e-06 | L141: 3.001449639e-08 | N141: -2.180130361e-08 | P141: 4.75296839e-16
A142: ='Species 1'!J160 -> -1.716666667 | B142: ='Import data'!K148 -> 6.40258e-08 | D142: ='Species 1'!K160 -> 4.003713651e-08 | E142: ='Species 2'!K160 -> 0 | F142: ='Species 3'!K160 -> 0 | G142: 4.003713651e-08 | I142: -1.259962863e-06 | J142: -2e-06 | K142: -3e-06 | L142: 4.003713651e-08 | N142: -2.398866349e-08 | P142: 5.754559761e-16
A143: ='Species 1'!J161 -> -1.718333333 | B143: ='Import data'!K149 -> 6.54288e-08 | D143: ='Species 1'!K161 -> 4.980708377e-08 | E143: ='Species 2'!K161 -> 0 | F143: ='Species 3'!K161 -> 0 | G143: 4.980708377e-08 | I143: -1.250192916e-06 | J143: -2e-06 | K143: -3e-06 | L143: 4.980708377e-08 | N143: -1.562171623e-08 | P143: 2.44038018e-16
A144: ='Species 1'!J162 -> -1.72 | B144: ='Import data'!K150 -> 8.53858e-08 | D144: ='Species 1'!K162 -> 5.931714171e-08 | E144: ='Species 2'!K162 -> 0 | F144: ='Species 3'!K162 -> 0 | G144: 5.931714171e-08 | I144: -1.240682858e-06 | J144: -2e-06 | K144: -3e-06 | L144: 5.931714171e-08 | N144: -2.606865829e-08 | P144: 6.795749449e-16
A145: ='Species 1'!J163 -> -1.721666667 | B145: ='Import data'!K151 -> 9.28888e-08 | D145: ='Species 1'!K163 -> 6.856171474e-08 | E145: ='Species 2'!K163 -> 0 | F145: ='Species 3'!K163 -> 0 | G145: 6.856171474e-08 | I145: -1.231438285e-06 | J145: -2e-06 | K145: -3e-06 | L145: 6.856171474e-08 | N145: -2.432708526e-08 | P145: 5.918070772e-16
A146: ='Species 1'!J164 -> -1.723333333 | B146: ='Import data'!K152 -> 9.73518e-08 | D146: ='Species 1'!K164 -> 7.753671831e-08 | E146: ='Species 2'!K164 -> 0 | F146: ='Species 3'!K164 -> 0 | G146: 7.753671831e-08 | I146: -1.222463282e-06 | J146: -2e-06 | K146: -3e-06 | L146: 7.753671831e-08 | N146: -1.981508169e-08 | P146: 3.926374623e-16
A147: ='Species 1'!J165 -> -1.725 | B147: ='Import data'!K153 -> 1.093124e-07 | D147: ='Species 1'!K165 -> 8.6239483e-08 | E147: ='Species 2'!K165 -> 0 | F147: ='Species 3'!K165 -> 0 | G147: 8.6239483e-08 | I147: -1.213760517e-06 | J147: -2e-06 | K147: -3e-06 | L147: 8.6239483e-08 | N147: -2.3072917e-08 | P147: 5.323594988e-16
A148: ='Species 1'!J166 -> -1.726666667 | B148: ='Import data'!K154 -> 1.154124e-07 | D148: ='Species 1'!K166 -> 9.466865436e-08 | E148: ='Species 2'!K166 -> 0 | F148: ='Species 3'!K166 -> 0 | G148: 9.466865436e-08 | I148: -1.205331346e-06 | J148: -2e-06 | K148: -3e-06 | L148: 9.466865436e-08 | N148: -2.074374564e-08 | P148: 4.303029834e-16
A149: ='Species 1'!J167 -> -1.728333333 | B149: ='Import data'!K155 -> 1.309218e-07 | D149: ='Species 1'!K167 -> 1.028240903e-07 | E149: ='Species 2'!K167 -> 0 | F149: ='Species 3'!K167 -> 0 | G149: 1.028240903e-07 | I149: -1.19717591e-06 | J149: -2e-06 | K149: -3e-06 | L149: 1.028240903e-07 | N149: -2.809770974e-08 | P149: 7.894812927e-16
A150: ='Species 1'!J168 -> -1.73 | B150: ='Import data'!K156 -> 1.414848e-07 | D150: ='Species 1'!K168 -> 1.107067574e-07 | E150: ='Species 2'!K168 -> 0 | F150: ='Species 3'!K168 -> 0 | G150: 1.107067574e-07 | I150: -1.189293243e-06 | J150: -2e-06 | K150: -3e-06 | L150: 1.107067574e-07 | N150: -3.077804263e-08 | P150: 9.47287908e-16
A151: ='Species 1'!J169 -> -1.731666667 | B151: ='Import data'!K157 -> 1.569788e-07 | D151: ='Species 1'!K169 -> 1.18318628e-07 | E151: ='Species 2'!K169 -> 0 | F151: ='Species 3'!K169 -> 0 | G151: 1.18318628e-07 | I151: -1.181681372e-06 | J151: -2e-06 | K151: -3e-06 | L151: 1.18318628e-07 | N151: -3.866017198e-08 | P151: 1.494608898e-15
A152: ='Species 1'!J170 -> -1.733333333 | B152: ='Import data'!K158 -> 1.536848e-07 | D152: ='Species 1'!K170 -> 1.256625787e-07 | E152: ='Species 2'!K170 -> 0 | F152: ='Species 3'!K170 -> 0 | G152: 1.256625787e-07 | I152: -1.174337421e-06 | J152: -2e-06 | K152: -3e-06 | L152: 1.256625787e-07 | N152: -2.80222213e-08 | P152: 7.852448867e-16
A153: ='Species 1'!J171 -> -1.735 | B153: ='Import data'!K159 -> 1.595454e-07 | D153: ='Species 1'!K171 -> 1.327422913e-07 | E153: ='Species 2'!K171 -> 0 | F153: ='Species 3'!K171 -> 0 | G153: 1.327422913e-07 | I153: -1.167257709e-06 | J153: -2e-06 | K153: -3e-06 | L153: 1.327422913e-07 | N153: -2.680310873e-08 | P153: 7.184066374e-16
A154: ='Species 1'!J172 -> -1.736666667 | B154: ='Import data'!K160 -> 1.686954e-07 | D154: ='Species 1'!K172 -> 1.395621576e-07 | E154: ='Species 2'!K172 -> 0 | F154: ='Species 3'!K172 -> 0 | G154: 1.395621576e-07 | I154: -1.160437842e-06 | J154: -2e-06 | K154: -3e-06 | L154: 1.395621576e-07 | N154: -2.913324239e-08 | P154: 8.487458121e-16
A155: ='Species 1'!J173 -> -1.738333333 | B155: ='Import data'!K161 -> 1.776114e-07 | D155: ='Species 1'!K173 -> 1.461271884e-07 | E155: ='Species 2'!K173 -> 0 | F155: ='Species 3'!K173 -> 0 | G155: 1.461271884e-07 | I155: -1.153872812e-06 | J155: -2e-06 | K155: -3e-06 | L155: 1.461271884e-07 | N155: -3.14842116e-08 | P155: 9.9125558e-16
A156: ='Species 1'!J174 -> -1.74 | B156: ='Import data'!K162 -> 1.790144e-07 | D156: ='Species 1'!K174 -> 1.524429266e-07 | E156: ='Species 2'!K174 -> 0 | F156: ='Species 3'!K174 -> 0 | G156: 1.524429266e-07 | I156: -1.147557073e-06 | J156: -2e-06 | K156: -3e-06 | L156: 1.524429266e-07 | N156: -2.657147335e-08 | P156: 7.060431962e-16
A157: ='Species 1'!J175 -> -1.741666667 | B157: ='Import data'!K163 -> 1.837114e-07 | D157: ='Species 1'!K175 -> 1.585153662e-07 | E157: ='Species 2'!K175 -> 0 | F157: ='Species 3'!K175 -> 0 | G157: 1.585153662e-07 | I157: -1.141484634e-06 | J157: -2e-06 | K157: -3e-06 | L157: 1.585153662e-07 | N157: -2.519603379e-08 | P157: 6.348401189e-16
A158: ='Species 1'!J176 -> -1.743333333 | B158: ='Import data'!K164 -> 1.926274e-07 | D158: ='Species 1'!K176 -> 1.643508757e-07 | E158: ='Species 2'!K176 -> 0 | F158: ='Species 3'!K176 -> 0 | G158: 1.643508757e-07 | I158: -1.135649124e-06 | J158: -2e-06 | K158: -3e-06 | L158: 1.643508757e-07 | N158: -2.827652433e-08 | P158: 7.995618279e-16
A159: ='Species 1'!J177 -> -1.745 | B159: ='Import data'!K165 -> 1.989714e-07 | D159: ='Species 1'!K177 -> 1.699561277e-07 | E159: ='Species 2'!K177 -> 0 | F159: ='Species 3'!K177 -> 0 | G159: 1.699561277e-07 | I159: -1.130043872e-06 | J159: -2e-06 | K159: -3e-06 | L159: 1.699561277e-07 | N159: -2.901527231e-08 | P159: 8.418860269e-16
A160: ='Species 1'!J178 -> -1.746666667 | B160: ='Import data'!K166 -> 2.100224e-07 | D160: ='Species 1'!K178 -> 1.753380338e-07 | E160: ='Species 2'!K178 -> 0 | F160: ='Species 3'!K178 -> 0 | G160: 1.753380338e-07 | I160: -1.124661966e-06 | J160: -2e-06 | K160: -3e-06 | L160: 1.753380338e-07 | N160: -3.468436618e-08 | P160: 1.203005257e-15
A161: ='Species 1'!J179 -> -1.748333333 | B161: ='Import data'!K167 -> 2.097784e-07 | D161: ='Species 1'!K179 -> 1.805036848e-07 | E161: ='Species 2'!K179 -> 0 | F161: ='Species 3'!K179 -> 0 | G161: 1.805036848e-07 | I161: -1.119496315e-06 | J161: -2e-06 | K161: -3e-06 | L161: 1.805036848e-07 | N161: -2.927471515e-08 | P161: 8.570089471e-16
A162: ='Species 1'!J180 -> -1.75 | B162: ='Import data'!K168 -> 2.172814e-07 | D162: ='Species 1'!K180 -> 1.854602965e-07 | E162: ='Species 2'!K180 -> 0 | F162: ='Species 3'!K180 -> 0 | G162: 1.854602965e-07 | I162: -1.114539703e-06 | J162: -2e-06 | K162: -3e-06 | L162: 1.854602965e-07 | N162: -3.182110346e-08 | P162: 1.012582625e-15
A163: ='Species 1'!J181 -> -1.751666667 | B163: ='Import data'!K169 -> 2.186944e-07 | D163: ='Species 1'!K181 -> 1.902151606e-07 | E163: ='Species 2'!K181 -> 0 | F163: ='Species 3'!K181 -> 0 | G163: 1.902151606e-07 | I163: -1.109784839e-06 | J163: -2e-06 | K163: -3e-06 | L163: 1.902151606e-07 | N163: -2.847923941e-08 | P163: 8.110670776e-16
A164: ='Species 1'!J182 -> -1.753333333 | B164: ='Import data'!K170 -> 2.346818e-07 | D164: ='Species 1'!K182 -> 1.947756006e-07 | E164: ='Species 2'!K182 -> 0 | F164: ='Species 3'!K182 -> 0 | G164: 1.947756006e-07 | I164: -1.105224399e-06 | J164: -2e-06 | K164: -3e-06 | L164: 1.947756006e-07 | N164: -3.990619938e-08 | P164: 1.592504749e-15
A165: ='Species 1'!J183 -> -1.755 | B165: ='Import data'!K171 -> 2.292474e-07 | D165: ='Species 1'!K183 -> 1.99148933e-07 | E165: ='Species 2'!K183 -> 0 | F165: ='Species 3'!K183 -> 0 | G165: 1.99148933e-07 | I165: -1.100851067e-06 | J165: -2e-06 | K165: -3e-06 | L165: 1.99148933e-07 | N165: -3.009846699e-08 | P165: 9.059177152e-16
A166: ='Species 1'!J184 -> -1.756666667 | B166: ='Import data'!K172 -> 2.431044e-07 | D166: ='Species 1'!K184 -> 2.033424323e-07 | E166: ='Species 2'!K184 -> 0 | F166: ='Species 3'!K184 -> 0 | G166: 2.033424323e-07 | I166: -1.096657568e-06 | J166: -2e-06 | K166: -3e-06 | L166: 2.033424323e-07 | N166: -3.976196775e-08 | P166: 1.581014079e-15
A167: ='Species 1'!J185 -> -1.758333333 | B167: ='Import data'!K173 -> 2.36755e-07 | D167: ='Species 1'!K185 -> 2.073633006e-07 | E167: ='Species 2'!K185 -> 0 | F167: ='Species 3'!K185 -> 0 | G167: 2.073633006e-07 | I167: -1.092636699e-06 | J167: -2e-06 | K167: -3e-06 | L167: 2.073633006e-07 | N167: -2.93916994e-08 | P167: 8.638719939e-16
A168: ='Species 1'!J186 -> -1.76 | B168: ='Import data'!K174 -> 2.47318e-07 | D168: ='Species 1'!K186 -> 2.112186417e-07 | E168: ='Species 2'!K186 -> 0 | F168: ='Species 3'!K186 -> 0 | G168: 2.112186417e-07 | I168: -1.088781358e-06 | J168: -2e-06 | K168: -3e-06 | L168: 2.112186417e-07 | N168: -3.609935832e-08 | P168: 1.303163671e-15
A169: ='Species 1'!J187 -> -1.761666667 | B169: ='Import data'!K175 -> 2.475574e-07 | D169: ='Species 1'!K187 -> 2.149154379e-07 | E169: ='Species 2'!K187 -> 0 | F169: ='Species 3'!K187 -> 0 | G169: 2.149154379e-07 | I169: -1.085084562e-06 | J169: -2e-06 | K169: -3e-06 | L169: 2.149154379e-07 | N169: -3.264196214e-08 | P169: 1.065497692e-15
A170: ='Species 1'!J188 -> -1.763333333 | B170: ='Import data'!K176 -> 2.53418e-07 | D170: ='Species 1'!K188 -> 2.18460531e-07 | E170: ='Species 2'!K188 -> 0 | F170: ='Species 3'!K188 -> 0 | G170: 2.18460531e-07 | I170: -1.081539469e-06 | J170: -2e-06 | K170: -3e-06 | L170: 2.18460531e-07 | N170: -3.495746899e-08 | P170: 1.222024638e-15
A171: ='Species 1'!J189 -> -1.765 | B171: ='Import data'!K177 -> 2.48721e-07 | D171: ='Species 1'!K189 -> 2.218606064e-07 | E171: ='Species 2'!K189 -> 0 | F171: ='Species 3'!K189 -> 0 | G171: 2.218606064e-07 | I171: -1.078139394e-06 | J171: -2e-06 | K171: -3e-06 | L171: 2.218606064e-07 | N171: -2.686039364e-08 | P171: 7.214807465e-16
A172: ='Species 1'!J190 -> -1.766666667 | B172: ='Import data'!K178 -> 2.48721e-07 | D172: ='Species 1'!K190 -> 2.251221792e-07 | E172: ='Species 2'!K190 -> 0 | F172: ='Species 3'!K190 -> 0 | G172: 2.251221792e-07 | I172: -1.074877821e-06 | J172: -2e-06 | K172: -3e-06 | L172: 2.251221792e-07 | N172: -2.359882075e-08 | P172: 5.569043408e-16
A173: ='Species 1'!J191 -> -1.768333333 | B173: ='Import data'!K179 -> 2.56224e-07 | D173: ='Species 1'!K191 -> 2.282515845e-07 | E173: ='Species 2'!K191 -> 0 | F173: ='Species 3'!K191 -> 0 | G173: 2.282515845e-07 | I173: -1.071748416e-06 | J173: -2e-06 | K173: -3e-06 | L173: 2.282515845e-07 | N173: -2.797241553e-08 | P173: 7.824560306e-16
A174: ='Species 1'!J192 -> -1.77 | B174: ='Import data'!K180 -> 2.56224e-07 | D174: ='Species 1'!K192 -> 2.312549679e-07 | E174: ='Species 2'!K192 -> 0 | F174: ='Species 3'!K192 -> 0 | G174: 2.312549679e-07 | I174: -1.068745032e-06 | J174: -2e-06 | K174: -3e-06 | L174: 2.312549679e-07 | N174: -2.496903208e-08 | P174: 6.234525629e-16
A175: ='Species 1'!J193 -> -1.771666667 | B175: ='Import data'!K181 -> 2.57871e-07 | D175: ='Species 1'!K193 -> 2.341382804e-07 | E175: ='Species 2'!K193 -> 0 | F175: ='Species 3'!K193 -> 0 | G175: 2.341382804e-07 | I175: -1.06586172e-06 | J175: -2e-06 | K175: -3e-06 | L175: 2.341382804e-07 | N175: -2.373271964e-08 | P175: 5.632419814e-16
A176: ='Species 1'!J194 -> -1.773333333 | B176: ='Import data'!K182 -> 2.68434e-07 | D176: ='Species 1'!K194 -> 2.36907273e-07 | E176: ='Species 2'!K194 -> 0 | F176: ='Species 3'!K194 -> 0 | G176: 2.36907273e-07 | I176: -1.063092727e-06 | J176: -2e-06 | K176: -3e-06 | L176: 2.36907273e-07 | N176: -3.152672697e-08 | P176: 9.939345134e-16
A177: ='Species 1'!J195 -> -1.775 | B177: ='Import data'!K183 -> 2.651346e-07 | D177: ='Species 1'!K195 -> 2.395674949e-07 | E177: ='Species 2'!K195 -> 0 | F177: ='Species 3'!K195 -> 0 | G177: 2.395674949e-07 | I177: -1.060432505e-06 | J177: -2e-06 | K177: -3e-06 | L177: 2.395674949e-07 | N177: -2.556710508e-08 | P177: 6.536768623e-16
A178: ='Species 1'!J196 -> -1.776666667 | B178: ='Import data'!K184 -> 2.665376e-07 | D178: ='Species 1'!K196 -> 2.421242915e-07 | E178: ='Species 2'!K196 -> 0 | F178: ='Species 3'!K196 -> 0 | G178: 2.421242915e-07 | I178: -1.057875709e-06 | J178: -2e-06 | K178: -3e-06 | L178: 2.421242915e-07 | N178: -2.441330851e-08 | P178: 5.960096322e-16
A179: ='Species 1'!J197 -> -1.778333333 | B179: ='Import data'!K185 -> 2.787476e-07 | D179: ='Species 1'!K197 -> 2.445828047e-07 | E179: ='Species 2'!K197 -> 0 | F179: ='Species 3'!K197 -> 0 | G179: 2.445828047e-07 | I179: -1.055417195e-06 | J179: -2e-06 | K179: -3e-06 | L179: 2.445828047e-07 | N179: -3.416479528e-08 | P179: 1.167233237e-15
A180: ='Species 1'!J198 -> -1.78 | B180: ='Import data'!K186 -> 2.665376e-07 | D180: ='Species 1'!K198 -> 2.469479741e-07 | E180: ='Species 2'!K198 -> 0 | F180: ='Species 3'!K198 -> 0 | G180: 2.469479741e-07 | I180: -1.053052026e-06 | J180: -2e-06 | K180: -3e-06 | L180: 2.469479741e-07 | N180: -1.958962586e-08 | P180: 3.837534415e-16
A181: ='Species 1'!J199 -> -1.781666667 | B181: ='Import data'!K187 -> 2.803946e-07 | D181: ='Species 1'!K199 -> 2.492245389e-07 | E181: ='Species 2'!K199 -> 0 | F181: ='Species 3'!K199 -> 0 | G181: 2.492245389e-07 | I181: -1.050775461e-06 | J181: -2e-06 | K181: -3e-06 | L181: 2.492245389e-07 | N181: -3.117006105e-08 | P181: 9.715727061e-16
A182: ='Species 1'!J200 -> -1.783333333 | B182: ='Import data'!K188 -> 2.754536e-07 | D182: ='Species 1'!K200 -> 2.514170409e-07 | E182: ='Species 2'!K200 -> 0 | F182: ='Species 3'!K200 -> 0 | G182: 2.514170409e-07 | I182: -1.048582959e-06 | J182: -2e-06 | K182: -3e-06 | L182: 2.514170409e-07 | N182: -2.403655912e-08 | P182: 5.777561745e-16
A183: ='Species 1'!J201 -> -1.785 | B183: ='Import data'!K189 -> 2.848476e-07 | D183: ='Species 1'!K201 -> 2.535298277e-07 | E183: ='Species 2'!K201 -> 0 | F183: ='Species 3'!K201 -> 0 | G183: 2.535298277e-07 | I183: -1.046470172e-06 | J183: -2e-06 | K183: -3e-06 | L183: 2.535298277e-07 | N183: -3.131777226e-08 | P183: 9.808028591e-16
A184: ='Species 1'!J202 -> -1.786666667 | B184: ='Import data'!K190 -> 2.771006e-07 | D184: ='Species 1'!K202 -> 2.555670576e-07 | E184: ='Species 2'!K202 -> 0 | F184: ='Species 3'!K202 -> 0 | G184: 2.555670576e-07 | I184: -1.044432942e-06 | J184: -2e-06 | K184: -3e-06 | L184: 2.555670576e-07 | N184: -2.15335424e-08 | P184: 4.636934485e-16
A185: ='Species 1'!J203 -> -1.788333333 | B185: ='Import data'!K191 -> 2.862506e-07 | D185: ='Species 1'!K203 -> 2.575327033e-07 | E185: ='Species 2'!K203 -> 0 | F185: ='Species 3'!K203 -> 0 | G185: 2.575327033e-07 | I185: -1.042467297e-06 | J185: -2e-06 | K185: -3e-06 | L185: 2.575327033e-07 | N185: -2.871789668e-08 | P185: 8.2471759e-16
A186: ='Species 1'!J204 -> -1.79 | B186: ='Import data'!K192 -> 2.937636e-07 | D186: ='Species 1'!K204 -> 2.594305576e-07 | E186: ='Species 2'!K204 -> 0 | F186: ='Species 3'!K204 -> 0 | G186: 2.594305576e-07 | I186: -1.040569442e-06 | J186: -2e-06 | K186: -3e-06 | L186: 2.594305576e-07 | N186: -3.433304239e-08 | P186: 1.1787578e-15
A187: ='Species 1'!J205 -> -1.791666667 | B187: ='Import data'!K193 -> 2.921166e-07 | D187: ='Species 1'!K205 -> 2.612642383e-07 | E187: ='Species 2'!K205 -> 0 | F187: ='Species 3'!K205 -> 0 | G187: 2.612642383e-07 | I187: -1.038735762e-06 | J187: -2e-06 | K187: -3e-06 | L187: 2.612642383e-07 | N187: -3.085236169e-08 | P187: 9.518682219e-16
A188: ='Species 1'!J206 -> -1.793333333 | B188: ='Import data'!K194 -> 2.984606e-07 | D188: ='Species 1'!K206 -> 2.630371938e-07 | E188: ='Species 2'!K206 -> 0 | F188: ='Species 3'!K206 -> 0 | G188: 2.630371938e-07 | I188: -1.036962806e-06 | J188: -2e-06 | K188: -3e-06 | L188: 2.630371938e-07 | N188: -3.542340615e-08 | P188: 1.254817703e-15
A189: ='Species 1'!J207 -> -1.795 | B189: ='Import data'!K195 -> 2.904696e-07 | D189: ='Species 1'!K207 -> 2.64752709e-07 | E189: ='Species 2'!K207 -> 0 | F189: ='Species 3'!K207 -> 0 | G189: 2.64752709e-07 | I189: -1.035247291e-06 | J189: -2e-06 | K189: -3e-06 | L189: 2.64752709e-07 | N189: -2.571689101e-08 | P189: 6.613584834e-16
A190: ='Species 1'!J208 -> -1.796666667 | B190: ='Import data'!K196 -> 2.855232e-07 | D190: ='Species 1'!K208 -> 2.664139106e-07 | E190: ='Species 2'!K208 -> 0 | F190: ='Species 3'!K208 -> 0 | G190: 2.664139106e-07 | I190: -1.033586089e-06 | J190: -2e-06 | K190: -3e-06 | L190: 2.664139106e-07 | N190: -1.910928944e-08 | P190: 3.65164943e-16
A191: ='Species 1'!J209 -> -1.798333333 | B191: ='Import data'!K197 -> 2.935196e-07 | D191: ='Species 1'!K209 -> 2.680237733e-07 | E191: ='Species 2'!K209 -> 0 | F191: ='Species 3'!K209 -> 0 | G191: 2.680237733e-07 | I191: -1.031976227e-06 | J191: -2e-06 | K191: -3e-06 | L191: 2.680237733e-07 | N191: -2.549582667e-08 | P191: 6.500371775e-16
A192: ='Species 1'!J210 -> -1.8 | B192: ='Import data'!K198 -> 2.916232e-07 | D192: ='Species 1'!K210 -> 2.695851259e-07 | E192: ='Species 2'!K210 -> 0 | F192: ='Species 3'!K210 -> 0 | G192: 2.695851259e-07 | I192: -1.030414874e-06 | J192: -2e-06 | K192: -3e-06 | L192: 2.695851259e-07 | N192: -2.203807413e-08 | P192: 4.856767113e-16
A193: ='Species 1'!J211 -> -1.801666667 | B193: ='Import data'!K199 -> 2.949172e-07 | D193: ='Species 1'!K211 -> 2.711006564e-07 | E193: ='Species 2'!K211 -> 0 | F193: ='Species 3'!K211 -> 0 | G193: 2.711006564e-07 | I193: -1.028899344e-06 | J193: -2e-06 | K193: -3e-06 | L193: 2.711006564e-07 | N193: -2.381654364e-08 | P193: 5.672277507e-16
A194: ='Species 1'!J212 -> -1.803333333 | B194: ='Import data'!K200 -> 2.946832e-07 | D194: ='Species 1'!K212 -> 2.725729184e-07 | E194: ='Species 2'!K212 -> 0 | F194: ='Species 3'!K212 -> 0 | G194: 2.725729184e-07 | I194: -1.027427082e-06 | J194: -2e-06 | K194: -3e-06 | L194: 2.725729184e-07 | N194: -2.211028157e-08 | P194: 4.888645511e-16
A195: ='Species 1'!J213 -> -1.805 | B195: ='Import data'!K201 -> 3.007832e-07 | D195: ='Species 1'!K213 -> 2.740043368e-07 | E195: ='Species 2'!K213 -> 0 | F195: ='Species 3'!K213 -> 0 | G195: 2.740043368e-07 | I195: -1.025995663e-06 | J195: -2e-06 | K195: -3e-06 | L195: 2.740043368e-07 | N195: -2.677886318e-08 | P195: 7.171075133e-16
A196: ='Species 1'!J214 -> -1.806666667 | B196: ='Import data'!K202 -> 2.974892e-07 | D196: ='Species 1'!K214 -> 2.75397213e-07 | E196: ='Species 2'!K214 -> 0 | F196: ='Species 3'!K214 -> 0 | G196: 2.75397213e-07 | I196: -1.024602787e-06 | J196: -2e-06 | K196: -3e-06 | L196: 2.75397213e-07 | N196: -2.209198697e-08 | P196: 4.880558883e-16
A197: ='Species 1'!J215 -> -1.808333333 | B197: ='Import data'!K203 -> 2.944392e-07 | D197: ='Species 1'!K215 -> 2.767537308e-07 | E197: ='Species 2'!K215 -> 0 | F197: ='Species 3'!K215 -> 0 | G197: 2.767537308e-07 | I197: -1.023246269e-06 | J197: -2e-06 | K197: -3e-06 | L197: 2.767537308e-07 | N197: -1.768546918e-08 | P197: 3.127758203e-16
A198: ='Species 1'!J216 -> -1.81 | B198: ='Import data'!K204 -> 2.991362e-07 | D198: ='Species 1'!K216 -> 2.780759615e-07 | E198: ='Species 2'!K216 -> 0 | F198: ='Species 3'!K216 -> 0 | G198: 2.780759615e-07 | I198: -1.021924038e-06 | J198: -2e-06 | K198: -3e-06 | L198: 2.780759615e-07 | N198: -2.106023846e-08 | P198: 4.435336438e-16
A199: ='Species 1'!J217 -> -1.811666667 | B199: ='Import data'!K205 -> 3.005392e-07 | D199: ='Species 1'!K217 -> 2.793658694e-07 | E199: ='Species 2'!K217 -> 0 | F199: ='Species 3'!K217 -> 0 | G199: 2.793658694e-07 | I199: -1.020634131e-06 | J199: -2e-06 | K199: -3e-06 | L199: 2.793658694e-07 | N199: -2.117333058e-08 | P199: 4.483099278e-16
A200: ='Species 1'!J218 -> -1.813333333 | B200: ='Import data'!K206 -> 2.911398e-07 | D200: ='Species 1'!K218 -> 2.806253166e-07 | E200: ='Species 2'!K218 -> 0 | F200: ='Species 3'!K218 -> 0 | G200: 2.806253166e-07 | I200: -1.019374683e-06 | J200: -2e-06 | K200: -3e-06 | L200: 2.806253166e-07 | N200: -1.051448344e-08 | P200: 1.10554362e-16
A201: ='Species 1'!J219 -> -1.815 | B201: ='Import data'!K207 -> 2.972398e-07 | D201: ='Species 1'!K219 -> 2.818560679e-07 | E201: ='Species 2'!K219 -> 0 | F201: ='Species 3'!K219 -> 0 | G201: 2.818560679e-07 | I201: -1.018143932e-06 | J201: -2e-06 | K201: -3e-06 | L201: 2.818560679e-07 | N201: -1.53837321e-08 | P201: 2.366592135e-16
A202: ='Species 1'!J220 -> -1.816666667 | B202: ='Import data'!K208 -> 2.925428e-07 | D202: ='Species 1'!K220 -> 2.830597959e-07 | E202: ='Species 2'!K220 -> 0 | F202: ='Species 3'!K220 -> 0 | G202: 2.830597959e-07 | I202: -1.016940204e-06 | J202: -2e-06 | K202: -3e-06 | L202: 2.830597959e-07 | N202: -9.483004077e-09 | P202: 8.992736633e-17
... 409 more rows
